{"text_format":"1","workbook":"xlsx","n_sheets":7,"sheets":["Main","eDESIND","Internal","eSPAR","pRCF","pRCF ","eDESIND "],"not_rendered":{"charts":0,"images":3,"macros":1,"external_links":0,"defined_names":1,"comments":3,"pivot_tables":0},"unopened":[],"bounds":{"document_bytes":16777216,"sheet_cells":100000,"rows_first":2000,"rows_last":500,"rows_between":2000,"halvings":0,"cell_chars":16384,"cell_head_chars":4096},"cells_cut":0,"cells_raw":0,"read":"whole","date_system":"1900"}

{"sheet":"Main","index":0,"n_rows":16,"n_cols":6,"rows_kept":16,"cut":false,"hidden":false,"merged":[[11,5,11,8],[15,2,15,8],[14,2,14,8],[0,2,0,8],[12,2,12,3],[4,2,4,3],[11,2,11,3],[1,2,1,8],[2,2,2,8],[5,2,5,3],[4,5,4,8],[6,2,6,3],[8,2,8,3],[7,2,7,3],[10,2,10,3],[9,2,9,3],[5,5,5,8],[6,5,7,8],[9,5,9,8],[10,5,10,8]]}
[null,null,{"$f":"Internal!C25","v":"ABC Public School"}]
[null,null,{"$f":"Internal!C27","v":"School Address1, City ABC, Delhi"}]
[null,null,"Co-Scholastic Grade Certificate Class X"]
[]
[null,null,"Commands",null,null,"How to Use This Utility?"]
[null,null,"Enter Student Particulars",null,null,"For Step-By-Step Tutorial or Help, kindly visit the page below -"]
[null,null,"Enter DI Codes & Grade",null,null,"http://parashosting.com/CBSE-Co-Scholastic-Grade-Certificate-Class-X-2017.html"]
[null,null,"Print Co-Scholastic Certificate"]
[]
[null,null,"Report Card Issue Date",null,null,"Buy Complete Software for Class I - X"]
[null,null,"2018-05-03",null,null,"CBSE Result & Report Card  Generator"]
[null,null,null,null,null,"http://parashosting.com/cbse-report-card-software-2017-onwards.html"]
[null,null,"Update School Info"]
[]
[null,null,"Utility Developed by : Paras Hosting,    Visit us at : www.ParasHosting.com"]
[null,null,"Email : response@parasHosting.com"]

{"sheet":"eDESIND","index":1,"n_rows":86,"n_cols":6,"rows_kept":86,"cut":false,"hidden":false,"merged":[[0,0,0,4],[1,0,1,4],[2,0,2,4],[3,0,5,0],[3,1,5,1],[3,2,3,5]]}
["Enter Co-Scholastic Grades"]
[{"$f":"Internal!B31","v":"Academic Session : 2017-18"}]
[]
["R.No.","Name","Enter Grades i.e. A, B, C, D & E"]
[null,null," Work Education (or Pre-Vocational Education)"," Art Education","Health & Physical Education"," Discipline"]
[null,null,"Grade","Grade","Grade","Grade"]
[{"$f":"eSPAR!A6","v":1},{"$f":"eSPAR!B6","v":0}]
[{"$f":"eSPAR!A7","v":0},{"$f":"eSPAR!B7","v":0}]
[{"$f":"eSPAR!A8","v":0},{"$f":"eSPAR!B8","v":0}]
[{"$f":"eSPAR!A9","v":0},{"$f":"eSPAR!B9","v":0}]
[{"$f":"eSPAR!A10","v":0},{"$f":"eSPAR!B10","v":0}]
[{"$f":"eSPAR!A11","v":0},{"$f":"eSPAR!B11","v":0}]
[{"$f":"eSPAR!A12","v":0},{"$f":"eSPAR!B12","v":0}]
[{"$f":"eSPAR!A13","v":0},{"$f":"eSPAR!B13","v":0}]
[{"$f":"eSPAR!A14","v":0},{"$f":"eSPAR!B14","v":0}]
[{"$f":"eSPAR!A15","v":0},{"$f":"eSPAR!B15","v":0}]
[{"$f":"eSPAR!A16","v":0},{"$f":"eSPAR!B16","v":0}]
[{"$f":"eSPAR!A17","v":0},{"$f":"eSPAR!B17","v":0}]
[{"$f":"eSPAR!A18","v":0},{"$f":"eSPAR!B18","v":0}]
[{"$f":"eSPAR!A19","v":0},{"$f":"eSPAR!B19","v":0}]
[{"$f":"eSPAR!A20","v":0},{"$f":"eSPAR!B20","v":0}]
[{"$f":"eSPAR!A21","v":0},{"$f":"eSPAR!B21","v":0}]
[{"$f":"eSPAR!A22","v":0},{"$f":"eSPAR!B22","v":0}]
[{"$f":"eSPAR!A23","v":0},{"$f":"eSPAR!B23","v":0}]
[{"$f":"eSPAR!A24","v":0},{"$f":"eSPAR!B24","v":0}]
[{"$f":"eSPAR!A25","v":0},{"$f":"eSPAR!B25","v":0}]
[{"$f":"eSPAR!A26","v":0},{"$f":"eSPAR!B26","v":0}]
[{"$f":"eSPAR!A27","v":0},{"$f":"eSPAR!B27","v":0}]
[{"$f":"eSPAR!A28","v":0},{"$f":"eSPAR!B28","v":0}]
[{"$f":"eSPAR!A29","v":0},{"$f":"eSPAR!B29","v":0}]
[{"$f":"eSPAR!A30","v":0},{"$f":"eSPAR!B30","v":0}]
[{"$f":"eSPAR!A31","v":0},{"$f":"eSPAR!B31","v":0}]
[{"$f":"eSPAR!A32","v":0},{"$f":"eSPAR!B32","v":0}]
[{"$f":"eSPAR!A33","v":0},{"$f":"eSPAR!B33","v":0}]
[{"$f":"eSPAR!A34","v":0},{"$f":"eSPAR!B34","v":0}]
[{"$f":"eSPAR!A35","v":0},{"$f":"eSPAR!B35","v":0}]
[{"$f":"eSPAR!A36","v":0},{"$f":"eSPAR!B36","v":0}]
[{"$f":"eSPAR!A37","v":0},{"$f":"eSPAR!B37","v":0}]
[{"$f":"eSPAR!A38","v":0},{"$f":"eSPAR!B38","v":0}]
[{"$f":"eSPAR!A39","v":0},{"$f":"eSPAR!B39","v":0}]
[{"$f":"eSPAR!A40","v":0},{"$f":"eSPAR!B40","v":0}]
[{"$f":"eSPAR!A41","v":0},{"$f":"eSPAR!B41","v":0}]
[{"$f":"eSPAR!A42","v":0},{"$f":"eSPAR!B42","v":0}]
[{"$f":"eSPAR!A43","v":0},{"$f":"eSPAR!B43","v":0}]
[{"$f":"eSPAR!A44","v":0},{"$f":"eSPAR!B44","v":0}]
[{"$f":"eSPAR!A45","v":0},{"$f":"eSPAR!B45","v":0}]
[{"$f":"eSPAR!A46","v":0},{"$f":"eSPAR!B46","v":0}]
[{"$f":"eSPAR!A47","v":0},{"$f":"eSPAR!B47","v":0}]
[{"$f":"eSPAR!A48","v":0},{"$f":"eSPAR!B48","v":0}]
[{"$f":"eSPAR!A49","v":0},{"$f":"eSPAR!B49","v":0}]
[{"$f":"eSPAR!A50","v":0},{"$f":"eSPAR!B50","v":0}]
[{"$f":"eSPAR!A51","v":0},{"$f":"eSPAR!B51","v":0}]
[{"$f":"eSPAR!A52","v":0},{"$f":"eSPAR!B52","v":0}]
[{"$f":"eSPAR!A53","v":0},{"$f":"eSPAR!B53","v":0}]
[{"$f":"eSPAR!A54","v":0},{"$f":"eSPAR!B54","v":0}]
[{"$f":"eSPAR!A55","v":0},{"$f":"eSPAR!B55","v":0}]
[{"$f":"eSPAR!A56","v":0},{"$f":"eSPAR!B56","v":0}]
[{"$f":"eSPAR!A57","v":0},{"$f":"eSPAR!B57","v":0}]
[{"$f":"eSPAR!A58","v":0},{"$f":"eSPAR!B58","v":0}]
[{"$f":"eSPAR!A59","v":0},{"$f":"eSPAR!B59","v":0}]
[{"$f":"eSPAR!A60","v":0},{"$f":"eSPAR!B60","v":0}]
[{"$f":"eSPAR!A61","v":0},{"$f":"eSPAR!B61","v":0}]
[{"$f":"eSPAR!A62","v":0},{"$f":"eSPAR!B62","v":0}]
[{"$f":"eSPAR!A63","v":0},{"$f":"eSPAR!B63","v":0}]
[{"$f":"eSPAR!A64","v":0},{"$f":"eSPAR!B64","v":0}]
[{"$f":"eSPAR!A65","v":0},{"$f":"eSPAR!B65","v":0}]
[{"$f":"eSPAR!A66","v":0},{"$f":"eSPAR!B66","v":0}]
[{"$f":"eSPAR!A67","v":0},{"$f":"eSPAR!B67","v":0}]
[{"$f":"eSPAR!A68","v":0},{"$f":"eSPAR!B68","v":0}]
[{"$f":"eSPAR!A69","v":0},{"$f":"eSPAR!B69","v":0}]
[{"$f":"eSPAR!A70","v":0},{"$f":"eSPAR!B70","v":0}]
[{"$f":"eSPAR!A71","v":0},{"$f":"eSPAR!B71","v":0}]
[{"$f":"eSPAR!A72","v":0},{"$f":"eSPAR!B72","v":0}]
[{"$f":"eSPAR!A73","v":0},{"$f":"eSPAR!B73","v":0}]
[{"$f":"eSPAR!A74","v":0},{"$f":"eSPAR!B74","v":0}]
[{"$f":"eSPAR!A75","v":0},{"$f":"eSPAR!B75","v":0}]
[{"$f":"eSPAR!A76","v":0},{"$f":"eSPAR!B76","v":0}]
[{"$f":"eSPAR!A77","v":0},{"$f":"eSPAR!B77","v":0}]
[{"$f":"eSPAR!A78","v":0},{"$f":"eSPAR!B78","v":0}]
[{"$f":"eSPAR!A79","v":0},{"$f":"eSPAR!B79","v":0}]
[{"$f":"eSPAR!A80","v":0},{"$f":"eSPAR!B80","v":0}]
[{"$f":"eSPAR!A81","v":0},{"$f":"eSPAR!B81","v":0}]
[{"$f":"eSPAR!A82","v":0},{"$f":"eSPAR!B82","v":0}]
[{"$f":"eSPAR!A83","v":0},{"$f":"eSPAR!B83","v":0}]
[{"$f":"eSPAR!A84","v":0},{"$f":"eSPAR!B84","v":0}]
[{"$f":"eSPAR!A85","v":0},{"$f":"eSPAR!B85","v":0}]

{"sheet":"Internal","index":2,"n_rows":31,"n_cols":6,"rows_kept":31,"cut":false,"hidden":false,"merged":[[33,1,33,6],[1,1,1,6],[28,1,28,6],[29,1,29,6],[30,1,30,6],[2,1,2,2],[2,4,2,5],[24,2,24,6],[25,2,25,6],[26,2,26,6],[32,1,32,6]]}
[]
[null,"School Information"]
[null,"SCHOLASTIC",null,"GP","CO-SCHOLASTIC"]
[null,0,"E2","-",0,"F"]
[null,21,"E1","-",0.65,"D"]
[null,33,"D",4,0.69,"D+"]
[null,41,"C2",5,0.7,"C"]
[null,51,"C1",6,0.83,"C+"]
[null,61,"B2",7,0.85,"B"]
[null,71,"B1",8,0.92,"B+"]
[null,81,"A2",9,0.95,"A"]
[null,91,"A1",10,0.98,"A+"]
[]
[]
[null,0,"E2",null,"A",5]
[null,2.1,"E1",null,"B",4]
[null,3.3,"D",null,"C",3]
[null,4.0999999999999996,"C2",null,"D",2]
[null,5.0999999999999996,"C1",null,"E",1]
[null,6.1,"B2"]
[null,7.1,"B1"]
[null,8.1,"A2"]
[null,9.1,"A1"]
[]
[null,"School Name","ABC Public School"]
[null,"Aff. No.",120120]
[null,"Address","School Address1, City ABC, Delhi"]
[]
[null,"Email : schoolname@gmail.com"]
[null,"Tel. No. 011-2222222"]
[null,"Academic Session : 2017-18"]

{"sheet":"eSPAR","index":3,"n_rows":87,"n_cols":5,"rows_kept":87,"cut":false,"hidden":false,"merged":[[1,0,1,4],[86,0,86,2]]}
[]
["ENTER Students Particulars"]
[]
[]
["Roll Number","Name","Father's Name","Mother's Name","Date of Birth"]
[1]
[]
[]
[]
[]
[]
[]
[]
[]
[]
[]
[]
[]
[]
[]
[]
[]
[]
[]
[]
[]
[]
[]
[]
[]
[]
[]
[]
[]
[]
[]
[]
[]
[]
[]
[]
[]
[]
[]
[]
[]
[]
[]
[]
[]
[]
[]
[]
[]
[]
[]
[]
[]
[]
[]
[]
[]
[]
[]
[]
[]
[]
[]
[]
[]
[]
[]
[]
[]
[]
[]
[]
[]
[]
[]
[]
[]
[]
[]
[]
[]
["Note: If you have more than 80 students, please use another copy of file for more entries."]

{"sheet":"pRCF","index":4,"n_rows":29,"n_cols":12,"rows_kept":29,"cut":false,"hidden":false,"merged":[[0,1,0,9],[3,1,3,9],[9,10,9,11],[19,0,19,6],[19,7,19,12],[15,0,15,6],[15,7,15,12],[16,0,16,6],[16,7,16,12],[17,0,17,6],[17,7,17,12],[12,1,12,6],[14,0,14,6],[14,7,14,12],[7,0,7,12],[9,1,9,6],[28,0,28,2],[28,3,28,7],[28,9,28,12],[21,0,21,2],[21,3,21,12],[9,7,9,9],[10,1,10,6],[11,1,11,6],[11,8,11,10],[11,11,11,12],[1,1,1,9],[2,1,2,9],[4,0,4,4],[5,0,5,12],[6,0,6,12]]}
[null,{"$f":"Internal!C25","v":"ABC Public School"}]
[null,{"$f":"\"Affiliated to CBSE, \"&\"Affiliation No.\"&\" \" & Internal!C26","v":"Affiliated to CBSE, Affiliation No. 120120"},null,null,null,null,null,null,null,null,null,"School"]
[null,{"$f":"Internal!C27","v":"School Address1, City ABC, Delhi"},null,null,null,null,null,null,null,null,null,"Logo"]
[null,{"$f":"Internal!B30 & \",\" & \" \"& Internal!B29","v":"Tel. No. 011-2222222, Email : schoolname@gmail.com"}]
[]
["Report Card for Co-Scholastic Areas"]
["Class - X"]
[{"$f":"Internal!B31","v":"Academic Session : 2017-18"}]
[]
["Student's Name :",{"$f":"VLOOKUP(K10,eSPAR!A6:E85,2,FALSE)","v":0},null,null,null,null,null,"Roll No.",null,null,1]
["Father's Name :",{"$f":"VLOOKUP(K10,eSPAR!A6:E85,3,FALSE)","v":0}]
["Mother's Name :",{"$f":"VLOOKUP(K10,eSPAR!A6:E85,4,FALSE)","v":0}]
["Date of Birth :",{"$f":"VLOOKUP(K10,eSPAR!A6:E85,5,FALSE)","v":0}]
[]
["Co-Scholastic Areas [on a 5- point (A-E) grading scale]",null,null,null,null,null,null,"Grade"]
[{"$f":"eDESIND!C5","v":" Work Education (or Pre-Vocational Education)"},null,null,null,null,null,null,{"$f":"VLOOKUP(K10,eDESIND!$A$7:$E$86,3,FALSE)","v":0}]
[{"$f":"eDESIND!D5","v":" Art Education"},null,null,null,null,null,null,{"$f":"VLOOKUP(K10,eDESIND!$A$7:$E$86,4,FALSE)","v":0}]
[{"$f":"eDESIND!E5","v":"Health & Physical Education"},null,null,null,null,null,null,{"$f":"VLOOKUP(K10,eDESIND!$A$7:$E$86,5,FALSE)","v":0}]
[]
["Discipline",null,null,null,null,null,null,{"$f":"VLOOKUP(K10,eDESIND!$A$7:$F$86,6,FALSE)","v":0}]
[]
[]
[]
[]
[]
[]
[]
[]
[{"$f":"Main!C11","v":"2018-05-03"},null,null,"Sign of Class Teacher",null,null,null,null,null,"      Sign of Principal"]

{"sheet":"pRCF ","index":5,"n_rows":41,"n_cols":7,"rows_kept":41,"cut":false,"hidden":true,"merged":[[42,0,42,1],[42,4,42,6],[30,1,30,4],[31,0,31,6],[32,1,32,4],[33,1,33,4],[34,1,34,4],[35,0,35,6],[36,1,36,4],[37,1,37,4],[38,1,38,4],[41,0,41,2],[41,4,41,6],[29,1,29,4],[18,1,18,4],[19,0,19,6],[20,1,20,4],[21,1,21,4],[22,0,22,6],[23,1,23,4],[24,1,24,4],[25,0,25,6],[26,1,26,4],[27,1,27,4],[28,1,28,4],[17,1,17,4],[0,0,0,6],[1,0,1,6],[2,0,2,6],[3,0,3,6],[5,0,5,6],[6,0,6,6],[8,4,8,5],[13,0,13,6],[14,0,14,6],[15,1,15,4],[16,1,16,4]]}
[{"$f":"Internal!C25","v":"ABC Public School"}]
[{"$f":"\"Affiliated to CBSE, \"&\"Affiliation No.\"&\"  \" & Internal!C26","v":"Affiliated to CBSE, Affiliation No.  120120"}]
[{"$f":"Internal!C27","v":"School Address1, City ABC, Delhi"}]
[{"$f":"Internal!B30 & \",\" & \" \"& Internal!B29","v":"Tel. No. 011-2222222, Email : schoolname@gmail.com"}]
[]
["Co-Scholastic Grade Certificate Class X 2017"]
[]
["Name of the Student",{"$f":"VLOOKUP(B9,eSPAR!A6:E85,2,FALSE)","v":{"$error":"#REF!"}}]
["Admission No.",{"$f":"#REF!","v":{"$error":"#REF!"}},null,"Section",{"$f":"VLOOKUP(B9,eSPAR!A6:E85,3,FALSE)","v":{"$error":"#REF!"}}]
["Roll No. (Alloted by CBSE)",{"$f":"VLOOKUP(B9,eSPAR!A6:E85,4,FALSE)","v":{"$error":"#REF!"}}]
["Date of Birth",{"$f":"VLOOKUP(B9,eSPAR!A6:E85,5,FALSE)","v":{"$error":"#REF!"}}]
["Mother's Name",{"$f":"VLOOKUP(B9,eSPAR!A6:E85,6,FALSE)","v":{"$error":"#REF!"}}]
["Father's Name",{"$f":"VLOOKUP(B9,eSPAR!A6:E85,7,FALSE)","v":{"$error":"#REF!"}}]
[]
["2 (A) : Life Skills"]
["Life Skills","Descriptive Indicator",null,null,null,"Grade","Grade Point"]
["Thinking Skills",{"$f":"VLOOKUP(B9,'eDESIND '!A7:N86,3,FALSE)","v":{"$error":"#REF!"}},null,null,null,{"$f":"VLOOKUP(B9,#REF!,3,FALSE)","v":{"$error":"#REF!"}},{"$f":"VLOOKUP(F17,Internal!$E$15:'Internal'!$F$19,2)","v":{"$error":"#REF!"}}]
["Social Skills",{"$f":"VLOOKUP(B9,'eDESIND '!A7:N86,4,FALSE)","v":{"$error":"#REF!"}},null,null,null,{"$f":"VLOOKUP(B9,#REF!,5,FALSE)","v":{"$error":"#REF!"}},{"$f":"VLOOKUP(F18,Internal!$E$15:'Internal'!$F$19,2)","v":{"$error":"#REF!"}}]
["Emotional Skills",{"$f":"VLOOKUP(B9,'eDESIND '!A7:N86,5,FALSE)","v":{"$error":"#REF!"}},null,null,null,{"$f":"VLOOKUP(B9,#REF!,7,FALSE)","v":{"$error":"#REF!"}},{"$f":"VLOOKUP(F19,Internal!$E$15:'Internal'!$F$19,2)","v":{"$error":"#REF!"}}]
["2 (B)"]
["Work Education","Descriptive Indicator",null,null,null,"Grade","Grade Point"]
["Work Education",{"$f":"VLOOKUP(B9,'eDESIND '!A7:N86,6,FALSE)","v":{"$error":"#REF!"}},null,null,null,{"$f":"VLOOKUP(B9,#REF!,9,FALSE)","v":{"$error":"#REF!"}},{"$f":"VLOOKUP(F22,Internal!$E$15:'Internal'!$F$19,2)","v":{"$error":"#REF!"}}]
["2 (C)"]
[null,"Descriptive Indicator",null,null,null,"Grade","Grade Point"]
["Visual and Performing Arts",{"$f":"VLOOKUP(B9,'eDESIND '!A7:N86,7,FALSE)","v":{"$error":"#REF!"}},null,null,null,{"$f":"VLOOKUP(B9,#REF!,11,FALSE)","v":{"$error":"#REF!"}},{"$f":"VLOOKUP(F25,Internal!$E$15:'Internal'!$F$19,2)","v":{"$error":"#REF!"}}]
["2 (D) Attitudes and Values"]
["Attitude towards","Descriptive Indicator",null,null,null,"Grade","Grade Point"]
["Teachers",{"$f":"VLOOKUP(B9,'eDESIND '!A7:N86,8,FALSE)","v":{"$error":"#REF!"}},null,null,null,{"$f":"VLOOKUP(B9,#REF!,13,FALSE)","v":{"$error":"#REF!"}},{"$f":"VLOOKUP(F28,Internal!$E$15:'Internal'!$F$19,2)","v":{"$error":"#REF!"}}]
["Schoolmates",{"$f":"VLOOKUP(B9,'eDESIND '!A7:N86,9,FALSE)","v":{"$error":"#REF!"}},null,null,null,{"$f":"VLOOKUP(B9,#REF!,15,FALSE)","v":{"$error":"#REF!"}},{"$f":"VLOOKUP(F29,Internal!$E$15:'Internal'!$F$19,2)","v":{"$error":"#REF!"}}]
["School Programmes & Environment",{"$f":"VLOOKUP(B9,'eDESIND '!A7:N86,10,FALSE)","v":{"$error":"#REF!"}},null,null,null,{"$f":"VLOOKUP(B9,#REF!,17,FALSE)","v":{"$error":"#REF!"}},{"$f":"VLOOKUP(F30,Internal!$E$15:'Internal'!$F$19,2)","v":{"$error":"#REF!"}}]
["Value Systems",{"$f":"VLOOKUP(B9,'eDESIND '!A7:N86,11,FALSE)","v":{"$error":"#REF!"}},null,null,null,{"$f":"VLOOKUP(B9,#REF!,19,FALSE)","v":{"$error":"#REF!"}},{"$f":"VLOOKUP(F31,Internal!$E$15:'Internal'!$F$19,2)","v":{"$error":"#REF!"}}]
["3 (A) Co-Curricular Activities"]
["Activity","Descriptive Indicator",null,null,null,"Grade","Grade Point"]
[{"$f":"VLOOKUP(B9,#REF!,3,FALSE)","v":{"$error":"#REF!"}},{"$f":"VLOOKUP(B9,'eDESIND '!A7:N86,12,FALSE)","v":{"$error":"#REF!"}},null,null,null,{"$f":"VLOOKUP(B9,#REF!,21,FALSE)","v":{"$error":"#REF!"}},{"$f":"VLOOKUP(F34,Internal!$E$15:'Internal'!$F$19,2)","v":{"$error":"#REF!"}}]
[{"$f":"VLOOKUP(B9,#REF!,4,FALSE)","v":{"$error":"#REF!"}},{"$f":"VLOOKUP(B9,'eDESIND '!A7:N86,13,FALSE)","v":{"$error":"#REF!"}},null,null,null,{"$f":"VLOOKUP(B9,#REF!,23,FALSE)","v":{"$error":"#REF!"}},{"$f":"VLOOKUP(F35,Internal!$E$15:'Internal'!$F$19,2)","v":{"$error":"#REF!"}}]
["3 (B) Physical and Health Education:"]
["Activity","Descriptive Indicator",null,null,null,"Grade","Grade Point"]
[{"$f":"VLOOKUP(B9,#REF!,5,FALSE)","v":{"$error":"#REF!"}},{"$f":"VLOOKUP(B9,'eDESIND '!A7:N86,14,FALSE)","v":{"$error":"#REF!"}},null,null,null,{"$f":"VLOOKUP(B9,#REF!,25,FALSE)","v":{"$error":"#REF!"}},{"$f":"VLOOKUP(F38,Internal!$E$15:'Internal'!$F$19,2)","v":{"$error":"#REF!"}}]
[{"$f":"VLOOKUP(B9,#REF!,6,FALSE)","v":{"$error":"#REF!"}},{"$f":"VLOOKUP(B9,'eDESIND '!A7:O86,15,FALSE)","v":{"$error":"#REF!"}},null,null,null,{"$f":"VLOOKUP(B9,#REF!,27,FALSE)","v":{"$error":"#REF!"}},{"$f":"VLOOKUP(F39,Internal!$E$15:'Internal'!$F$19,2)","v":{"$error":"#REF!"}}]
[]
[null,null,null,null,null,null,{"$f":"\"Total= \"&SUM(G17:G19,G22,G25,G28:G31,G34:G35,G38:G39)","v":{"$error":"#REF!"}}]

{"sheet":"eDESIND ","index":6,"n_rows":86,"n_cols":19,"rows_kept":86,"cut":false,"hidden":true,"merged":[[0,0,0,5],[2,2,2,4],[2,7,2,10],[2,5,2,6],[2,11,3,11],[2,13,3,13],[2,0,2,1],[3,0,5,0],[3,1,5,1],[1,0,1,5],[3,7,3,9],[3,3,4,3],[3,2,4,2],[3,4,4,4],[3,5,4,5],[3,6,4,6]]}
[]
[]
[]
["Roll No.","Name",null,null,null,null,null,null,null,null,null,null,null,null,null,null,null,"Utility Developed by : Paras Hosting,    Visit us at : www.ParasHosting.com",{"$f":"IF(R4=Main!C15,\"OK\",\"XX\")","v":"OK"}]
[null,null,null,null,null,null,null,null,null,null,null,null,null,null,null,null,null,"Help Line No. 097293 71551    Email : response@parasHosting.com",{"$f":"IF(R5=Main!C16,\"OK\",\"XX\")","v":"XX"}]
[null,null,"DI","DI","DI","DI","DI","DI","DI","DI","DI","DI","DI","DI","DI"]
[{"$f":"eSPAR!A6","v":1},{"$f":"eSPAR!B6","v":0},{"$f":"IF($R$7=\"Invalid\",\"Internal Error, Contact Support\",VLOOKUP(#REF!,#REF!,2,FALSE))","v":"Internal Error, Contact Support"},{"$f":"IF($R$7=\"Invalid\",\"Internal Error, Contact Support\",VLOOKUP(#REF!,#REF!,2,FALSE))","v":"Internal Error, Contact Support"},{"$f":"IF($R$7=\"Invalid\",\"Internal Error, Contact Support\",VLOOKUP(#REF!,#REF!,2,FALSE))","v":"Internal Error, Contact Support"},{"$f":"IF($R$7=\"Invalid\",\"Internal Error, Contact Support\",VLOOKUP(#REF!,#REF!,2,FALSE))","v":"Internal Error, Contact Support"},{"$f":"IF($R$7=\"Invalid\",\"Internal Error, Contact Support\",VLOOKUP(#REF!,#REF!,2,FALSE))","v":"Internal Error, Contact Support"},{"$f":"IF($R$7=\"Invalid\",\"Internal Error, Contact Support\",VLOOKUP(#REF!,#REF!,2,FALSE))","v":"Internal Error, Contact Support"},{"$f":"IF($R$7=\"Invalid\",\"Internal Error, Contact Support\",VLOOKUP(#REF!,#REF!,2,FALSE))","v":"Internal Error, Contact Support"},{"$f":"IF($R$7=\"Invalid\",\"Internal Error, Contact Support\",VLOOKUP(#REF!,#REF!,2,FALSE))","v":"Internal Error, Contact Support"},{"$f":"IF($R$7=\"Invalid\",\"Internal Error, Contact Support\",VLOOKUP(#REF!,#REF!,2,FALSE))","v":"Internal Error, Contact Support"},{"$f":"IF($R$7=\"Invalid\",\"Internal Error, Contact Support\",VLOOKUP(#REF!,#REF!,2,FALSE))","v":"Internal Error, Contact Support"},{"$f":"IF($R$7=\"Invalid\",\"Internal Error, Contact Support\",VLOOKUP(#REF!,#REF!,2,FALSE))","v":"Internal Error, Contact Support"},{"$f":"IF($R$7=\"Invalid\",\"Internal Error, Contact Support\",VLOOKUP(#REF!,#REF!,2,FALSE))","v":"Internal Error, Contact Support"},{"$f":"IF($R$7=\"Invalid\",\"Internal Error, Contact Support\",VLOOKUP(#REF!,#REF!,2,FALSE))","v":"Internal Error, Contact Support"},null,null,{"$f":"IF(AND(S4=\"OK\",S5=\"OK\"),\"OK\",\"Invalid\")","v":"Invalid"}]
[{"$f":"eSPAR!A7","v":0},{"$f":"eSPAR!B7","v":0},{"$f":"IF($R$7=\"Invalid\",\"Internal Error, Contact Support\",VLOOKUP(#REF!,#REF!,2,FALSE))","v":"Internal Error, Contact Support"},{"$f":"IF($R$7=\"Invalid\",\"Internal Error, Contact Support\",VLOOKUP(#REF!,#REF!,2,FALSE))","v":"Internal Error, Contact Support"},{"$f":"IF($R$7=\"Invalid\",\"Internal Error, Contact Support\",VLOOKUP(#REF!,#REF!,2,FALSE))","v":"Internal Error, Contact Support"},{"$f":"IF($R$7=\"Invalid\",\"Internal Error, Contact Support\",VLOOKUP(#REF!,#REF!,2,FALSE))","v":"Internal Error, Contact Support"},{"$f":"IF($R$7=\"Invalid\",\"Internal Error, Contact Support\",VLOOKUP(#REF!,#REF!,2,FALSE))","v":"Internal Error, Contact Support"},{"$f":"IF($R$7=\"Invalid\",\"Internal Error, Contact Support\",VLOOKUP(#REF!,#REF!,2,FALSE))","v":"Internal Error, Contact Support"},{"$f":"IF($R$7=\"Invalid\",\"Internal Error, Contact Support\",VLOOKUP(#REF!,#REF!,2,FALSE))","v":"Internal Error, Contact Support"},{"$f":"IF($R$7=\"Invalid\",\"Internal Error, Contact Support\",VLOOKUP(#REF!,#REF!,2,FALSE))","v":"Internal Error, Contact Support"},{"$f":"IF($R$7=\"Invalid\",\"Internal Error, Contact Support\",VLOOKUP(#REF!,#REF!,2,FALSE))","v":"Internal Error, Contact Support"},{"$f":"IF($R$7=\"Invalid\",\"Internal Error, Contact Support\",VLOOKUP(#REF!,#REF!,2,FALSE))","v":"Internal Error, Contact Support"},{"$f":"IF($R$7=\"Invalid\",\"Internal Error, Contact Support\",VLOOKUP(#REF!,#REF!,2,FALSE))","v":"Internal Error, Contact Support"},{"$f":"IF($R$7=\"Invalid\",\"Internal Error, Contact Support\",VLOOKUP(#REF!,#REF!,2,FALSE))","v":"Internal Error, Contact Support"},{"$f":"IF($R$7=\"Invalid\",\"Internal Error, Contact Support\",VLOOKUP(#REF!,#REF!,2,FALSE))","v":"Internal Error, Contact Support"}]
[{"$f":"eSPAR!A8","v":0},{"$f":"eSPAR!B8","v":0},{"$f":"IF($R$7=\"Invalid\",\"Internal Error, Contact Support\",VLOOKUP(#REF!,#REF!,2,FALSE))","v":"Internal Error, Contact Support"},{"$f":"IF($R$7=\"Invalid\",\"Internal Error, Contact Support\",VLOOKUP(#REF!,#REF!,2,FALSE))","v":"Internal Error, Contact Support"},{"$f":"IF($R$7=\"Invalid\",\"Internal Error, Contact Support\",VLOOKUP(#REF!,#REF!,2,FALSE))","v":"Internal Error, Contact Support"},{"$f":"IF($R$7=\"Invalid\",\"Internal Error, Contact Support\",VLOOKUP(#REF!,#REF!,2,FALSE))","v":"Internal Error, Contact Support"},{"$f":"IF($R$7=\"Invalid\",\"Internal Error, Contact Support\",VLOOKUP(#REF!,#REF!,2,FALSE))","v":"Internal Error, Contact Support"},{"$f":"IF($R$7=\"Invalid\",\"Internal Error, Contact Support\",VLOOKUP(#REF!,#REF!,2,FALSE))","v":"Internal Error, Contact Support"},{"$f":"IF($R$7=\"Invalid\",\"Internal Error, Contact Support\",VLOOKUP(#REF!,#REF!,2,FALSE))","v":"Internal Error, Contact Support"},{"$f":"IF($R$7=\"Invalid\",\"Internal Error, Contact Support\",VLOOKUP(#REF!,#REF!,2,FALSE))","v":"Internal Error, Contact Support"},{"$f":"IF($R$7=\"Invalid\",\"Internal Error, Contact Support\",VLOOKUP(#REF!,#REF!,2,FALSE))","v":"Internal Error, Contact Support"},{"$f":"IF($R$7=\"Invalid\",\"Internal Error, Contact Support\",VLOOKUP(#REF!,#REF!,2,FALSE))","v":"Internal Error, Contact Support"},{"$f":"IF($R$7=\"Invalid\",\"Internal Error, Contact Support\",VLOOKUP(#REF!,#REF!,2,FALSE))","v":"Internal Error, Contact Support"},{"$f":"IF($R$7=\"Invalid\",\"Internal Error, Contact Support\",VLOOKUP(#REF!,#REF!,2,FALSE))","v":"Internal Error, Contact Support"},{"$f":"IF($R$7=\"Invalid\",\"Internal Error, Contact Support\",VLOOKUP(#REF!,#REF!,2,FALSE))","v":"Internal Error, Contact Support"}]
[{"$f":"eSPAR!A9","v":0},{"$f":"eSPAR!B9","v":0},{"$f":"IF($R$7=\"Invalid\",\"Internal Error, Contact Support\",VLOOKUP(#REF!,#REF!,2,FALSE))","v":"Internal Error, Contact Support"},{"$f":"IF($R$7=\"Invalid\",\"Internal Error, Contact Support\",VLOOKUP(#REF!,#REF!,2,FALSE))","v":"Internal Error, Contact Support"},{"$f":"IF($R$7=\"Invalid\",\"Internal Error, Contact Support\",VLOOKUP(#REF!,#REF!,2,FALSE))","v":"Internal Error, Contact Support"},{"$f":"IF($R$7=\"Invalid\",\"Internal Error, Contact Support\",VLOOKUP(#REF!,#REF!,2,FALSE))","v":"Internal Error, Contact Support"},{"$f":"IF($R$7=\"Invalid\",\"Internal Error, Contact Support\",VLOOKUP(#REF!,#REF!,2,FALSE))","v":"Internal Error, Contact Support"},{"$f":"IF($R$7=\"Invalid\",\"Internal Error, Contact Support\",VLOOKUP(#REF!,#REF!,2,FALSE))","v":"Internal Error, Contact Support"},{"$f":"IF($R$7=\"Invalid\",\"Internal Error, Contact Support\",VLOOKUP(#REF!,#REF!,2,FALSE))","v":"Internal Error, Contact Support"},{"$f":"IF($R$7=\"Invalid\",\"Internal Error, Contact Support\",VLOOKUP(#REF!,#REF!,2,FALSE))","v":"Internal Error, Contact Support"},{"$f":"IF($R$7=\"Invalid\",\"Internal Error, Contact Support\",VLOOKUP(#REF!,#REF!,2,FALSE))","v":"Internal Error, Contact Support"},{"$f":"IF($R$7=\"Invalid\",\"Internal Error, Contact Support\",VLOOKUP(#REF!,#REF!,2,FALSE))","v":"Internal Error, Contact Support"},{"$f":"IF($R$7=\"Invalid\",\"Internal Error, Contact Support\",VLOOKUP(#REF!,#REF!,2,FALSE))","v":"Internal Error, Contact Support"},{"$f":"IF($R$7=\"Invalid\",\"Internal Error, Contact Support\",VLOOKUP(#REF!,#REF!,2,FALSE))","v":"Internal Error, Contact Support"},{"$f":"IF($R$7=\"Invalid\",\"Internal Error, Contact Support\",VLOOKUP(#REF!,#REF!,2,FALSE))","v":"Internal Error, Contact Support"}]
[{"$f":"eSPAR!A10","v":0},{"$f":"eSPAR!B10","v":0},{"$f":"IF($R$7=\"Invalid\",\"Internal Error, Contact Support\",VLOOKUP(#REF!,#REF!,2,FALSE))","v":"Internal Error, Contact Support"},{"$f":"IF($R$7=\"Invalid\",\"Internal Error, Contact Support\",VLOOKUP(#REF!,#REF!,2,FALSE))","v":"Internal Error, Contact Support"},{"$f":"IF($R$7=\"Invalid\",\"Internal Error, Contact Support\",VLOOKUP(#REF!,#REF!,2,FALSE))","v":"Internal Error, Contact Support"},{"$f":"IF($R$7=\"Invalid\",\"Internal Error, Contact Support\",VLOOKUP(#REF!,#REF!,2,FALSE))","v":"Internal Error, Contact Support"},{"$f":"IF($R$7=\"Invalid\",\"Internal Error, Contact Support\",VLOOKUP(#REF!,#REF!,2,FALSE))","v":"Internal Error, Contact Support"},{"$f":"IF($R$7=\"Invalid\",\"Internal Error, Contact Support\",VLOOKUP(#REF!,#REF!,2,FALSE))","v":"Internal Error, Contact Support"},{"$f":"IF($R$7=\"Invalid\",\"Internal Error, Contact Support\",VLOOKUP(#REF!,#REF!,2,FALSE))","v":"Internal Error, Contact Support"},{"$f":"IF($R$7=\"Invalid\",\"Internal Error, Contact Support\",VLOOKUP(#REF!,#REF!,2,FALSE))","v":"Internal Error, Contact Support"},{"$f":"IF($R$7=\"Invalid\",\"Internal Error, Contact Support\",VLOOKUP(#REF!,#REF!,2,FALSE))","v":"Internal Error, Contact Support"},{"$f":"IF($R$7=\"Invalid\",\"Internal Error, Contact Support\",VLOOKUP(#REF!,#REF!,2,FALSE))","v":"Internal Error, Contact Support"},{"$f":"IF($R$7=\"Invalid\",\"Internal Error, Contact Support\",VLOOKUP(#REF!,#REF!,2,FALSE))","v":"Internal Error, Contact Support"},{"$f":"IF($R$7=\"Invalid\",\"Internal Error, Contact Support\",VLOOKUP(#REF!,#REF!,2,FALSE))","v":"Internal Error, Contact Support"},{"$f":"IF($R$7=\"Invalid\",\"Internal Error, Contact Support\",VLOOKUP(#REF!,#REF!,2,FALSE))","v":"Internal Error, Contact Support"}]
[{"$f":"eSPAR!A11","v":0},{"$f":"eSPAR!B11","v":0},{"$f":"IF($R$7=\"Invalid\",\"Internal Error, Contact Support\",VLOOKUP(#REF!,#REF!,2,FALSE))","v":"Internal Error, Contact Support"},{"$f":"IF($R$7=\"Invalid\",\"Internal Error, Contact Support\",VLOOKUP(#REF!,#REF!,2,FALSE))","v":"Internal Error, Contact Support"},{"$f":"IF($R$7=\"Invalid\",\"Internal Error, Contact Support\",VLOOKUP(#REF!,#REF!,2,FALSE))","v":"Internal Error, Contact Support"},{"$f":"IF($R$7=\"Invalid\",\"Internal Error, Contact Support\",VLOOKUP(#REF!,#REF!,2,FALSE))","v":"Internal Error, Contact Support"},{"$f":"IF($R$7=\"Invalid\",\"Internal Error, Contact Support\",VLOOKUP(#REF!,#REF!,2,FALSE))","v":"Internal Error, Contact Support"},{"$f":"IF($R$7=\"Invalid\",\"Internal Error, Contact Support\",VLOOKUP(#REF!,#REF!,2,FALSE))","v":"Internal Error, Contact Support"},{"$f":"IF($R$7=\"Invalid\",\"Internal Error, Contact Support\",VLOOKUP(#REF!,#REF!,2,FALSE))","v":"Internal Error, Contact Support"},{"$f":"IF($R$7=\"Invalid\",\"Internal Error, Contact Support\",VLOOKUP(#REF!,#REF!,2,FALSE))","v":"Internal Error, Contact Support"},{"$f":"IF($R$7=\"Invalid\",\"Internal Error, Contact Support\",VLOOKUP(#REF!,#REF!,2,FALSE))","v":"Internal Error, Contact Support"},{"$f":"IF($R$7=\"Invalid\",\"Internal Error, Contact Support\",VLOOKUP(#REF!,#REF!,2,FALSE))","v":"Internal Error, Contact Support"},{"$f":"IF($R$7=\"Invalid\",\"Internal Error, Contact Support\",VLOOKUP(#REF!,#REF!,2,FALSE))","v":"Internal Error, Contact Support"},{"$f":"IF($R$7=\"Invalid\",\"Internal Error, Contact Support\",VLOOKUP(#REF!,#REF!,2,FALSE))","v":"Internal Error, Contact Support"},{"$f":"IF($R$7=\"Invalid\",\"Internal Error, Contact Support\",VLOOKUP(#REF!,#REF!,2,FALSE))","v":"Internal Error, Contact Support"}]
[{"$f":"eSPAR!A12","v":0},{"$f":"eSPAR!B12","v":0},{"$f":"IF($R$7=\"Invalid\",\"Internal Error, Contact Support\",VLOOKUP(#REF!,#REF!,2,FALSE))","v":"Internal Error, Contact Support"},{"$f":"IF($R$7=\"Invalid\",\"Internal Error, Contact Support\",VLOOKUP(#REF!,#REF!,2,FALSE))","v":"Internal Error, Contact Support"},{"$f":"IF($R$7=\"Invalid\",\"Internal Error, Contact Support\",VLOOKUP(#REF!,#REF!,2,FALSE))","v":"Internal Error, Contact Support"},{"$f":"IF($R$7=\"Invalid\",\"Internal Error, Contact Support\",VLOOKUP(#REF!,#REF!,2,FALSE))","v":"Internal Error, Contact Support"},{"$f":"IF($R$7=\"Invalid\",\"Internal Error, Contact Support\",VLOOKUP(#REF!,#REF!,2,FALSE))","v":"Internal Error, Contact Support"},{"$f":"IF($R$7=\"Invalid\",\"Internal Error, Contact Support\",VLOOKUP(#REF!,#REF!,2,FALSE))","v":"Internal Error, Contact Support"},{"$f":"IF($R$7=\"Invalid\",\"Internal Error, Contact Support\",VLOOKUP(#REF!,#REF!,2,FALSE))","v":"Internal Error, Contact Support"},{"$f":"IF($R$7=\"Invalid\",\"Internal Error, Contact Support\",VLOOKUP(#REF!,#REF!,2,FALSE))","v":"Internal Error, Contact Support"},{"$f":"IF($R$7=\"Invalid\",\"Internal Error, Contact Support\",VLOOKUP(#REF!,#REF!,2,FALSE))","v":"Internal Error, Contact Support"},{"$f":"IF($R$7=\"Invalid\",\"Internal Error, Contact Support\",VLOOKUP(#REF!,#REF!,2,FALSE))","v":"Internal Error, Contact Support"},{"$f":"IF($R$7=\"Invalid\",\"Internal Error, Contact Support\",VLOOKUP(#REF!,#REF!,2,FALSE))","v":"Internal Error, Contact Support"},{"$f":"IF($R$7=\"Invalid\",\"Internal Error, Contact Support\",VLOOKUP(#REF!,#REF!,2,FALSE))","v":"Internal Error, Contact Support"},{"$f":"IF($R$7=\"Invalid\",\"Internal Error, Contact Support\",VLOOKUP(#REF!,#REF!,2,FALSE))","v":"Internal Error, Contact Support"}]
[{"$f":"eSPAR!A13","v":0},{"$f":"eSPAR!B13","v":0},{"$f":"IF($R$7=\"Invalid\",\"Internal Error, Contact Support\",VLOOKUP(#REF!,#REF!,2,FALSE))","v":"Internal Error, Contact Support"},{"$f":"IF($R$7=\"Invalid\",\"Internal Error, Contact Support\",VLOOKUP(#REF!,#REF!,2,FALSE))","v":"Internal Error, Contact Support"},{"$f":"IF($R$7=\"Invalid\",\"Internal Error, Contact Support\",VLOOKUP(#REF!,#REF!,2,FALSE))","v":"Internal Error, Contact Support"},{"$f":"IF($R$7=\"Invalid\",\"Internal Error, Contact Support\",VLOOKUP(#REF!,#REF!,2,FALSE))","v":"Internal Error, Contact Support"},{"$f":"IF($R$7=\"Invalid\",\"Internal Error, Contact Support\",VLOOKUP(#REF!,#REF!,2,FALSE))","v":"Internal Error, Contact Support"},{"$f":"IF($R$7=\"Invalid\",\"Internal Error, Contact Support\",VLOOKUP(#REF!,#REF!,2,FALSE))","v":"Internal Error, Contact Support"},{"$f":"IF($R$7=\"Invalid\",\"Internal Error, Contact Support\",VLOOKUP(#REF!,#REF!,2,FALSE))","v":"Internal Error, Contact Support"},{"$f":"IF($R$7=\"Invalid\",\"Internal Error, Contact Support\",VLOOKUP(#REF!,#REF!,2,FALSE))","v":"Internal Error, Contact Support"},{"$f":"IF($R$7=\"Invalid\",\"Internal Error, Contact Support\",VLOOKUP(#REF!,#REF!,2,FALSE))","v":"Internal Error, Contact Support"},{"$f":"IF($R$7=\"Invalid\",\"Internal Error, Contact Support\",VLOOKUP(#REF!,#REF!,2,FALSE))","v":"Internal Error, Contact Support"},{"$f":"IF($R$7=\"Invalid\",\"Internal Error, Contact Support\",VLOOKUP(#REF!,#REF!,2,FALSE))","v":"Internal Error, Contact Support"},{"$f":"IF($R$7=\"Invalid\",\"Internal Error, Contact Support\",VLOOKUP(#REF!,#REF!,2,FALSE))","v":"Internal Error, Contact Support"},{"$f":"IF($R$7=\"Invalid\",\"Internal Error, Contact Support\",VLOOKUP(#REF!,#REF!,2,FALSE))","v":"Internal Error, Contact Support"}]
[{"$f":"eSPAR!A14","v":0},{"$f":"eSPAR!B14","v":0},{"$f":"IF($R$7=\"Invalid\",\"Internal Error, Contact Support\",VLOOKUP(#REF!,#REF!,2,FALSE))","v":"Internal Error, Contact Support"},{"$f":"IF($R$7=\"Invalid\",\"Internal Error, Contact Support\",VLOOKUP(#REF!,#REF!,2,FALSE))","v":"Internal Error, Contact Support"},{"$f":"IF($R$7=\"Invalid\",\"Internal Error, Contact Support\",VLOOKUP(#REF!,#REF!,2,FALSE))","v":"Internal Error, Contact Support"},{"$f":"IF($R$7=\"Invalid\",\"Internal Error, Contact Support\",VLOOKUP(#REF!,#REF!,2,FALSE))","v":"Internal Error, Contact Support"},{"$f":"IF($R$7=\"Invalid\",\"Internal Error, Contact Support\",VLOOKUP(#REF!,#REF!,2,FALSE))","v":"Internal Error, Contact Support"},{"$f":"IF($R$7=\"Invalid\",\"Internal Error, Contact Support\",VLOOKUP(#REF!,#REF!,2,FALSE))","v":"Internal Error, Contact Support"},{"$f":"IF($R$7=\"Invalid\",\"Internal Error, Contact Support\",VLOOKUP(#REF!,#REF!,2,FALSE))","v":"Internal Error, Contact Support"},{"$f":"IF($R$7=\"Invalid\",\"Internal Error, Contact Support\",VLOOKUP(#REF!,#REF!,2,FALSE))","v":"Internal Error, Contact Support"},{"$f":"IF($R$7=\"Invalid\",\"Internal Error, Contact Support\",VLOOKUP(#REF!,#REF!,2,FALSE))","v":"Internal Error, Contact Support"},{"$f":"IF($R$7=\"Invalid\",\"Internal Error, Contact Support\",VLOOKUP(#REF!,#REF!,2,FALSE))","v":"Internal Error, Contact Support"},{"$f":"IF($R$7=\"Invalid\",\"Internal Error, Contact Support\",VLOOKUP(#REF!,#REF!,2,FALSE))","v":"Internal Error, Contact Support"},{"$f":"IF($R$7=\"Invalid\",\"Internal Error, Contact Support\",VLOOKUP(#REF!,#REF!,2,FALSE))","v":"Internal Error, Contact Support"},{"$f":"IF($R$7=\"Invalid\",\"Internal Error, Contact Support\",VLOOKUP(#REF!,#REF!,2,FALSE))","v":"Internal Error, Contact Support"}]
[{"$f":"eSPAR!A15","v":0},{"$f":"eSPAR!B15","v":0},{"$f":"IF($R$7=\"Invalid\",\"Internal Error, Contact Support\",VLOOKUP(#REF!,#REF!,2,FALSE))","v":"Internal Error, Contact Support"},{"$f":"IF($R$7=\"Invalid\",\"Internal Error, Contact Support\",VLOOKUP(#REF!,#REF!,2,FALSE))","v":"Internal Error, Contact Support"},{"$f":"IF($R$7=\"Invalid\",\"Internal Error, Contact Support\",VLOOKUP(#REF!,#REF!,2,FALSE))","v":"Internal Error, Contact Support"},{"$f":"IF($R$7=\"Invalid\",\"Internal Error, Contact Support\",VLOOKUP(#REF!,#REF!,2,FALSE))","v":"Internal Error, Contact Support"},{"$f":"IF($R$7=\"Invalid\",\"Internal Error, Contact Support\",VLOOKUP(#REF!,#REF!,2,FALSE))","v":"Internal Error, Contact Support"},{"$f":"IF($R$7=\"Invalid\",\"Internal Error, Contact Support\",VLOOKUP(#REF!,#REF!,2,FALSE))","v":"Internal Error, Contact Support"},{"$f":"IF($R$7=\"Invalid\",\"Internal Error, Contact Support\",VLOOKUP(#REF!,#REF!,2,FALSE))","v":"Internal Error, Contact Support"},{"$f":"IF($R$7=\"Invalid\",\"Internal Error, Contact Support\",VLOOKUP(#REF!,#REF!,2,FALSE))","v":"Internal Error, Contact Support"},{"$f":"IF($R$7=\"Invalid\",\"Internal Error, Contact Support\",VLOOKUP(#REF!,#REF!,2,FALSE))","v":"Internal Error, Contact Support"},{"$f":"IF($R$7=\"Invalid\",\"Internal Error, Contact Support\",VLOOKUP(#REF!,#REF!,2,FALSE))","v":"Internal Error, Contact Support"},{"$f":"IF($R$7=\"Invalid\",\"Internal Error, Contact Support\",VLOOKUP(#REF!,#REF!,2,FALSE))","v":"Internal Error, Contact Support"},{"$f":"IF($R$7=\"Invalid\",\"Internal Error, Contact Support\",VLOOKUP(#REF!,#REF!,2,FALSE))","v":"Internal Error, Contact Support"},{"$f":"IF($R$7=\"Invalid\",\"Internal Error, Contact Support\",VLOOKUP(#REF!,#REF!,2,FALSE))","v":"Internal Error, Contact Support"}]
[{"$f":"eSPAR!A16","v":0},{"$f":"eSPAR!B16","v":0},{"$f":"IF($R$7=\"Invalid\",\"Internal Error, Contact Support\",VLOOKUP(#REF!,#REF!,2,FALSE))","v":"Internal Error, Contact Support"},{"$f":"IF($R$7=\"Invalid\",\"Internal Error, Contact Support\",VLOOKUP(#REF!,#REF!,2,FALSE))","v":"Internal Error, Contact Support"},{"$f":"IF($R$7=\"Invalid\",\"Internal Error, Contact Support\",VLOOKUP(#REF!,#REF!,2,FALSE))","v":"Internal Error, Contact Support"},{"$f":"IF($R$7=\"Invalid\",\"Internal Error, Contact Support\",VLOOKUP(#REF!,#REF!,2,FALSE))","v":"Internal Error, Contact Support"},{"$f":"IF($R$7=\"Invalid\",\"Internal Error, Contact Support\",VLOOKUP(#REF!,#REF!,2,FALSE))","v":"Internal Error, Contact Support"},{"$f":"IF($R$7=\"Invalid\",\"Internal Error, Contact Support\",VLOOKUP(#REF!,#REF!,2,FALSE))","v":"Internal Error, Contact Support"},{"$f":"IF($R$7=\"Invalid\",\"Internal Error, Contact Support\",VLOOKUP(#REF!,#REF!,2,FALSE))","v":"Internal Error, Contact Support"},{"$f":"IF($R$7=\"Invalid\",\"Internal Error, Contact Support\",VLOOKUP(#REF!,#REF!,2,FALSE))","v":"Internal Error, Contact Support"},{"$f":"IF($R$7=\"Invalid\",\"Internal Error, Contact Support\",VLOOKUP(#REF!,#REF!,2,FALSE))","v":"Internal Error, Contact Support"},{"$f":"IF($R$7=\"Invalid\",\"Internal Error, Contact Support\",VLOOKUP(#REF!,#REF!,2,FALSE))","v":"Internal Error, Contact Support"},{"$f":"IF($R$7=\"Invalid\",\"Internal Error, Contact Support\",VLOOKUP(#REF!,#REF!,2,FALSE))","v":"Internal Error, Contact Support"},{"$f":"IF($R$7=\"Invalid\",\"Internal Error, Contact Support\",VLOOKUP(#REF!,#REF!,2,FALSE))","v":"Internal Error, Contact Support"},{"$f":"IF($R$7=\"Invalid\",\"Internal Error, Contact Support\",VLOOKUP(#REF!,#REF!,2,FALSE))","v":"Internal Error, Contact Support"}]
[{"$f":"eSPAR!A17","v":0},{"$f":"eSPAR!B17","v":0},{"$f":"IF($R$7=\"Invalid\",\"Internal Error, Contact Support\",VLOOKUP(#REF!,#REF!,2,FALSE))","v":"Internal Error, Contact Support"},{"$f":"IF($R$7=\"Invalid\",\"Internal Error, Contact Support\",VLOOKUP(#REF!,#REF!,2,FALSE))","v":"Internal Error, Contact Support"},{"$f":"IF($R$7=\"Invalid\",\"Internal Error, Contact Support\",VLOOKUP(#REF!,#REF!,2,FALSE))","v":"Internal Error, Contact Support"},{"$f":"IF($R$7=\"Invalid\",\"Internal Error, Contact Support\",VLOOKUP(#REF!,#REF!,2,FALSE))","v":"Internal Error, Contact Support"},{"$f":"IF($R$7=\"Invalid\",\"Internal Error, Contact Support\",VLOOKUP(#REF!,#REF!,2,FALSE))","v":"Internal Error, Contact Support"},{"$f":"IF($R$7=\"Invalid\",\"Internal Error, Contact Support\",VLOOKUP(#REF!,#REF!,2,FALSE))","v":"Internal Error, Contact Support"},{"$f":"IF($R$7=\"Invalid\",\"Internal Error, Contact Support\",VLOOKUP(#REF!,#REF!,2,FALSE))","v":"Internal Error, Contact Support"},{"$f":"IF($R$7=\"Invalid\",\"Internal Error, Contact Support\",VLOOKUP(#REF!,#REF!,2,FALSE))","v":"Internal Error, Contact Support"},{"$f":"IF($R$7=\"Invalid\",\"Internal Error, Contact Support\",VLOOKUP(#REF!,#REF!,2,FALSE))","v":"Internal Error, Contact Support"},{"$f":"IF($R$7=\"Invalid\",\"Internal Error, Contact Support\",VLOOKUP(#REF!,#REF!,2,FALSE))","v":"Internal Error, Contact Support"},{"$f":"IF($R$7=\"Invalid\",\"Internal Error, Contact Support\",VLOOKUP(#REF!,#REF!,2,FALSE))","v":"Internal Error, Contact Support"},{"$f":"IF($R$7=\"Invalid\",\"Internal Error, Contact Support\",VLOOKUP(#REF!,#REF!,2,FALSE))","v":"Internal Error, Contact Support"},{"$f":"IF($R$7=\"Invalid\",\"Internal Error, Contact Support\",VLOOKUP(#REF!,#REF!,2,FALSE))","v":"Internal Error, Contact Support"}]
[{"$f":"eSPAR!A18","v":0},{"$f":"eSPAR!B18","v":0},{"$f":"IF($R$7=\"Invalid\",\"Internal Error, Contact Support\",VLOOKUP(#REF!,#REF!,2,FALSE))","v":"Internal Error, Contact Support"},{"$f":"IF($R$7=\"Invalid\",\"Internal Error, Contact Support\",VLOOKUP(#REF!,#REF!,2,FALSE))","v":"Internal Error, Contact Support"},{"$f":"IF($R$7=\"Invalid\",\"Internal Error, Contact Support\",VLOOKUP(#REF!,#REF!,2,FALSE))","v":"Internal Error, Contact Support"},{"$f":"IF($R$7=\"Invalid\",\"Internal Error, Contact Support\",VLOOKUP(#REF!,#REF!,2,FALSE))","v":"Internal Error, Contact Support"},{"$f":"IF($R$7=\"Invalid\",\"Internal Error, Contact Support\",VLOOKUP(#REF!,#REF!,2,FALSE))","v":"Internal Error, Contact Support"},{"$f":"IF($R$7=\"Invalid\",\"Internal Error, Contact Support\",VLOOKUP(#REF!,#REF!,2,FALSE))","v":"Internal Error, Contact Support"},{"$f":"IF($R$7=\"Invalid\",\"Internal Error, Contact Support\",VLOOKUP(#REF!,#REF!,2,FALSE))","v":"Internal Error, Contact Support"},{"$f":"IF($R$7=\"Invalid\",\"Internal Error, Contact Support\",VLOOKUP(#REF!,#REF!,2,FALSE))","v":"Internal Error, Contact Support"},{"$f":"IF($R$7=\"Invalid\",\"Internal Error, Contact Support\",VLOOKUP(#REF!,#REF!,2,FALSE))","v":"Internal Error, Contact Support"},{"$f":"IF($R$7=\"Invalid\",\"Internal Error, Contact Support\",VLOOKUP(#REF!,#REF!,2,FALSE))","v":"Internal Error, Contact Support"},{"$f":"IF($R$7=\"Invalid\",\"Internal Error, Contact Support\",VLOOKUP(#REF!,#REF!,2,FALSE))","v":"Internal Error, Contact Support"},{"$f":"IF($R$7=\"Invalid\",\"Internal Error, Contact Support\",VLOOKUP(#REF!,#REF!,2,FALSE))","v":"Internal Error, Contact Support"},{"$f":"IF($R$7=\"Invalid\",\"Internal Error, Contact Support\",VLOOKUP(#REF!,#REF!,2,FALSE))","v":"Internal Error, Contact Support"}]
[{"$f":"eSPAR!A19","v":0},{"$f":"eSPAR!B19","v":0},{"$f":"IF($R$7=\"Invalid\",\"Internal Error, Contact Support\",VLOOKUP(#REF!,#REF!,2,FALSE))","v":"Internal Error, Contact Support"},{"$f":"IF($R$7=\"Invalid\",\"Internal Error, Contact Support\",VLOOKUP(#REF!,#REF!,2,FALSE))","v":"Internal Error, Contact Support"},{"$f":"IF($R$7=\"Invalid\",\"Internal Error, Contact Support\",VLOOKUP(#REF!,#REF!,2,FALSE))","v":"Internal Error, Contact Support"},{"$f":"IF($R$7=\"Invalid\",\"Internal Error, Contact Support\",VLOOKUP(#REF!,#REF!,2,FALSE))","v":"Internal Error, Contact Support"},{"$f":"IF($R$7=\"Invalid\",\"Internal Error, Contact Support\",VLOOKUP(#REF!,#REF!,2,FALSE))","v":"Internal Error, Contact Support"},{"$f":"IF($R$7=\"Invalid\",\"Internal Error, Contact Support\",VLOOKUP(#REF!,#REF!,2,FALSE))","v":"Internal Error, Contact Support"},{"$f":"IF($R$7=\"Invalid\",\"Internal Error, Contact Support\",VLOOKUP(#REF!,#REF!,2,FALSE))","v":"Internal Error, Contact Support"},{"$f":"IF($R$7=\"Invalid\",\"Internal Error, Contact Support\",VLOOKUP(#REF!,#REF!,2,FALSE))","v":"Internal Error, Contact Support"},{"$f":"IF($R$7=\"Invalid\",\"Internal Error, Contact Support\",VLOOKUP(#REF!,#REF!,2,FALSE))","v":"Internal Error, Contact Support"},{"$f":"IF($R$7=\"Invalid\",\"Internal Error, Contact Support\",VLOOKUP(#REF!,#REF!,2,FALSE))","v":"Internal Error, Contact Support"},{"$f":"IF($R$7=\"Invalid\",\"Internal Error, Contact Support\",VLOOKUP(#REF!,#REF!,2,FALSE))","v":"Internal Error, Contact Support"},{"$f":"IF($R$7=\"Invalid\",\"Internal Error, Contact Support\",VLOOKUP(#REF!,#REF!,2,FALSE))","v":"Internal Error, Contact Support"},{"$f":"IF($R$7=\"Invalid\",\"Internal Error, Contact Support\",VLOOKUP(#REF!,#REF!,2,FALSE))","v":"Internal Error, Contact Support"}]
[{"$f":"eSPAR!A20","v":0},{"$f":"eSPAR!B20","v":0},{"$f":"IF($R$7=\"Invalid\",\"Internal Error, Contact Support\",VLOOKUP(#REF!,#REF!,2,FALSE))","v":"Internal Error, Contact Support"},{"$f":"IF($R$7=\"Invalid\",\"Internal Error, Contact Support\",VLOOKUP(#REF!,#REF!,2,FALSE))","v":"Internal Error, Contact Support"},{"$f":"IF($R$7=\"Invalid\",\"Internal Error, Contact Support\",VLOOKUP(#REF!,#REF!,2,FALSE))","v":"Internal Error, Contact Support"},{"$f":"IF($R$7=\"Invalid\",\"Internal Error, Contact Support\",VLOOKUP(#REF!,#REF!,2,FALSE))","v":"Internal Error, Contact Support"},{"$f":"IF($R$7=\"Invalid\",\"Internal Error, Contact Support\",VLOOKUP(#REF!,#REF!,2,FALSE))","v":"Internal Error, Contact Support"},{"$f":"IF($R$7=\"Invalid\",\"Internal Error, Contact Support\",VLOOKUP(#REF!,#REF!,2,FALSE))","v":"Internal Error, Contact Support"},{"$f":"IF($R$7=\"Invalid\",\"Internal Error, Contact Support\",VLOOKUP(#REF!,#REF!,2,FALSE))","v":"Internal Error, Contact Support"},{"$f":"IF($R$7=\"Invalid\",\"Internal Error, Contact Support\",VLOOKUP(#REF!,#REF!,2,FALSE))","v":"Internal Error, Contact Support"},{"$f":"IF($R$7=\"Invalid\",\"Internal Error, Contact Support\",VLOOKUP(#REF!,#REF!,2,FALSE))","v":"Internal Error, Contact Support"},{"$f":"IF($R$7=\"Invalid\",\"Internal Error, Contact Support\",VLOOKUP(#REF!,#REF!,2,FALSE))","v":"Internal Error, Contact Support"},{"$f":"IF($R$7=\"Invalid\",\"Internal Error, Contact Support\",VLOOKUP(#REF!,#REF!,2,FALSE))","v":"Internal Error, Contact Support"},{"$f":"IF($R$7=\"Invalid\",\"Internal Error, Contact Support\",VLOOKUP(#REF!,#REF!,2,FALSE))","v":"Internal Error, Contact Support"},{"$f":"IF($R$7=\"Invalid\",\"Internal Error, Contact Support\",VLOOKUP(#REF!,#REF!,2,FALSE))","v":"Internal Error, Contact Support"}]
[{"$f":"eSPAR!A21","v":0},{"$f":"eSPAR!B21","v":0},{"$f":"IF($R$7=\"Invalid\",\"Internal Error, Contact Support\",VLOOKUP(#REF!,#REF!,2,FALSE))","v":"Internal Error, Contact Support"},{"$f":"IF($R$7=\"Invalid\",\"Internal Error, Contact Support\",VLOOKUP(#REF!,#REF!,2,FALSE))","v":"Internal Error, Contact Support"},{"$f":"IF($R$7=\"Invalid\",\"Internal Error, Contact Support\",VLOOKUP(#REF!,#REF!,2,FALSE))","v":"Internal Error, Contact Support"},{"$f":"IF($R$7=\"Invalid\",\"Internal Error, Contact Support\",VLOOKUP(#REF!,#REF!,2,FALSE))","v":"Internal Error, Contact Support"},{"$f":"IF($R$7=\"Invalid\",\"Internal Error, Contact Support\",VLOOKUP(#REF!,#REF!,2,FALSE))","v":"Internal Error, Contact Support"},{"$f":"IF($R$7=\"Invalid\",\"Internal Error, Contact Support\",VLOOKUP(#REF!,#REF!,2,FALSE))","v":"Internal Error, Contact Support"},{"$f":"IF($R$7=\"Invalid\",\"Internal Error, Contact Support\",VLOOKUP(#REF!,#REF!,2,FALSE))","v":"Internal Error, Contact Support"},{"$f":"IF($R$7=\"Invalid\",\"Internal Error, Contact Support\",VLOOKUP(#REF!,#REF!,2,FALSE))","v":"Internal Error, Contact Support"},{"$f":"IF($R$7=\"Invalid\",\"Internal Error, Contact Support\",VLOOKUP(#REF!,#REF!,2,FALSE))","v":"Internal Error, Contact Support"},{"$f":"IF($R$7=\"Invalid\",\"Internal Error, Contact Support\",VLOOKUP(#REF!,#REF!,2,FALSE))","v":"Internal Error, Contact Support"},{"$f":"IF($R$7=\"Invalid\",\"Internal Error, Contact Support\",VLOOKUP(#REF!,#REF!,2,FALSE))","v":"Internal Error, Contact Support"},{"$f":"IF($R$7=\"Invalid\",\"Internal Error, Contact Support\",VLOOKUP(#REF!,#REF!,2,FALSE))","v":"Internal Error, Contact Support"},{"$f":"IF($R$7=\"Invalid\",\"Internal Error, Contact Support\",VLOOKUP(#REF!,#REF!,2,FALSE))","v":"Internal Error, Contact Support"}]
[{"$f":"eSPAR!A22","v":0},{"$f":"eSPAR!B22","v":0},{"$f":"IF($R$7=\"Invalid\",\"Internal Error, Contact Support\",VLOOKUP(#REF!,#REF!,2,FALSE))","v":"Internal Error, Contact Support"},{"$f":"IF($R$7=\"Invalid\",\"Internal Error, Contact Support\",VLOOKUP(#REF!,#REF!,2,FALSE))","v":"Internal Error, Contact Support"},{"$f":"IF($R$7=\"Invalid\",\"Internal Error, Contact Support\",VLOOKUP(#REF!,#REF!,2,FALSE))","v":"Internal Error, Contact Support"},{"$f":"IF($R$7=\"Invalid\",\"Internal Error, Contact Support\",VLOOKUP(#REF!,#REF!,2,FALSE))","v":"Internal Error, Contact Support"},{"$f":"IF($R$7=\"Invalid\",\"Internal Error, Contact Support\",VLOOKUP(#REF!,#REF!,2,FALSE))","v":"Internal Error, Contact Support"},{"$f":"IF($R$7=\"Invalid\",\"Internal Error, Contact Support\",VLOOKUP(#REF!,#REF!,2,FALSE))","v":"Internal Error, Contact Support"},{"$f":"IF($R$7=\"Invalid\",\"Internal Error, Contact Support\",VLOOKUP(#REF!,#REF!,2,FALSE))","v":"Internal Error, Contact Support"},{"$f":"IF($R$7=\"Invalid\",\"Internal Error, Contact Support\",VLOOKUP(#REF!,#REF!,2,FALSE))","v":"Internal Error, Contact Support"},{"$f":"IF($R$7=\"Invalid\",\"Internal Error, Contact Support\",VLOOKUP(#REF!,#REF!,2,FALSE))","v":"Internal Error, Contact Support"},{"$f":"IF($R$7=\"Invalid\",\"Internal Error, Contact Support\",VLOOKUP(#REF!,#REF!,2,FALSE))","v":"Internal Error, Contact Support"},{"$f":"IF($R$7=\"Invalid\",\"Internal Error, Contact Support\",VLOOKUP(#REF!,#REF!,2,FALSE))","v":"Internal Error, Contact Support"},{"$f":"IF($R$7=\"Invalid\",\"Internal Error, Contact Support\",VLOOKUP(#REF!,#REF!,2,FALSE))","v":"Internal Error, Contact Support"},{"$f":"IF($R$7=\"Invalid\",\"Internal Error, Contact Support\",VLOOKUP(#REF!,#REF!,2,FALSE))","v":"Internal Error, Contact Support"}]
[{"$f":"eSPAR!A23","v":0},{"$f":"eSPAR!B23","v":0},{"$f":"IF($R$7=\"Invalid\",\"Internal Error, Contact Support\",VLOOKUP(#REF!,#REF!,2,FALSE))","v":"Internal Error, Contact Support"},{"$f":"IF($R$7=\"Invalid\",\"Internal Error, Contact Support\",VLOOKUP(#REF!,#REF!,2,FALSE))","v":"Internal Error, Contact Support"},{"$f":"IF($R$7=\"Invalid\",\"Internal Error, Contact Support\",VLOOKUP(#REF!,#REF!,2,FALSE))","v":"Internal Error, Contact Support"},{"$f":"IF($R$7=\"Invalid\",\"Internal Error, Contact Support\",VLOOKUP(#REF!,#REF!,2,FALSE))","v":"Internal Error, Contact Support"},{"$f":"IF($R$7=\"Invalid\",\"Internal Error, Contact Support\",VLOOKUP(#REF!,#REF!,2,FALSE))","v":"Internal Error, Contact Support"},{"$f":"IF($R$7=\"Invalid\",\"Internal Error, Contact Support\",VLOOKUP(#REF!,#REF!,2,FALSE))","v":"Internal Error, Contact Support"},{"$f":"IF($R$7=\"Invalid\",\"Internal Error, Contact Support\",VLOOKUP(#REF!,#REF!,2,FALSE))","v":"Internal Error, Contact Support"},{"$f":"IF($R$7=\"Invalid\",\"Internal Error, Contact Support\",VLOOKUP(#REF!,#REF!,2,FALSE))","v":"Internal Error, Contact Support"},{"$f":"IF($R$7=\"Invalid\",\"Internal Error, Contact Support\",VLOOKUP(#REF!,#REF!,2,FALSE))","v":"Internal Error, Contact Support"},{"$f":"IF($R$7=\"Invalid\",\"Internal Error, Contact Support\",VLOOKUP(#REF!,#REF!,2,FALSE))","v":"Internal Error, Contact Support"},{"$f":"IF($R$7=\"Invalid\",\"Internal Error, Contact Support\",VLOOKUP(#REF!,#REF!,2,FALSE))","v":"Internal Error, Contact Support"},{"$f":"IF($R$7=\"Invalid\",\"Internal Error, Contact Support\",VLOOKUP(#REF!,#REF!,2,FALSE))","v":"Internal Error, Contact Support"},{"$f":"IF($R$7=\"Invalid\",\"Internal Error, Contact Support\",VLOOKUP(#REF!,#REF!,2,FALSE))","v":"Internal Error, Contact Support"}]
[{"$f":"eSPAR!A24","v":0},{"$f":"eSPAR!B24","v":0},{"$f":"IF($R$7=\"Invalid\",\"Internal Error, Contact Support\",VLOOKUP(#REF!,#REF!,2,FALSE))","v":"Internal Error, Contact Support"},{"$f":"IF($R$7=\"Invalid\",\"Internal Error, Contact Support\",VLOOKUP(#REF!,#REF!,2,FALSE))","v":"Internal Error, Contact Support"},{"$f":"IF($R$7=\"Invalid\",\"Internal Error, Contact Support\",VLOOKUP(#REF!,#REF!,2,FALSE))","v":"Internal Error, Contact Support"},{"$f":"IF($R$7=\"Invalid\",\"Internal Error, Contact Support\",VLOOKUP(#REF!,#REF!,2,FALSE))","v":"Internal Error, Contact Support"},{"$f":"IF($R$7=\"Invalid\",\"Internal Error, Contact Support\",VLOOKUP(#REF!,#REF!,2,FALSE))","v":"Internal Error, Contact Support"},{"$f":"IF($R$7=\"Invalid\",\"Internal Error, Contact Support\",VLOOKUP(#REF!,#REF!,2,FALSE))","v":"Internal Error, Contact Support"},{"$f":"IF($R$7=\"Invalid\",\"Internal Error, Contact Support\",VLOOKUP(#REF!,#REF!,2,FALSE))","v":"Internal Error, Contact Support"},{"$f":"IF($R$7=\"Invalid\",\"Internal Error, Contact Support\",VLOOKUP(#REF!,#REF!,2,FALSE))","v":"Internal Error, Contact Support"},{"$f":"IF($R$7=\"Invalid\",\"Internal Error, Contact Support\",VLOOKUP(#REF!,#REF!,2,FALSE))","v":"Internal Error, Contact Support"},{"$f":"IF($R$7=\"Invalid\",\"Internal Error, Contact Support\",VLOOKUP(#REF!,#REF!,2,FALSE))","v":"Internal Error, Contact Support"},{"$f":"IF($R$7=\"Invalid\",\"Internal Error, Contact Support\",VLOOKUP(#REF!,#REF!,2,FALSE))","v":"Internal Error, Contact Support"},{"$f":"IF($R$7=\"Invalid\",\"Internal Error, Contact Support\",VLOOKUP(#REF!,#REF!,2,FALSE))","v":"Internal Error, Contact Support"},{"$f":"IF($R$7=\"Invalid\",\"Internal Error, Contact Support\",VLOOKUP(#REF!,#REF!,2,FALSE))","v":"Internal Error, Contact Support"}]
[{"$f":"eSPAR!A25","v":0},{"$f":"eSPAR!B25","v":0},{"$f":"IF($R$7=\"Invalid\",\"Internal Error, Contact Support\",VLOOKUP(#REF!,#REF!,2,FALSE))","v":"Internal Error, Contact Support"},{"$f":"IF($R$7=\"Invalid\",\"Internal Error, Contact Support\",VLOOKUP(#REF!,#REF!,2,FALSE))","v":"Internal Error, Contact Support"},{"$f":"IF($R$7=\"Invalid\",\"Internal Error, Contact Support\",VLOOKUP(#REF!,#REF!,2,FALSE))","v":"Internal Error, Contact Support"},{"$f":"IF($R$7=\"Invalid\",\"Internal Error, Contact Support\",VLOOKUP(#REF!,#REF!,2,FALSE))","v":"Internal Error, Contact Support"},{"$f":"IF($R$7=\"Invalid\",\"Internal Error, Contact Support\",VLOOKUP(#REF!,#REF!,2,FALSE))","v":"Internal Error, Contact Support"},{"$f":"IF($R$7=\"Invalid\",\"Internal Error, Contact Support\",VLOOKUP(#REF!,#REF!,2,FALSE))","v":"Internal Error, Contact Support"},{"$f":"IF($R$7=\"Invalid\",\"Internal Error, Contact Support\",VLOOKUP(#REF!,#REF!,2,FALSE))","v":"Internal Error, Contact Support"},{"$f":"IF($R$7=\"Invalid\",\"Internal Error, Contact Support\",VLOOKUP(#REF!,#REF!,2,FALSE))","v":"Internal Error, Contact Support"},{"$f":"IF($R$7=\"Invalid\",\"Internal Error, Contact Support\",VLOOKUP(#REF!,#REF!,2,FALSE))","v":"Internal Error, Contact Support"},{"$f":"IF($R$7=\"Invalid\",\"Internal Error, Contact Support\",VLOOKUP(#REF!,#REF!,2,FALSE))","v":"Internal Error, Contact Support"},{"$f":"IF($R$7=\"Invalid\",\"Internal Error, Contact Support\",VLOOKUP(#REF!,#REF!,2,FALSE))","v":"Internal Error, Contact Support"},{"$f":"IF($R$7=\"Invalid\",\"Internal Error, Contact Support\",VLOOKUP(#REF!,#REF!,2,FALSE))","v":"Internal Error, Contact Support"},{"$f":"IF($R$7=\"Invalid\",\"Internal Error, Contact Support\",VLOOKUP(#REF!,#REF!,2,FALSE))","v":"Internal Error, Contact Support"}]
[{"$f":"eSPAR!A26","v":0},{"$f":"eSPAR!B26","v":0},{"$f":"IF($R$7=\"Invalid\",\"Internal Error, Contact Support\",VLOOKUP(#REF!,#REF!,2,FALSE))","v":"Internal Error, Contact Support"},{"$f":"IF($R$7=\"Invalid\",\"Internal Error, Contact Support\",VLOOKUP(#REF!,#REF!,2,FALSE))","v":"Internal Error, Contact Support"},{"$f":"IF($R$7=\"Invalid\",\"Internal Error, Contact Support\",VLOOKUP(#REF!,#REF!,2,FALSE))","v":"Internal Error, Contact Support"},{"$f":"IF($R$7=\"Invalid\",\"Internal Error, Contact Support\",VLOOKUP(#REF!,#REF!,2,FALSE))","v":"Internal Error, Contact Support"},{"$f":"IF($R$7=\"Invalid\",\"Internal Error, Contact Support\",VLOOKUP(#REF!,#REF!,2,FALSE))","v":"Internal Error, Contact Support"},{"$f":"IF($R$7=\"Invalid\",\"Internal Error, Contact Support\",VLOOKUP(#REF!,#REF!,2,FALSE))","v":"Internal Error, Contact Support"},{"$f":"IF($R$7=\"Invalid\",\"Internal Error, Contact Support\",VLOOKUP(#REF!,#REF!,2,FALSE))","v":"Internal Error, Contact Support"},{"$f":"IF($R$7=\"Invalid\",\"Internal Error, Contact Support\",VLOOKUP(#REF!,#REF!,2,FALSE))","v":"Internal Error, Contact Support"},{"$f":"IF($R$7=\"Invalid\",\"Internal Error, Contact Support\",VLOOKUP(#REF!,#REF!,2,FALSE))","v":"Internal Error, Contact Support"},{"$f":"IF($R$7=\"Invalid\",\"Internal Error, Contact Support\",VLOOKUP(#REF!,#REF!,2,FALSE))","v":"Internal Error, Contact Support"},{"$f":"IF($R$7=\"Invalid\",\"Internal Error, Contact Support\",VLOOKUP(#REF!,#REF!,2,FALSE))","v":"Internal Error, Contact Support"},{"$f":"IF($R$7=\"Invalid\",\"Internal Error, Contact Support\",VLOOKUP(#REF!,#REF!,2,FALSE))","v":"Internal Error, Contact Support"},{"$f":"IF($R$7=\"Invalid\",\"Internal Error, Contact Support\",VLOOKUP(#REF!,#REF!,2,FALSE))","v":"Internal Error, Contact Support"}]
[{"$f":"eSPAR!A27","v":0},{"$f":"eSPAR!B27","v":0},{"$f":"IF($R$7=\"Invalid\",\"Internal Error, Contact Support\",VLOOKUP(#REF!,#REF!,2,FALSE))","v":"Internal Error, Contact Support"},{"$f":"IF($R$7=\"Invalid\",\"Internal Error, Contact Support\",VLOOKUP(#REF!,#REF!,2,FALSE))","v":"Internal Error, Contact Support"},{"$f":"IF($R$7=\"Invalid\",\"Internal Error, Contact Support\",VLOOKUP(#REF!,#REF!,2,FALSE))","v":"Internal Error, Contact Support"},{"$f":"IF($R$7=\"Invalid\",\"Internal Error, Contact Support\",VLOOKUP(#REF!,#REF!,2,FALSE))","v":"Internal Error, Contact Support"},{"$f":"IF($R$7=\"Invalid\",\"Internal Error, Contact Support\",VLOOKUP(#REF!,#REF!,2,FALSE))","v":"Internal Error, Contact Support"},{"$f":"IF($R$7=\"Invalid\",\"Internal Error, Contact Support\",VLOOKUP(#REF!,#REF!,2,FALSE))","v":"Internal Error, Contact Support"},{"$f":"IF($R$7=\"Invalid\",\"Internal Error, Contact Support\",VLOOKUP(#REF!,#REF!,2,FALSE))","v":"Internal Error, Contact Support"},{"$f":"IF($R$7=\"Invalid\",\"Internal Error, Contact Support\",VLOOKUP(#REF!,#REF!,2,FALSE))","v":"Internal Error, Contact Support"},{"$f":"IF($R$7=\"Invalid\",\"Internal Error, Contact Support\",VLOOKUP(#REF!,#REF!,2,FALSE))","v":"Internal Error, Contact Support"},{"$f":"IF($R$7=\"Invalid\",\"Internal Error, Contact Support\",VLOOKUP(#REF!,#REF!,2,FALSE))","v":"Internal Error, Contact Support"},{"$f":"IF($R$7=\"Invalid\",\"Internal Error, Contact Support\",VLOOKUP(#REF!,#REF!,2,FALSE))","v":"Internal Error, Contact Support"},{"$f":"IF($R$7=\"Invalid\",\"Internal Error, Contact Support\",VLOOKUP(#REF!,#REF!,2,FALSE))","v":"Internal Error, Contact Support"},{"$f":"IF($R$7=\"Invalid\",\"Internal Error, Contact Support\",VLOOKUP(#REF!,#REF!,2,FALSE))","v":"Internal Error, Contact Support"}]
[{"$f":"eSPAR!A28","v":0},{"$f":"eSPAR!B28","v":0},{"$f":"IF($R$7=\"Invalid\",\"Internal Error, Contact Support\",VLOOKUP(#REF!,#REF!,2,FALSE))","v":"Internal Error, Contact Support"},{"$f":"IF($R$7=\"Invalid\",\"Internal Error, Contact Support\",VLOOKUP(#REF!,#REF!,2,FALSE))","v":"Internal Error, Contact Support"},{"$f":"IF($R$7=\"Invalid\",\"Internal Error, Contact Support\",VLOOKUP(#REF!,#REF!,2,FALSE))","v":"Internal Error, Contact Support"},{"$f":"IF($R$7=\"Invalid\",\"Internal Error, Contact Support\",VLOOKUP(#REF!,#REF!,2,FALSE))","v":"Internal Error, Contact Support"},{"$f":"IF($R$7=\"Invalid\",\"Internal Error, Contact Support\",VLOOKUP(#REF!,#REF!,2,FALSE))","v":"Internal Error, Contact Support"},{"$f":"IF($R$7=\"Invalid\",\"Internal Error, Contact Support\",VLOOKUP(#REF!,#REF!,2,FALSE))","v":"Internal Error, Contact Support"},{"$f":"IF($R$7=\"Invalid\",\"Internal Error, Contact Support\",VLOOKUP(#REF!,#REF!,2,FALSE))","v":"Internal Error, Contact Support"},{"$f":"IF($R$7=\"Invalid\",\"Internal Error, Contact Support\",VLOOKUP(#REF!,#REF!,2,FALSE))","v":"Internal Error, Contact Support"},{"$f":"IF($R$7=\"Invalid\",\"Internal Error, Contact Support\",VLOOKUP(#REF!,#REF!,2,FALSE))","v":"Internal Error, Contact Support"},{"$f":"IF($R$7=\"Invalid\",\"Internal Error, Contact Support\",VLOOKUP(#REF!,#REF!,2,FALSE))","v":"Internal Error, Contact Support"},{"$f":"IF($R$7=\"Invalid\",\"Internal Error, Contact Support\",VLOOKUP(#REF!,#REF!,2,FALSE))","v":"Internal Error, Contact Support"},{"$f":"IF($R$7=\"Invalid\",\"Internal Error, Contact Support\",VLOOKUP(#REF!,#REF!,2,FALSE))","v":"Internal Error, Contact Support"},{"$f":"IF($R$7=\"Invalid\",\"Internal Error, Contact Support\",VLOOKUP(#REF!,#REF!,2,FALSE))","v":"Internal Error, Contact Support"}]
[{"$f":"eSPAR!A29","v":0},{"$f":"eSPAR!B29","v":0},{"$f":"IF($R$7=\"Invalid\",\"Internal Error, Contact Support\",VLOOKUP(#REF!,#REF!,2,FALSE))","v":"Internal Error, Contact Support"},{"$f":"IF($R$7=\"Invalid\",\"Internal Error, Contact Support\",VLOOKUP(#REF!,#REF!,2,FALSE))","v":"Internal Error, Contact Support"},{"$f":"IF($R$7=\"Invalid\",\"Internal Error, Contact Support\",VLOOKUP(#REF!,#REF!,2,FALSE))","v":"Internal Error, Contact Support"},{"$f":"IF($R$7=\"Invalid\",\"Internal Error, Contact Support\",VLOOKUP(#REF!,#REF!,2,FALSE))","v":"Internal Error, Contact Support"},{"$f":"IF($R$7=\"Invalid\",\"Internal Error, Contact Support\",VLOOKUP(#REF!,#REF!,2,FALSE))","v":"Internal Error, Contact Support"},{"$f":"IF($R$7=\"Invalid\",\"Internal Error, Contact Support\",VLOOKUP(#REF!,#REF!,2,FALSE))","v":"Internal Error, Contact Support"},{"$f":"IF($R$7=\"Invalid\",\"Internal Error, Contact Support\",VLOOKUP(#REF!,#REF!,2,FALSE))","v":"Internal Error, Contact Support"},{"$f":"IF($R$7=\"Invalid\",\"Internal Error, Contact Support\",VLOOKUP(#REF!,#REF!,2,FALSE))","v":"Internal Error, Contact Support"},{"$f":"IF($R$7=\"Invalid\",\"Internal Error, Contact Support\",VLOOKUP(#REF!,#REF!,2,FALSE))","v":"Internal Error, Contact Support"},{"$f":"IF($R$7=\"Invalid\",\"Internal Error, Contact Support\",VLOOKUP(#REF!,#REF!,2,FALSE))","v":"Internal Error, Contact Support"},{"$f":"IF($R$7=\"Invalid\",\"Internal Error, Contact Support\",VLOOKUP(#REF!,#REF!,2,FALSE))","v":"Internal Error, Contact Support"},{"$f":"IF($R$7=\"Invalid\",\"Internal Error, Contact Support\",VLOOKUP(#REF!,#REF!,2,FALSE))","v":"Internal Error, Contact Support"},{"$f":"IF($R$7=\"Invalid\",\"Internal Error, Contact Support\",VLOOKUP(#REF!,#REF!,2,FALSE))","v":"Internal Error, Contact Support"}]
[{"$f":"eSPAR!A30","v":0},{"$f":"eSPAR!B30","v":0},{"$f":"IF($R$7=\"Invalid\",\"Internal Error, Contact Support\",VLOOKUP(#REF!,#REF!,2,FALSE))","v":"Internal Error, Contact Support"},{"$f":"IF($R$7=\"Invalid\",\"Internal Error, Contact Support\",VLOOKUP(#REF!,#REF!,2,FALSE))","v":"Internal Error, Contact Support"},{"$f":"IF($R$7=\"Invalid\",\"Internal Error, Contact Support\",VLOOKUP(#REF!,#REF!,2,FALSE))","v":"Internal Error, Contact Support"},{"$f":"IF($R$7=\"Invalid\",\"Internal Error, Contact Support\",VLOOKUP(#REF!,#REF!,2,FALSE))","v":"Internal Error, Contact Support"},{"$f":"IF($R$7=\"Invalid\",\"Internal Error, Contact Support\",VLOOKUP(#REF!,#REF!,2,FALSE))","v":"Internal Error, Contact Support"},{"$f":"IF($R$7=\"Invalid\",\"Internal Error, Contact Support\",VLOOKUP(#REF!,#REF!,2,FALSE))","v":"Internal Error, Contact Support"},{"$f":"IF($R$7=\"Invalid\",\"Internal Error, Contact Support\",VLOOKUP(#REF!,#REF!,2,FALSE))","v":"Internal Error, Contact Support"},{"$f":"IF($R$7=\"Invalid\",\"Internal Error, Contact Support\",VLOOKUP(#REF!,#REF!,2,FALSE))","v":"Internal Error, Contact Support"},{"$f":"IF($R$7=\"Invalid\",\"Internal Error, Contact Support\",VLOOKUP(#REF!,#REF!,2,FALSE))","v":"Internal Error, Contact Support"},{"$f":"IF($R$7=\"Invalid\",\"Internal Error, Contact Support\",VLOOKUP(#REF!,#REF!,2,FALSE))","v":"Internal Error, Contact Support"},{"$f":"IF($R$7=\"Invalid\",\"Internal Error, Contact Support\",VLOOKUP(#REF!,#REF!,2,FALSE))","v":"Internal Error, Contact Support"},{"$f":"IF($R$7=\"Invalid\",\"Internal Error, Contact Support\",VLOOKUP(#REF!,#REF!,2,FALSE))","v":"Internal Error, Contact Support"},{"$f":"IF($R$7=\"Invalid\",\"Internal Error, Contact Support\",VLOOKUP(#REF!,#REF!,2,FALSE))","v":"Internal Error, Contact Support"}]
[{"$f":"eSPAR!A31","v":0},{"$f":"eSPAR!B31","v":0},{"$f":"IF($R$7=\"Invalid\",\"Internal Error, Contact Support\",VLOOKUP(#REF!,#REF!,2,FALSE))","v":"Internal Error, Contact Support"},{"$f":"IF($R$7=\"Invalid\",\"Internal Error, Contact Support\",VLOOKUP(#REF!,#REF!,2,FALSE))","v":"Internal Error, Contact Support"},{"$f":"IF($R$7=\"Invalid\",\"Internal Error, Contact Support\",VLOOKUP(#REF!,#REF!,2,FALSE))","v":"Internal Error, Contact Support"},{"$f":"IF($R$7=\"Invalid\",\"Internal Error, Contact Support\",VLOOKUP(#REF!,#REF!,2,FALSE))","v":"Internal Error, Contact Support"},{"$f":"IF($R$7=\"Invalid\",\"Internal Error, Contact Support\",VLOOKUP(#REF!,#REF!,2,FALSE))","v":"Internal Error, Contact Support"},{"$f":"IF($R$7=\"Invalid\",\"Internal Error, Contact Support\",VLOOKUP(#REF!,#REF!,2,FALSE))","v":"Internal Error, Contact Support"},{"$f":"IF($R$7=\"Invalid\",\"Internal Error, Contact Support\",VLOOKUP(#REF!,#REF!,2,FALSE))","v":"Internal Error, Contact Support"},{"$f":"IF($R$7=\"Invalid\",\"Internal Error, Contact Support\",VLOOKUP(#REF!,#REF!,2,FALSE))","v":"Internal Error, Contact Support"},{"$f":"IF($R$7=\"Invalid\",\"Internal Error, Contact Support\",VLOOKUP(#REF!,#REF!,2,FALSE))","v":"Internal Error, Contact Support"},{"$f":"IF($R$7=\"Invalid\",\"Internal Error, Contact Support\",VLOOKUP(#REF!,#REF!,2,FALSE))","v":"Internal Error, Contact Support"},{"$f":"IF($R$7=\"Invalid\",\"Internal Error, Contact Support\",VLOOKUP(#REF!,#REF!,2,FALSE))","v":"Internal Error, Contact Support"},{"$f":"IF($R$7=\"Invalid\",\"Internal Error, Contact Support\",VLOOKUP(#REF!,#REF!,2,FALSE))","v":"Internal Error, Contact Support"},{"$f":"IF($R$7=\"Invalid\",\"Internal Error, Contact Support\",VLOOKUP(#REF!,#REF!,2,FALSE))","v":"Internal Error, Contact Support"}]
[{"$f":"eSPAR!A32","v":0},{"$f":"eSPAR!B32","v":0},{"$f":"IF($R$7=\"Invalid\",\"Internal Error, Contact Support\",VLOOKUP(#REF!,#REF!,2,FALSE))","v":"Internal Error, Contact Support"},{"$f":"IF($R$7=\"Invalid\",\"Internal Error, Contact Support\",VLOOKUP(#REF!,#REF!,2,FALSE))","v":"Internal Error, Contact Support"},{"$f":"IF($R$7=\"Invalid\",\"Internal Error, Contact Support\",VLOOKUP(#REF!,#REF!,2,FALSE))","v":"Internal Error, Contact Support"},{"$f":"IF($R$7=\"Invalid\",\"Internal Error, Contact Support\",VLOOKUP(#REF!,#REF!,2,FALSE))","v":"Internal Error, Contact Support"},{"$f":"IF($R$7=\"Invalid\",\"Internal Error, Contact Support\",VLOOKUP(#REF!,#REF!,2,FALSE))","v":"Internal Error, Contact Support"},{"$f":"IF($R$7=\"Invalid\",\"Internal Error, Contact Support\",VLOOKUP(#REF!,#REF!,2,FALSE))","v":"Internal Error, Contact Support"},{"$f":"IF($R$7=\"Invalid\",\"Internal Error, Contact Support\",VLOOKUP(#REF!,#REF!,2,FALSE))","v":"Internal Error, Contact Support"},{"$f":"IF($R$7=\"Invalid\",\"Internal Error, Contact Support\",VLOOKUP(#REF!,#REF!,2,FALSE))","v":"Internal Error, Contact Support"},{"$f":"IF($R$7=\"Invalid\",\"Internal Error, Contact Support\",VLOOKUP(#REF!,#REF!,2,FALSE))","v":"Internal Error, Contact Support"},{"$f":"IF($R$7=\"Invalid\",\"Internal Error, Contact Support\",VLOOKUP(#REF!,#REF!,2,FALSE))","v":"Internal Error, Contact Support"},{"$f":"IF($R$7=\"Invalid\",\"Internal Error, Contact Support\",VLOOKUP(#REF!,#REF!,2,FALSE))","v":"Internal Error, Contact Support"},{"$f":"IF($R$7=\"Invalid\",\"Internal Error, Contact Support\",VLOOKUP(#REF!,#REF!,2,FALSE))","v":"Internal Error, Contact Support"},{"$f":"IF($R$7=\"Invalid\",\"Internal Error, Contact Support\",VLOOKUP(#REF!,#REF!,2,FALSE))","v":"Internal Error, Contact Support"}]
[{"$f":"eSPAR!A33","v":0},{"$f":"eSPAR!B33","v":0},{"$f":"IF($R$7=\"Invalid\",\"Internal Error, Contact Support\",VLOOKUP(#REF!,#REF!,2,FALSE))","v":"Internal Error, Contact Support"},{"$f":"IF($R$7=\"Invalid\",\"Internal Error, Contact Support\",VLOOKUP(#REF!,#REF!,2,FALSE))","v":"Internal Error, Contact Support"},{"$f":"IF($R$7=\"Invalid\",\"Internal Error, Contact Support\",VLOOKUP(#REF!,#REF!,2,FALSE))","v":"Internal Error, Contact Support"},{"$f":"IF($R$7=\"Invalid\",\"Internal Error, Contact Support\",VLOOKUP(#REF!,#REF!,2,FALSE))","v":"Internal Error, Contact Support"},{"$f":"IF($R$7=\"Invalid\",\"Internal Error, Contact Support\",VLOOKUP(#REF!,#REF!,2,FALSE))","v":"Internal Error, Contact Support"},{"$f":"IF($R$7=\"Invalid\",\"Internal Error, Contact Support\",VLOOKUP(#REF!,#REF!,2,FALSE))","v":"Internal Error, Contact Support"},{"$f":"IF($R$7=\"Invalid\",\"Internal Error, Contact Support\",VLOOKUP(#REF!,#REF!,2,FALSE))","v":"Internal Error, Contact Support"},{"$f":"IF($R$7=\"Invalid\",\"Internal Error, Contact Support\",VLOOKUP(#REF!,#REF!,2,FALSE))","v":"Internal Error, Contact Support"},{"$f":"IF($R$7=\"Invalid\",\"Internal Error, Contact Support\",VLOOKUP(#REF!,#REF!,2,FALSE))","v":"Internal Error, Contact Support"},{"$f":"IF($R$7=\"Invalid\",\"Internal Error, Contact Support\",VLOOKUP(#REF!,#REF!,2,FALSE))","v":"Internal Error, Contact Support"},{"$f":"IF($R$7=\"Invalid\",\"Internal Error, Contact Support\",VLOOKUP(#REF!,#REF!,2,FALSE))","v":"Internal Error, Contact Support"},{"$f":"IF($R$7=\"Invalid\",\"Internal Error, Contact Support\",VLOOKUP(#REF!,#REF!,2,FALSE))","v":"Internal Error, Contact Support"},{"$f":"IF($R$7=\"Invalid\",\"Internal Error, Contact Support\",VLOOKUP(#REF!,#REF!,2,FALSE))","v":"Internal Error, Contact Support"}]
[{"$f":"eSPAR!A34","v":0},{"$f":"eSPAR!B34","v":0},{"$f":"IF($R$7=\"Invalid\",\"Internal Error, Contact Support\",VLOOKUP(#REF!,#REF!,2,FALSE))","v":"Internal Error, Contact Support"},{"$f":"IF($R$7=\"Invalid\",\"Internal Error, Contact Support\",VLOOKUP(#REF!,#REF!,2,FALSE))","v":"Internal Error, Contact Support"},{"$f":"IF($R$7=\"Invalid\",\"Internal Error, Contact Support\",VLOOKUP(#REF!,#REF!,2,FALSE))","v":"Internal Error, Contact Support"},{"$f":"IF($R$7=\"Invalid\",\"Internal Error, Contact Support\",VLOOKUP(#REF!,#REF!,2,FALSE))","v":"Internal Error, Contact Support"},{"$f":"IF($R$7=\"Invalid\",\"Internal Error, Contact Support\",VLOOKUP(#REF!,#REF!,2,FALSE))","v":"Internal Error, Contact Support"},{"$f":"IF($R$7=\"Invalid\",\"Internal Error, Contact Support\",VLOOKUP(#REF!,#REF!,2,FALSE))","v":"Internal Error, Contact Support"},{"$f":"IF($R$7=\"Invalid\",\"Internal Error, Contact Support\",VLOOKUP(#REF!,#REF!,2,FALSE))","v":"Internal Error, Contact Support"},{"$f":"IF($R$7=\"Invalid\",\"Internal Error, Contact Support\",VLOOKUP(#REF!,#REF!,2,FALSE))","v":"Internal Error, Contact Support"},{"$f":"IF($R$7=\"Invalid\",\"Internal Error, Contact Support\",VLOOKUP(#REF!,#REF!,2,FALSE))","v":"Internal Error, Contact Support"},{"$f":"IF($R$7=\"Invalid\",\"Internal Error, Contact Support\",VLOOKUP(#REF!,#REF!,2,FALSE))","v":"Internal Error, Contact Support"},{"$f":"IF($R$7=\"Invalid\",\"Internal Error, Contact Support\",VLOOKUP(#REF!,#REF!,2,FALSE))","v":"Internal Error, Contact Support"},{"$f":"IF($R$7=\"Invalid\",\"Internal Error, Contact Support\",VLOOKUP(#REF!,#REF!,2,FALSE))","v":"Internal Error, Contact Support"},{"$f":"IF($R$7=\"Invalid\",\"Internal Error, Contact Support\",VLOOKUP(#REF!,#REF!,2,FALSE))","v":"Internal Error, Contact Support"}]
[{"$f":"eSPAR!A35","v":0},{"$f":"eSPAR!B35","v":0},{"$f":"IF($R$7=\"Invalid\",\"Internal Error, Contact Support\",VLOOKUP(#REF!,#REF!,2,FALSE))","v":"Internal Error, Contact Support"},{"$f":"IF($R$7=\"Invalid\",\"Internal Error, Contact Support\",VLOOKUP(#REF!,#REF!,2,FALSE))","v":"Internal Error, Contact Support"},{"$f":"IF($R$7=\"Invalid\",\"Internal Error, Contact Support\",VLOOKUP(#REF!,#REF!,2,FALSE))","v":"Internal Error, Contact Support"},{"$f":"IF($R$7=\"Invalid\",\"Internal Error, Contact Support\",VLOOKUP(#REF!,#REF!,2,FALSE))","v":"Internal Error, Contact Support"},{"$f":"IF($R$7=\"Invalid\",\"Internal Error, Contact Support\",VLOOKUP(#REF!,#REF!,2,FALSE))","v":"Internal Error, Contact Support"},{"$f":"IF($R$7=\"Invalid\",\"Internal Error, Contact Support\",VLOOKUP(#REF!,#REF!,2,FALSE))","v":"Internal Error, Contact Support"},{"$f":"IF($R$7=\"Invalid\",\"Internal Error, Contact Support\",VLOOKUP(#REF!,#REF!,2,FALSE))","v":"Internal Error, Contact Support"},{"$f":"IF($R$7=\"Invalid\",\"Internal Error, Contact Support\",VLOOKUP(#REF!,#REF!,2,FALSE))","v":"Internal Error, Contact Support"},{"$f":"IF($R$7=\"Invalid\",\"Internal Error, Contact Support\",VLOOKUP(#REF!,#REF!,2,FALSE))","v":"Internal Error, Contact Support"},{"$f":"IF($R$7=\"Invalid\",\"Internal Error, Contact Support\",VLOOKUP(#REF!,#REF!,2,FALSE))","v":"Internal Error, Contact Support"},{"$f":"IF($R$7=\"Invalid\",\"Internal Error, Contact Support\",VLOOKUP(#REF!,#REF!,2,FALSE))","v":"Internal Error, Contact Support"},{"$f":"IF($R$7=\"Invalid\",\"Internal Error, Contact Support\",VLOOKUP(#REF!,#REF!,2,FALSE))","v":"Internal Error, Contact Support"},{"$f":"IF($R$7=\"Invalid\",\"Internal Error, Contact Support\",VLOOKUP(#REF!,#REF!,2,FALSE))","v":"Internal Error, Contact Support"}]
[{"$f":"eSPAR!A36","v":0},{"$f":"eSPAR!B36","v":0},{"$f":"IF($R$7=\"Invalid\",\"Internal Error, Contact Support\",VLOOKUP(#REF!,#REF!,2,FALSE))","v":"Internal Error, Contact Support"},{"$f":"IF($R$7=\"Invalid\",\"Internal Error, Contact Support\",VLOOKUP(#REF!,#REF!,2,FALSE))","v":"Internal Error, Contact Support"},{"$f":"IF($R$7=\"Invalid\",\"Internal Error, Contact Support\",VLOOKUP(#REF!,#REF!,2,FALSE))","v":"Internal Error, Contact Support"},{"$f":"IF($R$7=\"Invalid\",\"Internal Error, Contact Support\",VLOOKUP(#REF!,#REF!,2,FALSE))","v":"Internal Error, Contact Support"},{"$f":"IF($R$7=\"Invalid\",\"Internal Error, Contact Support\",VLOOKUP(#REF!,#REF!,2,FALSE))","v":"Internal Error, Contact Support"},{"$f":"IF($R$7=\"Invalid\",\"Internal Error, Contact Support\",VLOOKUP(#REF!,#REF!,2,FALSE))","v":"Internal Error, Contact Support"},{"$f":"IF($R$7=\"Invalid\",\"Internal Error, Contact Support\",VLOOKUP(#REF!,#REF!,2,FALSE))","v":"Internal Error, Contact Support"},{"$f":"IF($R$7=\"Invalid\",\"Internal Error, Contact Support\",VLOOKUP(#REF!,#REF!,2,FALSE))","v":"Internal Error, Contact Support"},{"$f":"IF($R$7=\"Invalid\",\"Internal Error, Contact Support\",VLOOKUP(#REF!,#REF!,2,FALSE))","v":"Internal Error, Contact Support"},{"$f":"IF($R$7=\"Invalid\",\"Internal Error, Contact Support\",VLOOKUP(#REF!,#REF!,2,FALSE))","v":"Internal Error, Contact Support"},{"$f":"IF($R$7=\"Invalid\",\"Internal Error, Contact Support\",VLOOKUP(#REF!,#REF!,2,FALSE))","v":"Internal Error, Contact Support"},{"$f":"IF($R$7=\"Invalid\",\"Internal Error, Contact Support\",VLOOKUP(#REF!,#REF!,2,FALSE))","v":"Internal Error, Contact Support"},{"$f":"IF($R$7=\"Invalid\",\"Internal Error, Contact Support\",VLOOKUP(#REF!,#REF!,2,FALSE))","v":"Internal Error, Contact Support"}]
[{"$f":"eSPAR!A37","v":0},{"$f":"eSPAR!B37","v":0},{"$f":"IF($R$7=\"Invalid\",\"Internal Error, Contact Support\",VLOOKUP(#REF!,#REF!,2,FALSE))","v":"Internal Error, Contact Support"},{"$f":"IF($R$7=\"Invalid\",\"Internal Error, Contact Support\",VLOOKUP(#REF!,#REF!,2,FALSE))","v":"Internal Error, Contact Support"},{"$f":"IF($R$7=\"Invalid\",\"Internal Error, Contact Support\",VLOOKUP(#REF!,#REF!,2,FALSE))","v":"Internal Error, Contact Support"},{"$f":"IF($R$7=\"Invalid\",\"Internal Error, Contact Support\",VLOOKUP(#REF!,#REF!,2,FALSE))","v":"Internal Error, Contact Support"},{"$f":"IF($R$7=\"Invalid\",\"Internal Error, Contact Support\",VLOOKUP(#REF!,#REF!,2,FALSE))","v":"Internal Error, Contact Support"},{"$f":"IF($R$7=\"Invalid\",\"Internal Error, Contact Support\",VLOOKUP(#REF!,#REF!,2,FALSE))","v":"Internal Error, Contact Support"},{"$f":"IF($R$7=\"Invalid\",\"Internal Error, Contact Support\",VLOOKUP(#REF!,#REF!,2,FALSE))","v":"Internal Error, Contact Support"},{"$f":"IF($R$7=\"Invalid\",\"Internal Error, Contact Support\",VLOOKUP(#REF!,#REF!,2,FALSE))","v":"Internal Error, Contact Support"},{"$f":"IF($R$7=\"Invalid\",\"Internal Error, Contact Support\",VLOOKUP(#REF!,#REF!,2,FALSE))","v":"Internal Error, Contact Support"},{"$f":"IF($R$7=\"Invalid\",\"Internal Error, Contact Support\",VLOOKUP(#REF!,#REF!,2,FALSE))","v":"Internal Error, Contact Support"},{"$f":"IF($R$7=\"Invalid\",\"Internal Error, Contact Support\",VLOOKUP(#REF!,#REF!,2,FALSE))","v":"Internal Error, Contact Support"},{"$f":"IF($R$7=\"Invalid\",\"Internal Error, Contact Support\",VLOOKUP(#REF!,#REF!,2,FALSE))","v":"Internal Error, Contact Support"},{"$f":"IF($R$7=\"Invalid\",\"Internal Error, Contact Support\",VLOOKUP(#REF!,#REF!,2,FALSE))","v":"Internal Error, Contact Support"}]
[{"$f":"eSPAR!A38","v":0},{"$f":"eSPAR!B38","v":0},{"$f":"IF($R$7=\"Invalid\",\"Internal Error, Contact Support\",VLOOKUP(#REF!,#REF!,2,FALSE))","v":"Internal Error, Contact Support"},{"$f":"IF($R$7=\"Invalid\",\"Internal Error, Contact Support\",VLOOKUP(#REF!,#REF!,2,FALSE))","v":"Internal Error, Contact Support"},{"$f":"IF($R$7=\"Invalid\",\"Internal Error, Contact Support\",VLOOKUP(#REF!,#REF!,2,FALSE))","v":"Internal Error, Contact Support"},{"$f":"IF($R$7=\"Invalid\",\"Internal Error, Contact Support\",VLOOKUP(#REF!,#REF!,2,FALSE))","v":"Internal Error, Contact Support"},{"$f":"IF($R$7=\"Invalid\",\"Internal Error, Contact Support\",VLOOKUP(#REF!,#REF!,2,FALSE))","v":"Internal Error, Contact Support"},{"$f":"IF($R$7=\"Invalid\",\"Internal Error, Contact Support\",VLOOKUP(#REF!,#REF!,2,FALSE))","v":"Internal Error, Contact Support"},{"$f":"IF($R$7=\"Invalid\",\"Internal Error, Contact Support\",VLOOKUP(#REF!,#REF!,2,FALSE))","v":"Internal Error, Contact Support"},{"$f":"IF($R$7=\"Invalid\",\"Internal Error, Contact Support\",VLOOKUP(#REF!,#REF!,2,FALSE))","v":"Internal Error, Contact Support"},{"$f":"IF($R$7=\"Invalid\",\"Internal Error, Contact Support\",VLOOKUP(#REF!,#REF!,2,FALSE))","v":"Internal Error, Contact Support"},{"$f":"IF($R$7=\"Invalid\",\"Internal Error, Contact Support\",VLOOKUP(#REF!,#REF!,2,FALSE))","v":"Internal Error, Contact Support"},{"$f":"IF($R$7=\"Invalid\",\"Internal Error, Contact Support\",VLOOKUP(#REF!,#REF!,2,FALSE))","v":"Internal Error, Contact Support"},{"$f":"IF($R$7=\"Invalid\",\"Internal Error, Contact Support\",VLOOKUP(#REF!,#REF!,2,FALSE))","v":"Internal Error, Contact Support"},{"$f":"IF($R$7=\"Invalid\",\"Internal Error, Contact Support\",VLOOKUP(#REF!,#REF!,2,FALSE))","v":"Internal Error, Contact Support"}]
[{"$f":"eSPAR!A39","v":0},{"$f":"eSPAR!B39","v":0},{"$f":"IF($R$7=\"Invalid\",\"Internal Error, Contact Support\",VLOOKUP(#REF!,#REF!,2,FALSE))","v":"Internal Error, Contact Support"},{"$f":"IF($R$7=\"Invalid\",\"Internal Error, Contact Support\",VLOOKUP(#REF!,#REF!,2,FALSE))","v":"Internal Error, Contact Support"},{"$f":"IF($R$7=\"Invalid\",\"Internal Error, Contact Support\",VLOOKUP(#REF!,#REF!,2,FALSE))","v":"Internal Error, Contact Support"},{"$f":"IF($R$7=\"Invalid\",\"Internal Error, Contact Support\",VLOOKUP(#REF!,#REF!,2,FALSE))","v":"Internal Error, Contact Support"},{"$f":"IF($R$7=\"Invalid\",\"Internal Error, Contact Support\",VLOOKUP(#REF!,#REF!,2,FALSE))","v":"Internal Error, Contact Support"},{"$f":"IF($R$7=\"Invalid\",\"Internal Error, Contact Support\",VLOOKUP(#REF!,#REF!,2,FALSE))","v":"Internal Error, Contact Support"},{"$f":"IF($R$7=\"Invalid\",\"Internal Error, Contact Support\",VLOOKUP(#REF!,#REF!,2,FALSE))","v":"Internal Error, Contact Support"},{"$f":"IF($R$7=\"Invalid\",\"Internal Error, Contact Support\",VLOOKUP(#REF!,#REF!,2,FALSE))","v":"Internal Error, Contact Support"},{"$f":"IF($R$7=\"Invalid\",\"Internal Error, Contact Support\",VLOOKUP(#REF!,#REF!,2,FALSE))","v":"Internal Error, Contact Support"},{"$f":"IF($R$7=\"Invalid\",\"Internal Error, Contact Support\",VLOOKUP(#REF!,#REF!,2,FALSE))","v":"Internal Error, Contact Support"},{"$f":"IF($R$7=\"Invalid\",\"Internal Error, Contact Support\",VLOOKUP(#REF!,#REF!,2,FALSE))","v":"Internal Error, Contact Support"},{"$f":"IF($R$7=\"Invalid\",\"Internal Error, Contact Support\",VLOOKUP(#REF!,#REF!,2,FALSE))","v":"Internal Error, Contact Support"},{"$f":"IF($R$7=\"Invalid\",\"Internal Error, Contact Support\",VLOOKUP(#REF!,#REF!,2,FALSE))","v":"Internal Error, Contact Support"}]
[{"$f":"eSPAR!A40","v":0},{"$f":"eSPAR!B40","v":0},{"$f":"IF($R$7=\"Invalid\",\"Internal Error, Contact Support\",VLOOKUP(#REF!,#REF!,2,FALSE))","v":"Internal Error, Contact Support"},{"$f":"IF($R$7=\"Invalid\",\"Internal Error, Contact Support\",VLOOKUP(#REF!,#REF!,2,FALSE))","v":"Internal Error, Contact Support"},{"$f":"IF($R$7=\"Invalid\",\"Internal Error, Contact Support\",VLOOKUP(#REF!,#REF!,2,FALSE))","v":"Internal Error, Contact Support"},{"$f":"IF($R$7=\"Invalid\",\"Internal Error, Contact Support\",VLOOKUP(#REF!,#REF!,2,FALSE))","v":"Internal Error, Contact Support"},{"$f":"IF($R$7=\"Invalid\",\"Internal Error, Contact Support\",VLOOKUP(#REF!,#REF!,2,FALSE))","v":"Internal Error, Contact Support"},{"$f":"IF($R$7=\"Invalid\",\"Internal Error, Contact Support\",VLOOKUP(#REF!,#REF!,2,FALSE))","v":"Internal Error, Contact Support"},{"$f":"IF($R$7=\"Invalid\",\"Internal Error, Contact Support\",VLOOKUP(#REF!,#REF!,2,FALSE))","v":"Internal Error, Contact Support"},{"$f":"IF($R$7=\"Invalid\",\"Internal Error, Contact Support\",VLOOKUP(#REF!,#REF!,2,FALSE))","v":"Internal Error, Contact Support"},{"$f":"IF($R$7=\"Invalid\",\"Internal Error, Contact Support\",VLOOKUP(#REF!,#REF!,2,FALSE))","v":"Internal Error, Contact Support"},{"$f":"IF($R$7=\"Invalid\",\"Internal Error, Contact Support\",VLOOKUP(#REF!,#REF!,2,FALSE))","v":"Internal Error, Contact Support"},{"$f":"IF($R$7=\"Invalid\",\"Internal Error, Contact Support\",VLOOKUP(#REF!,#REF!,2,FALSE))","v":"Internal Error, Contact Support"},{"$f":"IF($R$7=\"Invalid\",\"Internal Error, Contact Support\",VLOOKUP(#REF!,#REF!,2,FALSE))","v":"Internal Error, Contact Support"},{"$f":"IF($R$7=\"Invalid\",\"Internal Error, Contact Support\",VLOOKUP(#REF!,#REF!,2,FALSE))","v":"Internal Error, Contact Support"}]
[{"$f":"eSPAR!A41","v":0},{"$f":"eSPAR!B41","v":0},{"$f":"IF($R$7=\"Invalid\",\"Internal Error, Contact Support\",VLOOKUP(#REF!,#REF!,2,FALSE))","v":"Internal Error, Contact Support"},{"$f":"IF($R$7=\"Invalid\",\"Internal Error, Contact Support\",VLOOKUP(#REF!,#REF!,2,FALSE))","v":"Internal Error, Contact Support"},{"$f":"IF($R$7=\"Invalid\",\"Internal Error, Contact Support\",VLOOKUP(#REF!,#REF!,2,FALSE))","v":"Internal Error, Contact Support"},{"$f":"IF($R$7=\"Invalid\",\"Internal Error, Contact Support\",VLOOKUP(#REF!,#REF!,2,FALSE))","v":"Internal Error, Contact Support"},{"$f":"IF($R$7=\"Invalid\",\"Internal Error, Contact Support\",VLOOKUP(#REF!,#REF!,2,FALSE))","v":"Internal Error, Contact Support"},{"$f":"IF($R$7=\"Invalid\",\"Internal Error, Contact Support\",VLOOKUP(#REF!,#REF!,2,FALSE))","v":"Internal Error, Contact Support"},{"$f":"IF($R$7=\"Invalid\",\"Internal Error, Contact Support\",VLOOKUP(#REF!,#REF!,2,FALSE))","v":"Internal Error, Contact Support"},{"$f":"IF($R$7=\"Invalid\",\"Internal Error, Contact Support\",VLOOKUP(#REF!,#REF!,2,FALSE))","v":"Internal Error, Contact Support"},{"$f":"IF($R$7=\"Invalid\",\"Internal Error, Contact Support\",VLOOKUP(#REF!,#REF!,2,FALSE))","v":"Internal Error, Contact Support"},{"$f":"IF($R$7=\"Invalid\",\"Internal Error, Contact Support\",VLOOKUP(#REF!,#REF!,2,FALSE))","v":"Internal Error, Contact Support"},{"$f":"IF($R$7=\"Invalid\",\"Internal Error, Contact Support\",VLOOKUP(#REF!,#REF!,2,FALSE))","v":"Internal Error, Contact Support"},{"$f":"IF($R$7=\"Invalid\",\"Internal Error, Contact Support\",VLOOKUP(#REF!,#REF!,2,FALSE))","v":"Internal Error, Contact Support"},{"$f":"IF($R$7=\"Invalid\",\"Internal Error, Contact Support\",VLOOKUP(#REF!,#REF!,2,FALSE))","v":"Internal Error, Contact Support"}]
[{"$f":"eSPAR!A42","v":0},{"$f":"eSPAR!B42","v":0},{"$f":"IF($R$7=\"Invalid\",\"Internal Error, Contact Support\",VLOOKUP(#REF!,#REF!,2,FALSE))","v":"Internal Error, Contact Support"},{"$f":"IF($R$7=\"Invalid\",\"Internal Error, Contact Support\",VLOOKUP(#REF!,#REF!,2,FALSE))","v":"Internal Error, Contact Support"},{"$f":"IF($R$7=\"Invalid\",\"Internal Error, Contact Support\",VLOOKUP(#REF!,#REF!,2,FALSE))","v":"Internal Error, Contact Support"},{"$f":"IF($R$7=\"Invalid\",\"Internal Error, Contact Support\",VLOOKUP(#REF!,#REF!,2,FALSE))","v":"Internal Error, Contact Support"},{"$f":"IF($R$7=\"Invalid\",\"Internal Error, Contact Support\",VLOOKUP(#REF!,#REF!,2,FALSE))","v":"Internal Error, Contact Support"},{"$f":"IF($R$7=\"Invalid\",\"Internal Error, Contact Support\",VLOOKUP(#REF!,#REF!,2,FALSE))","v":"Internal Error, Contact Support"},{"$f":"IF($R$7=\"Invalid\",\"Internal Error, Contact Support\",VLOOKUP(#REF!,#REF!,2,FALSE))","v":"Internal Error, Contact Support"},{"$f":"IF($R$7=\"Invalid\",\"Internal Error, Contact Support\",VLOOKUP(#REF!,#REF!,2,FALSE))","v":"Internal Error, Contact Support"},{"$f":"IF($R$7=\"Invalid\",\"Internal Error, Contact Support\",VLOOKUP(#REF!,#REF!,2,FALSE))","v":"Internal Error, Contact Support"},{"$f":"IF($R$7=\"Invalid\",\"Internal Error, Contact Support\",VLOOKUP(#REF!,#REF!,2,FALSE))","v":"Internal Error, Contact Support"},{"$f":"IF($R$7=\"Invalid\",\"Internal Error, Contact Support\",VLOOKUP(#REF!,#REF!,2,FALSE))","v":"Internal Error, Contact Support"},{"$f":"IF($R$7=\"Invalid\",\"Internal Error, Contact Support\",VLOOKUP(#REF!,#REF!,2,FALSE))","v":"Internal Error, Contact Support"},{"$f":"IF($R$7=\"Invalid\",\"Internal Error, Contact Support\",VLOOKUP(#REF!,#REF!,2,FALSE))","v":"Internal Error, Contact Support"}]
[{"$f":"eSPAR!A43","v":0},{"$f":"eSPAR!B43","v":0},{"$f":"IF($R$7=\"Invalid\",\"Internal Error, Contact Support\",VLOOKUP(#REF!,#REF!,2,FALSE))","v":"Internal Error, Contact Support"},{"$f":"IF($R$7=\"Invalid\",\"Internal Error, Contact Support\",VLOOKUP(#REF!,#REF!,2,FALSE))","v":"Internal Error, Contact Support"},{"$f":"IF($R$7=\"Invalid\",\"Internal Error, Contact Support\",VLOOKUP(#REF!,#REF!,2,FALSE))","v":"Internal Error, Contact Support"},{"$f":"IF($R$7=\"Invalid\",\"Internal Error, Contact Support\",VLOOKUP(#REF!,#REF!,2,FALSE))","v":"Internal Error, Contact Support"},{"$f":"IF($R$7=\"Invalid\",\"Internal Error, Contact Support\",VLOOKUP(#REF!,#REF!,2,FALSE))","v":"Internal Error, Contact Support"},{"$f":"IF($R$7=\"Invalid\",\"Internal Error, Contact Support\",VLOOKUP(#REF!,#REF!,2,FALSE))","v":"Internal Error, Contact Support"},{"$f":"IF($R$7=\"Invalid\",\"Internal Error, Contact Support\",VLOOKUP(#REF!,#REF!,2,FALSE))","v":"Internal Error, Contact Support"},{"$f":"IF($R$7=\"Invalid\",\"Internal Error, Contact Support\",VLOOKUP(#REF!,#REF!,2,FALSE))","v":"Internal Error, Contact Support"},{"$f":"IF($R$7=\"Invalid\",\"Internal Error, Contact Support\",VLOOKUP(#REF!,#REF!,2,FALSE))","v":"Internal Error, Contact Support"},{"$f":"IF($R$7=\"Invalid\",\"Internal Error, Contact Support\",VLOOKUP(#REF!,#REF!,2,FALSE))","v":"Internal Error, Contact Support"},{"$f":"IF($R$7=\"Invalid\",\"Internal Error, Contact Support\",VLOOKUP(#REF!,#REF!,2,FALSE))","v":"Internal Error, Contact Support"},{"$f":"IF($R$7=\"Invalid\",\"Internal Error, Contact Support\",VLOOKUP(#REF!,#REF!,2,FALSE))","v":"Internal Error, Contact Support"},{"$f":"IF($R$7=\"Invalid\",\"Internal Error, Contact Support\",VLOOKUP(#REF!,#REF!,2,FALSE))","v":"Internal Error, Contact Support"}]
[{"$f":"eSPAR!A44","v":0},{"$f":"eSPAR!B44","v":0},{"$f":"IF($R$7=\"Invalid\",\"Internal Error, Contact Support\",VLOOKUP(#REF!,#REF!,2,FALSE))","v":"Internal Error, Contact Support"},{"$f":"IF($R$7=\"Invalid\",\"Internal Error, Contact Support\",VLOOKUP(#REF!,#REF!,2,FALSE))","v":"Internal Error, Contact Support"},{"$f":"IF($R$7=\"Invalid\",\"Internal Error, Contact Support\",VLOOKUP(#REF!,#REF!,2,FALSE))","v":"Internal Error, Contact Support"},{"$f":"IF($R$7=\"Invalid\",\"Internal Error, Contact Support\",VLOOKUP(#REF!,#REF!,2,FALSE))","v":"Internal Error, Contact Support"},{"$f":"IF($R$7=\"Invalid\",\"Internal Error, Contact Support\",VLOOKUP(#REF!,#REF!,2,FALSE))","v":"Internal Error, Contact Support"},{"$f":"IF($R$7=\"Invalid\",\"Internal Error, Contact Support\",VLOOKUP(#REF!,#REF!,2,FALSE))","v":"Internal Error, Contact Support"},{"$f":"IF($R$7=\"Invalid\",\"Internal Error, Contact Support\",VLOOKUP(#REF!,#REF!,2,FALSE))","v":"Internal Error, Contact Support"},{"$f":"IF($R$7=\"Invalid\",\"Internal Error, Contact Support\",VLOOKUP(#REF!,#REF!,2,FALSE))","v":"Internal Error, Contact Support"},{"$f":"IF($R$7=\"Invalid\",\"Internal Error, Contact Support\",VLOOKUP(#REF!,#REF!,2,FALSE))","v":"Internal Error, Contact Support"},{"$f":"IF($R$7=\"Invalid\",\"Internal Error, Contact Support\",VLOOKUP(#REF!,#REF!,2,FALSE))","v":"Internal Error, Contact Support"},{"$f":"IF($R$7=\"Invalid\",\"Internal Error, Contact Support\",VLOOKUP(#REF!,#REF!,2,FALSE))","v":"Internal Error, Contact Support"},{"$f":"IF($R$7=\"Invalid\",\"Internal Error, Contact Support\",VLOOKUP(#REF!,#REF!,2,FALSE))","v":"Internal Error, Contact Support"},{"$f":"IF($R$7=\"Invalid\",\"Internal Error, Contact Support\",VLOOKUP(#REF!,#REF!,2,FALSE))","v":"Internal Error, Contact Support"}]
[{"$f":"eSPAR!A45","v":0},{"$f":"eSPAR!B45","v":0},{"$f":"IF($R$7=\"Invalid\",\"Internal Error, Contact Support\",VLOOKUP(#REF!,#REF!,2,FALSE))","v":"Internal Error, Contact Support"},{"$f":"IF($R$7=\"Invalid\",\"Internal Error, Contact Support\",VLOOKUP(#REF!,#REF!,2,FALSE))","v":"Internal Error, Contact Support"},{"$f":"IF($R$7=\"Invalid\",\"Internal Error, Contact Support\",VLOOKUP(#REF!,#REF!,2,FALSE))","v":"Internal Error, Contact Support"},{"$f":"IF($R$7=\"Invalid\",\"Internal Error, Contact Support\",VLOOKUP(#REF!,#REF!,2,FALSE))","v":"Internal Error, Contact Support"},{"$f":"IF($R$7=\"Invalid\",\"Internal Error, Contact Support\",VLOOKUP(#REF!,#REF!,2,FALSE))","v":"Internal Error, Contact Support"},{"$f":"IF($R$7=\"Invalid\",\"Internal Error, Contact Support\",VLOOKUP(#REF!,#REF!,2,FALSE))","v":"Internal Error, Contact Support"},{"$f":"IF($R$7=\"Invalid\",\"Internal Error, Contact Support\",VLOOKUP(#REF!,#REF!,2,FALSE))","v":"Internal Error, Contact Support"},{"$f":"IF($R$7=\"Invalid\",\"Internal Error, Contact Support\",VLOOKUP(#REF!,#REF!,2,FALSE))","v":"Internal Error, Contact Support"},{"$f":"IF($R$7=\"Invalid\",\"Internal Error, Contact Support\",VLOOKUP(#REF!,#REF!,2,FALSE))","v":"Internal Error, Contact Support"},{"$f":"IF($R$7=\"Invalid\",\"Internal Error, Contact Support\",VLOOKUP(#REF!,#REF!,2,FALSE))","v":"Internal Error, Contact Support"},{"$f":"IF($R$7=\"Invalid\",\"Internal Error, Contact Support\",VLOOKUP(#REF!,#REF!,2,FALSE))","v":"Internal Error, Contact Support"},{"$f":"IF($R$7=\"Invalid\",\"Internal Error, Contact Support\",VLOOKUP(#REF!,#REF!,2,FALSE))","v":"Internal Error, Contact Support"},{"$f":"IF($R$7=\"Invalid\",\"Internal Error, Contact Support\",VLOOKUP(#REF!,#REF!,2,FALSE))","v":"Internal Error, Contact Support"}]
[{"$f":"eSPAR!A46","v":0},{"$f":"eSPAR!B46","v":0},{"$f":"IF($R$7=\"Invalid\",\"Internal Error, Contact Support\",VLOOKUP(#REF!,#REF!,2,FALSE))","v":"Internal Error, Contact Support"},{"$f":"IF($R$7=\"Invalid\",\"Internal Error, Contact Support\",VLOOKUP(#REF!,#REF!,2,FALSE))","v":"Internal Error, Contact Support"},{"$f":"IF($R$7=\"Invalid\",\"Internal Error, Contact Support\",VLOOKUP(#REF!,#REF!,2,FALSE))","v":"Internal Error, Contact Support"},{"$f":"IF($R$7=\"Invalid\",\"Internal Error, Contact Support\",VLOOKUP(#REF!,#REF!,2,FALSE))","v":"Internal Error, Contact Support"},{"$f":"IF($R$7=\"Invalid\",\"Internal Error, Contact Support\",VLOOKUP(#REF!,#REF!,2,FALSE))","v":"Internal Error, Contact Support"},{"$f":"IF($R$7=\"Invalid\",\"Internal Error, Contact Support\",VLOOKUP(#REF!,#REF!,2,FALSE))","v":"Internal Error, Contact Support"},{"$f":"IF($R$7=\"Invalid\",\"Internal Error, Contact Support\",VLOOKUP(#REF!,#REF!,2,FALSE))","v":"Internal Error, Contact Support"},{"$f":"IF($R$7=\"Invalid\",\"Internal Error, Contact Support\",VLOOKUP(#REF!,#REF!,2,FALSE))","v":"Internal Error, Contact Support"},{"$f":"IF($R$7=\"Invalid\",\"Internal Error, Contact Support\",VLOOKUP(#REF!,#REF!,2,FALSE))","v":"Internal Error, Contact Support"},{"$f":"IF($R$7=\"Invalid\",\"Internal Error, Contact Support\",VLOOKUP(#REF!,#REF!,2,FALSE))","v":"Internal Error, Contact Support"},{"$f":"IF($R$7=\"Invalid\",\"Internal Error, Contact Support\",VLOOKUP(#REF!,#REF!,2,FALSE))","v":"Internal Error, Contact Support"},{"$f":"IF($R$7=\"Invalid\",\"Internal Error, Contact Support\",VLOOKUP(#REF!,#REF!,2,FALSE))","v":"Internal Error, Contact Support"},{"$f":"IF($R$7=\"Invalid\",\"Internal Error, Contact Support\",VLOOKUP(#REF!,#REF!,2,FALSE))","v":"Internal Error, Contact Support"}]
[{"$f":"eSPAR!A47","v":0},{"$f":"eSPAR!B47","v":0},{"$f":"IF($R$7=\"Invalid\",\"Internal Error, Contact Support\",VLOOKUP(#REF!,#REF!,2,FALSE))","v":"Internal Error, Contact Support"},{"$f":"IF($R$7=\"Invalid\",\"Internal Error, Contact Support\",VLOOKUP(#REF!,#REF!,2,FALSE))","v":"Internal Error, Contact Support"},{"$f":"IF($R$7=\"Invalid\",\"Internal Error, Contact Support\",VLOOKUP(#REF!,#REF!,2,FALSE))","v":"Internal Error, Contact Support"},{"$f":"IF($R$7=\"Invalid\",\"Internal Error, Contact Support\",VLOOKUP(#REF!,#REF!,2,FALSE))","v":"Internal Error, Contact Support"},{"$f":"IF($R$7=\"Invalid\",\"Internal Error, Contact Support\",VLOOKUP(#REF!,#REF!,2,FALSE))","v":"Internal Error, Contact Support"},{"$f":"IF($R$7=\"Invalid\",\"Internal Error, Contact Support\",VLOOKUP(#REF!,#REF!,2,FALSE))","v":"Internal Error, Contact Support"},{"$f":"IF($R$7=\"Invalid\",\"Internal Error, Contact Support\",VLOOKUP(#REF!,#REF!,2,FALSE))","v":"Internal Error, Contact Support"},{"$f":"IF($R$7=\"Invalid\",\"Internal Error, Contact Support\",VLOOKUP(#REF!,#REF!,2,FALSE))","v":"Internal Error, Contact Support"},{"$f":"IF($R$7=\"Invalid\",\"Internal Error, Contact Support\",VLOOKUP(#REF!,#REF!,2,FALSE))","v":"Internal Error, Contact Support"},{"$f":"IF($R$7=\"Invalid\",\"Internal Error, Contact Support\",VLOOKUP(#REF!,#REF!,2,FALSE))","v":"Internal Error, Contact Support"},{"$f":"IF($R$7=\"Invalid\",\"Internal Error, Contact Support\",VLOOKUP(#REF!,#REF!,2,FALSE))","v":"Internal Error, Contact Support"},{"$f":"IF($R$7=\"Invalid\",\"Internal Error, Contact Support\",VLOOKUP(#REF!,#REF!,2,FALSE))","v":"Internal Error, Contact Support"},{"$f":"IF($R$7=\"Invalid\",\"Internal Error, Contact Support\",VLOOKUP(#REF!,#REF!,2,FALSE))","v":"Internal Error, Contact Support"}]
[{"$f":"eSPAR!A48","v":0},{"$f":"eSPAR!B48","v":0},{"$f":"IF($R$7=\"Invalid\",\"Internal Error, Contact Support\",VLOOKUP(#REF!,#REF!,2,FALSE))","v":"Internal Error, Contact Support"},{"$f":"IF($R$7=\"Invalid\",\"Internal Error, Contact Support\",VLOOKUP(#REF!,#REF!,2,FALSE))","v":"Internal Error, Contact Support"},{"$f":"IF($R$7=\"Invalid\",\"Internal Error, Contact Support\",VLOOKUP(#REF!,#REF!,2,FALSE))","v":"Internal Error, Contact Support"},{"$f":"IF($R$7=\"Invalid\",\"Internal Error, Contact Support\",VLOOKUP(#REF!,#REF!,2,FALSE))","v":"Internal Error, Contact Support"},{"$f":"IF($R$7=\"Invalid\",\"Internal Error, Contact Support\",VLOOKUP(#REF!,#REF!,2,FALSE))","v":"Internal Error, Contact Support"},{"$f":"IF($R$7=\"Invalid\",\"Internal Error, Contact Support\",VLOOKUP(#REF!,#REF!,2,FALSE))","v":"Internal Error, Contact Support"},{"$f":"IF($R$7=\"Invalid\",\"Internal Error, Contact Support\",VLOOKUP(#REF!,#REF!,2,FALSE))","v":"Internal Error, Contact Support"},{"$f":"IF($R$7=\"Invalid\",\"Internal Error, Contact Support\",VLOOKUP(#REF!,#REF!,2,FALSE))","v":"Internal Error, Contact Support"},{"$f":"IF($R$7=\"Invalid\",\"Internal Error, Contact Support\",VLOOKUP(#REF!,#REF!,2,FALSE))","v":"Internal Error, Contact Support"},{"$f":"IF($R$7=\"Invalid\",\"Internal Error, Contact Support\",VLOOKUP(#REF!,#REF!,2,FALSE))","v":"Internal Error, Contact Support"},{"$f":"IF($R$7=\"Invalid\",\"Internal Error, Contact Support\",VLOOKUP(#REF!,#REF!,2,FALSE))","v":"Internal Error, Contact Support"},{"$f":"IF($R$7=\"Invalid\",\"Internal Error, Contact Support\",VLOOKUP(#REF!,#REF!,2,FALSE))","v":"Internal Error, Contact Support"},{"$f":"IF($R$7=\"Invalid\",\"Internal Error, Contact Support\",VLOOKUP(#REF!,#REF!,2,FALSE))","v":"Internal Error, Contact Support"}]
[{"$f":"eSPAR!A49","v":0},{"$f":"eSPAR!B49","v":0},{"$f":"IF($R$7=\"Invalid\",\"Internal Error, Contact Support\",VLOOKUP(#REF!,#REF!,2,FALSE))","v":"Internal Error, Contact Support"},{"$f":"IF($R$7=\"Invalid\",\"Internal Error, Contact Support\",VLOOKUP(#REF!,#REF!,2,FALSE))","v":"Internal Error, Contact Support"},{"$f":"IF($R$7=\"Invalid\",\"Internal Error, Contact Support\",VLOOKUP(#REF!,#REF!,2,FALSE))","v":"Internal Error, Contact Support"},{"$f":"IF($R$7=\"Invalid\",\"Internal Error, Contact Support\",VLOOKUP(#REF!,#REF!,2,FALSE))","v":"Internal Error, Contact Support"},{"$f":"IF($R$7=\"Invalid\",\"Internal Error, Contact Support\",VLOOKUP(#REF!,#REF!,2,FALSE))","v":"Internal Error, Contact Support"},{"$f":"IF($R$7=\"Invalid\",\"Internal Error, Contact Support\",VLOOKUP(#REF!,#REF!,2,FALSE))","v":"Internal Error, Contact Support"},{"$f":"IF($R$7=\"Invalid\",\"Internal Error, Contact Support\",VLOOKUP(#REF!,#REF!,2,FALSE))","v":"Internal Error, Contact Support"},{"$f":"IF($R$7=\"Invalid\",\"Internal Error, Contact Support\",VLOOKUP(#REF!,#REF!,2,FALSE))","v":"Internal Error, Contact Support"},{"$f":"IF($R$7=\"Invalid\",\"Internal Error, Contact Support\",VLOOKUP(#REF!,#REF!,2,FALSE))","v":"Internal Error, Contact Support"},{"$f":"IF($R$7=\"Invalid\",\"Internal Error, Contact Support\",VLOOKUP(#REF!,#REF!,2,FALSE))","v":"Internal Error, Contact Support"},{"$f":"IF($R$7=\"Invalid\",\"Internal Error, Contact Support\",VLOOKUP(#REF!,#REF!,2,FALSE))","v":"Internal Error, Contact Support"},{"$f":"IF($R$7=\"Invalid\",\"Internal Error, Contact Support\",VLOOKUP(#REF!,#REF!,2,FALSE))","v":"Internal Error, Contact Support"},{"$f":"IF($R$7=\"Invalid\",\"Internal Error, Contact Support\",VLOOKUP(#REF!,#REF!,2,FALSE))","v":"Internal Error, Contact Support"}]
[{"$f":"eSPAR!A50","v":0},{"$f":"eSPAR!B50","v":0},{"$f":"IF($R$7=\"Invalid\",\"Internal Error, Contact Support\",VLOOKUP(#REF!,#REF!,2,FALSE))","v":"Internal Error, Contact Support"},{"$f":"IF($R$7=\"Invalid\",\"Internal Error, Contact Support\",VLOOKUP(#REF!,#REF!,2,FALSE))","v":"Internal Error, Contact Support"},{"$f":"IF($R$7=\"Invalid\",\"Internal Error, Contact Support\",VLOOKUP(#REF!,#REF!,2,FALSE))","v":"Internal Error, Contact Support"},{"$f":"IF($R$7=\"Invalid\",\"Internal Error, Contact Support\",VLOOKUP(#REF!,#REF!,2,FALSE))","v":"Internal Error, Contact Support"},{"$f":"IF($R$7=\"Invalid\",\"Internal Error, Contact Support\",VLOOKUP(#REF!,#REF!,2,FALSE))","v":"Internal Error, Contact Support"},{"$f":"IF($R$7=\"Invalid\",\"Internal Error, Contact Support\",VLOOKUP(#REF!,#REF!,2,FALSE))","v":"Internal Error, Contact Support"},{"$f":"IF($R$7=\"Invalid\",\"Internal Error, Contact Support\",VLOOKUP(#REF!,#REF!,2,FALSE))","v":"Internal Error, Contact Support"},{"$f":"IF($R$7=\"Invalid\",\"Internal Error, Contact Support\",VLOOKUP(#REF!,#REF!,2,FALSE))","v":"Internal Error, Contact Support"},{"$f":"IF($R$7=\"Invalid\",\"Internal Error, Contact Support\",VLOOKUP(#REF!,#REF!,2,FALSE))","v":"Internal Error, Contact Support"},{"$f":"IF($R$7=\"Invalid\",\"Internal Error, Contact Support\",VLOOKUP(#REF!,#REF!,2,FALSE))","v":"Internal Error, Contact Support"},{"$f":"IF($R$7=\"Invalid\",\"Internal Error, Contact Support\",VLOOKUP(#REF!,#REF!,2,FALSE))","v":"Internal Error, Contact Support"},{"$f":"IF($R$7=\"Invalid\",\"Internal Error, Contact Support\",VLOOKUP(#REF!,#REF!,2,FALSE))","v":"Internal Error, Contact Support"},{"$f":"IF($R$7=\"Invalid\",\"Internal Error, Contact Support\",VLOOKUP(#REF!,#REF!,2,FALSE))","v":"Internal Error, Contact Support"}]
[{"$f":"eSPAR!A51","v":0},{"$f":"eSPAR!B51","v":0},{"$f":"IF($R$7=\"Invalid\",\"Internal Error, Contact Support\",VLOOKUP(#REF!,#REF!,2,FALSE))","v":"Internal Error, Contact Support"},{"$f":"IF($R$7=\"Invalid\",\"Internal Error, Contact Support\",VLOOKUP(#REF!,#REF!,2,FALSE))","v":"Internal Error, Contact Support"},{"$f":"IF($R$7=\"Invalid\",\"Internal Error, Contact Support\",VLOOKUP(#REF!,#REF!,2,FALSE))","v":"Internal Error, Contact Support"},{"$f":"IF($R$7=\"Invalid\",\"Internal Error, Contact Support\",VLOOKUP(#REF!,#REF!,2,FALSE))","v":"Internal Error, Contact Support"},{"$f":"IF($R$7=\"Invalid\",\"Internal Error, Contact Support\",VLOOKUP(#REF!,#REF!,2,FALSE))","v":"Internal Error, Contact Support"},{"$f":"IF($R$7=\"Invalid\",\"Internal Error, Contact Support\",VLOOKUP(#REF!,#REF!,2,FALSE))","v":"Internal Error, Contact Support"},{"$f":"IF($R$7=\"Invalid\",\"Internal Error, Contact Support\",VLOOKUP(#REF!,#REF!,2,FALSE))","v":"Internal Error, Contact Support"},{"$f":"IF($R$7=\"Invalid\",\"Internal Error, Contact Support\",VLOOKUP(#REF!,#REF!,2,FALSE))","v":"Internal Error, Contact Support"},{"$f":"IF($R$7=\"Invalid\",\"Internal Error, Contact Support\",VLOOKUP(#REF!,#REF!,2,FALSE))","v":"Internal Error, Contact Support"},{"$f":"IF($R$7=\"Invalid\",\"Internal Error, Contact Support\",VLOOKUP(#REF!,#REF!,2,FALSE))","v":"Internal Error, Contact Support"},{"$f":"IF($R$7=\"Invalid\",\"Internal Error, Contact Support\",VLOOKUP(#REF!,#REF!,2,FALSE))","v":"Internal Error, Contact Support"},{"$f":"IF($R$7=\"Invalid\",\"Internal Error, Contact Support\",VLOOKUP(#REF!,#REF!,2,FALSE))","v":"Internal Error, Contact Support"},{"$f":"IF($R$7=\"Invalid\",\"Internal Error, Contact Support\",VLOOKUP(#REF!,#REF!,2,FALSE))","v":"Internal Error, Contact Support"}]
[{"$f":"eSPAR!A52","v":0},{"$f":"eSPAR!B52","v":0},{"$f":"IF($R$7=\"Invalid\",\"Internal Error, Contact Support\",VLOOKUP(#REF!,#REF!,2,FALSE))","v":"Internal Error, Contact Support"},{"$f":"IF($R$7=\"Invalid\",\"Internal Error, Contact Support\",VLOOKUP(#REF!,#REF!,2,FALSE))","v":"Internal Error, Contact Support"},{"$f":"IF($R$7=\"Invalid\",\"Internal Error, Contact Support\",VLOOKUP(#REF!,#REF!,2,FALSE))","v":"Internal Error, Contact Support"},{"$f":"IF($R$7=\"Invalid\",\"Internal Error, Contact Support\",VLOOKUP(#REF!,#REF!,2,FALSE))","v":"Internal Error, Contact Support"},{"$f":"IF($R$7=\"Invalid\",\"Internal Error, Contact Support\",VLOOKUP(#REF!,#REF!,2,FALSE))","v":"Internal Error, Contact Support"},{"$f":"IF($R$7=\"Invalid\",\"Internal Error, Contact Support\",VLOOKUP(#REF!,#REF!,2,FALSE))","v":"Internal Error, Contact Support"},{"$f":"IF($R$7=\"Invalid\",\"Internal Error, Contact Support\",VLOOKUP(#REF!,#REF!,2,FALSE))","v":"Internal Error, Contact Support"},{"$f":"IF($R$7=\"Invalid\",\"Internal Error, Contact Support\",VLOOKUP(#REF!,#REF!,2,FALSE))","v":"Internal Error, Contact Support"},{"$f":"IF($R$7=\"Invalid\",\"Internal Error, Contact Support\",VLOOKUP(#REF!,#REF!,2,FALSE))","v":"Internal Error, Contact Support"},{"$f":"IF($R$7=\"Invalid\",\"Internal Error, Contact Support\",VLOOKUP(#REF!,#REF!,2,FALSE))","v":"Internal Error, Contact Support"},{"$f":"IF($R$7=\"Invalid\",\"Internal Error, Contact Support\",VLOOKUP(#REF!,#REF!,2,FALSE))","v":"Internal Error, Contact Support"},{"$f":"IF($R$7=\"Invalid\",\"Internal Error, Contact Support\",VLOOKUP(#REF!,#REF!,2,FALSE))","v":"Internal Error, Contact Support"},{"$f":"IF($R$7=\"Invalid\",\"Internal Error, Contact Support\",VLOOKUP(#REF!,#REF!,2,FALSE))","v":"Internal Error, Contact Support"}]
[{"$f":"eSPAR!A53","v":0},{"$f":"eSPAR!B53","v":0},{"$f":"IF($R$7=\"Invalid\",\"Internal Error, Contact Support\",VLOOKUP(#REF!,#REF!,2,FALSE))","v":"Internal Error, Contact Support"},{"$f":"IF($R$7=\"Invalid\",\"Internal Error, Contact Support\",VLOOKUP(#REF!,#REF!,2,FALSE))","v":"Internal Error, Contact Support"},{"$f":"IF($R$7=\"Invalid\",\"Internal Error, Contact Support\",VLOOKUP(#REF!,#REF!,2,FALSE))","v":"Internal Error, Contact Support"},{"$f":"IF($R$7=\"Invalid\",\"Internal Error, Contact Support\",VLOOKUP(#REF!,#REF!,2,FALSE))","v":"Internal Error, Contact Support"},{"$f":"IF($R$7=\"Invalid\",\"Internal Error, Contact Support\",VLOOKUP(#REF!,#REF!,2,FALSE))","v":"Internal Error, Contact Support"},{"$f":"IF($R$7=\"Invalid\",\"Internal Error, Contact Support\",VLOOKUP(#REF!,#REF!,2,FALSE))","v":"Internal Error, Contact Support"},{"$f":"IF($R$7=\"Invalid\",\"Internal Error, Contact Support\",VLOOKUP(#REF!,#REF!,2,FALSE))","v":"Internal Error, Contact Support"},{"$f":"IF($R$7=\"Invalid\",\"Internal Error, Contact Support\",VLOOKUP(#REF!,#REF!,2,FALSE))","v":"Internal Error, Contact Support"},{"$f":"IF($R$7=\"Invalid\",\"Internal Error, Contact Support\",VLOOKUP(#REF!,#REF!,2,FALSE))","v":"Internal Error, Contact Support"},{"$f":"IF($R$7=\"Invalid\",\"Internal Error, Contact Support\",VLOOKUP(#REF!,#REF!,2,FALSE))","v":"Internal Error, Contact Support"},{"$f":"IF($R$7=\"Invalid\",\"Internal Error, Contact Support\",VLOOKUP(#REF!,#REF!,2,FALSE))","v":"Internal Error, Contact Support"},{"$f":"IF($R$7=\"Invalid\",\"Internal Error, Contact Support\",VLOOKUP(#REF!,#REF!,2,FALSE))","v":"Internal Error, Contact Support"},{"$f":"IF($R$7=\"Invalid\",\"Internal Error, Contact Support\",VLOOKUP(#REF!,#REF!,2,FALSE))","v":"Internal Error, Contact Support"}]
[{"$f":"eSPAR!A54","v":0},{"$f":"eSPAR!B54","v":0},{"$f":"IF($R$7=\"Invalid\",\"Internal Error, Contact Support\",VLOOKUP(#REF!,#REF!,2,FALSE))","v":"Internal Error, Contact Support"},{"$f":"IF($R$7=\"Invalid\",\"Internal Error, Contact Support\",VLOOKUP(#REF!,#REF!,2,FALSE))","v":"Internal Error, Contact Support"},{"$f":"IF($R$7=\"Invalid\",\"Internal Error, Contact Support\",VLOOKUP(#REF!,#REF!,2,FALSE))","v":"Internal Error, Contact Support"},{"$f":"IF($R$7=\"Invalid\",\"Internal Error, Contact Support\",VLOOKUP(#REF!,#REF!,2,FALSE))","v":"Internal Error, Contact Support"},{"$f":"IF($R$7=\"Invalid\",\"Internal Error, Contact Support\",VLOOKUP(#REF!,#REF!,2,FALSE))","v":"Internal Error, Contact Support"},{"$f":"IF($R$7=\"Invalid\",\"Internal Error, Contact Support\",VLOOKUP(#REF!,#REF!,2,FALSE))","v":"Internal Error, Contact Support"},{"$f":"IF($R$7=\"Invalid\",\"Internal Error, Contact Support\",VLOOKUP(#REF!,#REF!,2,FALSE))","v":"Internal Error, Contact Support"},{"$f":"IF($R$7=\"Invalid\",\"Internal Error, Contact Support\",VLOOKUP(#REF!,#REF!,2,FALSE))","v":"Internal Error, Contact Support"},{"$f":"IF($R$7=\"Invalid\",\"Internal Error, Contact Support\",VLOOKUP(#REF!,#REF!,2,FALSE))","v":"Internal Error, Contact Support"},{"$f":"IF($R$7=\"Invalid\",\"Internal Error, Contact Support\",VLOOKUP(#REF!,#REF!,2,FALSE))","v":"Internal Error, Contact Support"},{"$f":"IF($R$7=\"Invalid\",\"Internal Error, Contact Support\",VLOOKUP(#REF!,#REF!,2,FALSE))","v":"Internal Error, Contact Support"},{"$f":"IF($R$7=\"Invalid\",\"Internal Error, Contact Support\",VLOOKUP(#REF!,#REF!,2,FALSE))","v":"Internal Error, Contact Support"},{"$f":"IF($R$7=\"Invalid\",\"Internal Error, Contact Support\",VLOOKUP(#REF!,#REF!,2,FALSE))","v":"Internal Error, Contact Support"}]
[{"$f":"eSPAR!A55","v":0},{"$f":"eSPAR!B55","v":0},{"$f":"IF($R$7=\"Invalid\",\"Internal Error, Contact Support\",VLOOKUP(#REF!,#REF!,2,FALSE))","v":"Internal Error, Contact Support"},{"$f":"IF($R$7=\"Invalid\",\"Internal Error, Contact Support\",VLOOKUP(#REF!,#REF!,2,FALSE))","v":"Internal Error, Contact Support"},{"$f":"IF($R$7=\"Invalid\",\"Internal Error, Contact Support\",VLOOKUP(#REF!,#REF!,2,FALSE))","v":"Internal Error, Contact Support"},{"$f":"IF($R$7=\"Invalid\",\"Internal Error, Contact Support\",VLOOKUP(#REF!,#REF!,2,FALSE))","v":"Internal Error, Contact Support"},{"$f":"IF($R$7=\"Invalid\",\"Internal Error, Contact Support\",VLOOKUP(#REF!,#REF!,2,FALSE))","v":"Internal Error, Contact Support"},{"$f":"IF($R$7=\"Invalid\",\"Internal Error, Contact Support\",VLOOKUP(#REF!,#REF!,2,FALSE))","v":"Internal Error, Contact Support"},{"$f":"IF($R$7=\"Invalid\",\"Internal Error, Contact Support\",VLOOKUP(#REF!,#REF!,2,FALSE))","v":"Internal Error, Contact Support"},{"$f":"IF($R$7=\"Invalid\",\"Internal Error, Contact Support\",VLOOKUP(#REF!,#REF!,2,FALSE))","v":"Internal Error, Contact Support"},{"$f":"IF($R$7=\"Invalid\",\"Internal Error, Contact Support\",VLOOKUP(#REF!,#REF!,2,FALSE))","v":"Internal Error, Contact Support"},{"$f":"IF($R$7=\"Invalid\",\"Internal Error, Contact Support\",VLOOKUP(#REF!,#REF!,2,FALSE))","v":"Internal Error, Contact Support"},{"$f":"IF($R$7=\"Invalid\",\"Internal Error, Contact Support\",VLOOKUP(#REF!,#REF!,2,FALSE))","v":"Internal Error, Contact Support"},{"$f":"IF($R$7=\"Invalid\",\"Internal Error, Contact Support\",VLOOKUP(#REF!,#REF!,2,FALSE))","v":"Internal Error, Contact Support"},{"$f":"IF($R$7=\"Invalid\",\"Internal Error, Contact Support\",VLOOKUP(#REF!,#REF!,2,FALSE))","v":"Internal Error, Contact Support"}]
[{"$f":"eSPAR!A56","v":0},{"$f":"eSPAR!B56","v":0},{"$f":"IF($R$7=\"Invalid\",\"Internal Error, Contact Support\",VLOOKUP(#REF!,#REF!,2,FALSE))","v":"Internal Error, Contact Support"},{"$f":"IF($R$7=\"Invalid\",\"Internal Error, Contact Support\",VLOOKUP(#REF!,#REF!,2,FALSE))","v":"Internal Error, Contact Support"},{"$f":"IF($R$7=\"Invalid\",\"Internal Error, Contact Support\",VLOOKUP(#REF!,#REF!,2,FALSE))","v":"Internal Error, Contact Support"},{"$f":"IF($R$7=\"Invalid\",\"Internal Error, Contact Support\",VLOOKUP(#REF!,#REF!,2,FALSE))","v":"Internal Error, Contact Support"},{"$f":"IF($R$7=\"Invalid\",\"Internal Error, Contact Support\",VLOOKUP(#REF!,#REF!,2,FALSE))","v":"Internal Error, Contact Support"},{"$f":"IF($R$7=\"Invalid\",\"Internal Error, Contact Support\",VLOOKUP(#REF!,#REF!,2,FALSE))","v":"Internal Error, Contact Support"},{"$f":"IF($R$7=\"Invalid\",\"Internal Error, Contact Support\",VLOOKUP(#REF!,#REF!,2,FALSE))","v":"Internal Error, Contact Support"},{"$f":"IF($R$7=\"Invalid\",\"Internal Error, Contact Support\",VLOOKUP(#REF!,#REF!,2,FALSE))","v":"Internal Error, Contact Support"},{"$f":"IF($R$7=\"Invalid\",\"Internal Error, Contact Support\",VLOOKUP(#REF!,#REF!,2,FALSE))","v":"Internal Error, Contact Support"},{"$f":"IF($R$7=\"Invalid\",\"Internal Error, Contact Support\",VLOOKUP(#REF!,#REF!,2,FALSE))","v":"Internal Error, Contact Support"},{"$f":"IF($R$7=\"Invalid\",\"Internal Error, Contact Support\",VLOOKUP(#REF!,#REF!,2,FALSE))","v":"Internal Error, Contact Support"},{"$f":"IF($R$7=\"Invalid\",\"Internal Error, Contact Support\",VLOOKUP(#REF!,#REF!,2,FALSE))","v":"Internal Error, Contact Support"},{"$f":"IF($R$7=\"Invalid\",\"Internal Error, Contact Support\",VLOOKUP(#REF!,#REF!,2,FALSE))","v":"Internal Error, Contact Support"}]
[{"$f":"eSPAR!A57","v":0},{"$f":"eSPAR!B57","v":0},{"$f":"IF($R$7=\"Invalid\",\"Internal Error, Contact Support\",VLOOKUP(#REF!,#REF!,2,FALSE))","v":"Internal Error, Contact Support"},{"$f":"IF($R$7=\"Invalid\",\"Internal Error, Contact Support\",VLOOKUP(#REF!,#REF!,2,FALSE))","v":"Internal Error, Contact Support"},{"$f":"IF($R$7=\"Invalid\",\"Internal Error, Contact Support\",VLOOKUP(#REF!,#REF!,2,FALSE))","v":"Internal Error, Contact Support"},{"$f":"IF($R$7=\"Invalid\",\"Internal Error, Contact Support\",VLOOKUP(#REF!,#REF!,2,FALSE))","v":"Internal Error, Contact Support"},{"$f":"IF($R$7=\"Invalid\",\"Internal Error, Contact Support\",VLOOKUP(#REF!,#REF!,2,FALSE))","v":"Internal Error, Contact Support"},{"$f":"IF($R$7=\"Invalid\",\"Internal Error, Contact Support\",VLOOKUP(#REF!,#REF!,2,FALSE))","v":"Internal Error, Contact Support"},{"$f":"IF($R$7=\"Invalid\",\"Internal Error, Contact Support\",VLOOKUP(#REF!,#REF!,2,FALSE))","v":"Internal Error, Contact Support"},{"$f":"IF($R$7=\"Invalid\",\"Internal Error, Contact Support\",VLOOKUP(#REF!,#REF!,2,FALSE))","v":"Internal Error, Contact Support"},{"$f":"IF($R$7=\"Invalid\",\"Internal Error, Contact Support\",VLOOKUP(#REF!,#REF!,2,FALSE))","v":"Internal Error, Contact Support"},{"$f":"IF($R$7=\"Invalid\",\"Internal Error, Contact Support\",VLOOKUP(#REF!,#REF!,2,FALSE))","v":"Internal Error, Contact Support"},{"$f":"IF($R$7=\"Invalid\",\"Internal Error, Contact Support\",VLOOKUP(#REF!,#REF!,2,FALSE))","v":"Internal Error, Contact Support"},{"$f":"IF($R$7=\"Invalid\",\"Internal Error, Contact Support\",VLOOKUP(#REF!,#REF!,2,FALSE))","v":"Internal Error, Contact Support"},{"$f":"IF($R$7=\"Invalid\",\"Internal Error, Contact Support\",VLOOKUP(#REF!,#REF!,2,FALSE))","v":"Internal Error, Contact Support"}]
[{"$f":"eSPAR!A58","v":0},{"$f":"eSPAR!B58","v":0},{"$f":"IF($R$7=\"Invalid\",\"Internal Error, Contact Support\",VLOOKUP(#REF!,#REF!,2,FALSE))","v":"Internal Error, Contact Support"},{"$f":"IF($R$7=\"Invalid\",\"Internal Error, Contact Support\",VLOOKUP(#REF!,#REF!,2,FALSE))","v":"Internal Error, Contact Support"},{"$f":"IF($R$7=\"Invalid\",\"Internal Error, Contact Support\",VLOOKUP(#REF!,#REF!,2,FALSE))","v":"Internal Error, Contact Support"},{"$f":"IF($R$7=\"Invalid\",\"Internal Error, Contact Support\",VLOOKUP(#REF!,#REF!,2,FALSE))","v":"Internal Error, Contact Support"},{"$f":"IF($R$7=\"Invalid\",\"Internal Error, Contact Support\",VLOOKUP(#REF!,#REF!,2,FALSE))","v":"Internal Error, Contact Support"},{"$f":"IF($R$7=\"Invalid\",\"Internal Error, Contact Support\",VLOOKUP(#REF!,#REF!,2,FALSE))","v":"Internal Error, Contact Support"},{"$f":"IF($R$7=\"Invalid\",\"Internal Error, Contact Support\",VLOOKUP(#REF!,#REF!,2,FALSE))","v":"Internal Error, Contact Support"},{"$f":"IF($R$7=\"Invalid\",\"Internal Error, Contact Support\",VLOOKUP(#REF!,#REF!,2,FALSE))","v":"Internal Error, Contact Support"},{"$f":"IF($R$7=\"Invalid\",\"Internal Error, Contact Support\",VLOOKUP(#REF!,#REF!,2,FALSE))","v":"Internal Error, Contact Support"},{"$f":"IF($R$7=\"Invalid\",\"Internal Error, Contact Support\",VLOOKUP(#REF!,#REF!,2,FALSE))","v":"Internal Error, Contact Support"},{"$f":"IF($R$7=\"Invalid\",\"Internal Error, Contact Support\",VLOOKUP(#REF!,#REF!,2,FALSE))","v":"Internal Error, Contact Support"},{"$f":"IF($R$7=\"Invalid\",\"Internal Error, Contact Support\",VLOOKUP(#REF!,#REF!,2,FALSE))","v":"Internal Error, Contact Support"},{"$f":"IF($R$7=\"Invalid\",\"Internal Error, Contact Support\",VLOOKUP(#REF!,#REF!,2,FALSE))","v":"Internal Error, Contact Support"}]
[{"$f":"eSPAR!A59","v":0},{"$f":"eSPAR!B59","v":0},{"$f":"IF($R$7=\"Invalid\",\"Internal Error, Contact Support\",VLOOKUP(#REF!,#REF!,2,FALSE))","v":"Internal Error, Contact Support"},{"$f":"IF($R$7=\"Invalid\",\"Internal Error, Contact Support\",VLOOKUP(#REF!,#REF!,2,FALSE))","v":"Internal Error, Contact Support"},{"$f":"IF($R$7=\"Invalid\",\"Internal Error, Contact Support\",VLOOKUP(#REF!,#REF!,2,FALSE))","v":"Internal Error, Contact Support"},{"$f":"IF($R$7=\"Invalid\",\"Internal Error, Contact Support\",VLOOKUP(#REF!,#REF!,2,FALSE))","v":"Internal Error, Contact Support"},{"$f":"IF($R$7=\"Invalid\",\"Internal Error, Contact Support\",VLOOKUP(#REF!,#REF!,2,FALSE))","v":"Internal Error, Contact Support"},{"$f":"IF($R$7=\"Invalid\",\"Internal Error, Contact Support\",VLOOKUP(#REF!,#REF!,2,FALSE))","v":"Internal Error, Contact Support"},{"$f":"IF($R$7=\"Invalid\",\"Internal Error, Contact Support\",VLOOKUP(#REF!,#REF!,2,FALSE))","v":"Internal Error, Contact Support"},{"$f":"IF($R$7=\"Invalid\",\"Internal Error, Contact Support\",VLOOKUP(#REF!,#REF!,2,FALSE))","v":"Internal Error, Contact Support"},{"$f":"IF($R$7=\"Invalid\",\"Internal Error, Contact Support\",VLOOKUP(#REF!,#REF!,2,FALSE))","v":"Internal Error, Contact Support"},{"$f":"IF($R$7=\"Invalid\",\"Internal Error, Contact Support\",VLOOKUP(#REF!,#REF!,2,FALSE))","v":"Internal Error, Contact Support"},{"$f":"IF($R$7=\"Invalid\",\"Internal Error, Contact Support\",VLOOKUP(#REF!,#REF!,2,FALSE))","v":"Internal Error, Contact Support"},{"$f":"IF($R$7=\"Invalid\",\"Internal Error, Contact Support\",VLOOKUP(#REF!,#REF!,2,FALSE))","v":"Internal Error, Contact Support"},{"$f":"IF($R$7=\"Invalid\",\"Internal Error, Contact Support\",VLOOKUP(#REF!,#REF!,2,FALSE))","v":"Internal Error, Contact Support"}]
[{"$f":"eSPAR!A60","v":0},{"$f":"eSPAR!B60","v":0},{"$f":"IF($R$7=\"Invalid\",\"Internal Error, Contact Support\",VLOOKUP(#REF!,#REF!,2,FALSE))","v":"Internal Error, Contact Support"},{"$f":"IF($R$7=\"Invalid\",\"Internal Error, Contact Support\",VLOOKUP(#REF!,#REF!,2,FALSE))","v":"Internal Error, Contact Support"},{"$f":"IF($R$7=\"Invalid\",\"Internal Error, Contact Support\",VLOOKUP(#REF!,#REF!,2,FALSE))","v":"Internal Error, Contact Support"},{"$f":"IF($R$7=\"Invalid\",\"Internal Error, Contact Support\",VLOOKUP(#REF!,#REF!,2,FALSE))","v":"Internal Error, Contact Support"},{"$f":"IF($R$7=\"Invalid\",\"Internal Error, Contact Support\",VLOOKUP(#REF!,#REF!,2,FALSE))","v":"Internal Error, Contact Support"},{"$f":"IF($R$7=\"Invalid\",\"Internal Error, Contact Support\",VLOOKUP(#REF!,#REF!,2,FALSE))","v":"Internal Error, Contact Support"},{"$f":"IF($R$7=\"Invalid\",\"Internal Error, Contact Support\",VLOOKUP(#REF!,#REF!,2,FALSE))","v":"Internal Error, Contact Support"},{"$f":"IF($R$7=\"Invalid\",\"Internal Error, Contact Support\",VLOOKUP(#REF!,#REF!,2,FALSE))","v":"Internal Error, Contact Support"},{"$f":"IF($R$7=\"Invalid\",\"Internal Error, Contact Support\",VLOOKUP(#REF!,#REF!,2,FALSE))","v":"Internal Error, Contact Support"},{"$f":"IF($R$7=\"Invalid\",\"Internal Error, Contact Support\",VLOOKUP(#REF!,#REF!,2,FALSE))","v":"Internal Error, Contact Support"},{"$f":"IF($R$7=\"Invalid\",\"Internal Error, Contact Support\",VLOOKUP(#REF!,#REF!,2,FALSE))","v":"Internal Error, Contact Support"},{"$f":"IF($R$7=\"Invalid\",\"Internal Error, Contact Support\",VLOOKUP(#REF!,#REF!,2,FALSE))","v":"Internal Error, Contact Support"},{"$f":"IF($R$7=\"Invalid\",\"Internal Error, Contact Support\",VLOOKUP(#REF!,#REF!,2,FALSE))","v":"Internal Error, Contact Support"}]
[{"$f":"eSPAR!A61","v":0},{"$f":"eSPAR!B61","v":0},{"$f":"IF($R$7=\"Invalid\",\"Internal Error, Contact Support\",VLOOKUP(#REF!,#REF!,2,FALSE))","v":"Internal Error, Contact Support"},{"$f":"IF($R$7=\"Invalid\",\"Internal Error, Contact Support\",VLOOKUP(#REF!,#REF!,2,FALSE))","v":"Internal Error, Contact Support"},{"$f":"IF($R$7=\"Invalid\",\"Internal Error, Contact Support\",VLOOKUP(#REF!,#REF!,2,FALSE))","v":"Internal Error, Contact Support"},{"$f":"IF($R$7=\"Invalid\",\"Internal Error, Contact Support\",VLOOKUP(#REF!,#REF!,2,FALSE))","v":"Internal Error, Contact Support"},{"$f":"IF($R$7=\"Invalid\",\"Internal Error, Contact Support\",VLOOKUP(#REF!,#REF!,2,FALSE))","v":"Internal Error, Contact Support"},{"$f":"IF($R$7=\"Invalid\",\"Internal Error, Contact Support\",VLOOKUP(#REF!,#REF!,2,FALSE))","v":"Internal Error, Contact Support"},{"$f":"IF($R$7=\"Invalid\",\"Internal Error, Contact Support\",VLOOKUP(#REF!,#REF!,2,FALSE))","v":"Internal Error, Contact Support"},{"$f":"IF($R$7=\"Invalid\",\"Internal Error, Contact Support\",VLOOKUP(#REF!,#REF!,2,FALSE))","v":"Internal Error, Contact Support"},{"$f":"IF($R$7=\"Invalid\",\"Internal Error, Contact Support\",VLOOKUP(#REF!,#REF!,2,FALSE))","v":"Internal Error, Contact Support"},{"$f":"IF($R$7=\"Invalid\",\"Internal Error, Contact Support\",VLOOKUP(#REF!,#REF!,2,FALSE))","v":"Internal Error, Contact Support"},{"$f":"IF($R$7=\"Invalid\",\"Internal Error, Contact Support\",VLOOKUP(#REF!,#REF!,2,FALSE))","v":"Internal Error, Contact Support"},{"$f":"IF($R$7=\"Invalid\",\"Internal Error, Contact Support\",VLOOKUP(#REF!,#REF!,2,FALSE))","v":"Internal Error, Contact Support"},{"$f":"IF($R$7=\"Invalid\",\"Internal Error, Contact Support\",VLOOKUP(#REF!,#REF!,2,FALSE))","v":"Internal Error, Contact Support"}]
[{"$f":"eSPAR!A62","v":0},{"$f":"eSPAR!B62","v":0},{"$f":"IF($R$7=\"Invalid\",\"Internal Error, Contact Support\",VLOOKUP(#REF!,#REF!,2,FALSE))","v":"Internal Error, Contact Support"},{"$f":"IF($R$7=\"Invalid\",\"Internal Error, Contact Support\",VLOOKUP(#REF!,#REF!,2,FALSE))","v":"Internal Error, Contact Support"},{"$f":"IF($R$7=\"Invalid\",\"Internal Error, Contact Support\",VLOOKUP(#REF!,#REF!,2,FALSE))","v":"Internal Error, Contact Support"},{"$f":"IF($R$7=\"Invalid\",\"Internal Error, Contact Support\",VLOOKUP(#REF!,#REF!,2,FALSE))","v":"Internal Error, Contact Support"},{"$f":"IF($R$7=\"Invalid\",\"Internal Error, Contact Support\",VLOOKUP(#REF!,#REF!,2,FALSE))","v":"Internal Error, Contact Support"},{"$f":"IF($R$7=\"Invalid\",\"Internal Error, Contact Support\",VLOOKUP(#REF!,#REF!,2,FALSE))","v":"Internal Error, Contact Support"},{"$f":"IF($R$7=\"Invalid\",\"Internal Error, Contact Support\",VLOOKUP(#REF!,#REF!,2,FALSE))","v":"Internal Error, Contact Support"},{"$f":"IF($R$7=\"Invalid\",\"Internal Error, Contact Support\",VLOOKUP(#REF!,#REF!,2,FALSE))","v":"Internal Error, Contact Support"},{"$f":"IF($R$7=\"Invalid\",\"Internal Error, Contact Support\",VLOOKUP(#REF!,#REF!,2,FALSE))","v":"Internal Error, Contact Support"},{"$f":"IF($R$7=\"Invalid\",\"Internal Error, Contact Support\",VLOOKUP(#REF!,#REF!,2,FALSE))","v":"Internal Error, Contact Support"},{"$f":"IF($R$7=\"Invalid\",\"Internal Error, Contact Support\",VLOOKUP(#REF!,#REF!,2,FALSE))","v":"Internal Error, Contact Support"},{"$f":"IF($R$7=\"Invalid\",\"Internal Error, Contact Support\",VLOOKUP(#REF!,#REF!,2,FALSE))","v":"Internal Error, Contact Support"},{"$f":"IF($R$7=\"Invalid\",\"Internal Error, Contact Support\",VLOOKUP(#REF!,#REF!,2,FALSE))","v":"Internal Error, Contact Support"}]
[{"$f":"eSPAR!A63","v":0},{"$f":"eSPAR!B63","v":0},{"$f":"IF($R$7=\"Invalid\",\"Internal Error, Contact Support\",VLOOKUP(#REF!,#REF!,2,FALSE))","v":"Internal Error, Contact Support"},{"$f":"IF($R$7=\"Invalid\",\"Internal Error, Contact Support\",VLOOKUP(#REF!,#REF!,2,FALSE))","v":"Internal Error, Contact Support"},{"$f":"IF($R$7=\"Invalid\",\"Internal Error, Contact Support\",VLOOKUP(#REF!,#REF!,2,FALSE))","v":"Internal Error, Contact Support"},{"$f":"IF($R$7=\"Invalid\",\"Internal Error, Contact Support\",VLOOKUP(#REF!,#REF!,2,FALSE))","v":"Internal Error, Contact Support"},{"$f":"IF($R$7=\"Invalid\",\"Internal Error, Contact Support\",VLOOKUP(#REF!,#REF!,2,FALSE))","v":"Internal Error, Contact Support"},{"$f":"IF($R$7=\"Invalid\",\"Internal Error, Contact Support\",VLOOKUP(#REF!,#REF!,2,FALSE))","v":"Internal Error, Contact Support"},{"$f":"IF($R$7=\"Invalid\",\"Internal Error, Contact Support\",VLOOKUP(#REF!,#REF!,2,FALSE))","v":"Internal Error, Contact Support"},{"$f":"IF($R$7=\"Invalid\",\"Internal Error, Contact Support\",VLOOKUP(#REF!,#REF!,2,FALSE))","v":"Internal Error, Contact Support"},{"$f":"IF($R$7=\"Invalid\",\"Internal Error, Contact Support\",VLOOKUP(#REF!,#REF!,2,FALSE))","v":"Internal Error, Contact Support"},{"$f":"IF($R$7=\"Invalid\",\"Internal Error, Contact Support\",VLOOKUP(#REF!,#REF!,2,FALSE))","v":"Internal Error, Contact Support"},{"$f":"IF($R$7=\"Invalid\",\"Internal Error, Contact Support\",VLOOKUP(#REF!,#REF!,2,FALSE))","v":"Internal Error, Contact Support"},{"$f":"IF($R$7=\"Invalid\",\"Internal Error, Contact Support\",VLOOKUP(#REF!,#REF!,2,FALSE))","v":"Internal Error, Contact Support"},{"$f":"IF($R$7=\"Invalid\",\"Internal Error, Contact Support\",VLOOKUP(#REF!,#REF!,2,FALSE))","v":"Internal Error, Contact Support"}]
[{"$f":"eSPAR!A64","v":0},{"$f":"eSPAR!B64","v":0},{"$f":"IF($R$7=\"Invalid\",\"Internal Error, Contact Support\",VLOOKUP(#REF!,#REF!,2,FALSE))","v":"Internal Error, Contact Support"},{"$f":"IF($R$7=\"Invalid\",\"Internal Error, Contact Support\",VLOOKUP(#REF!,#REF!,2,FALSE))","v":"Internal Error, Contact Support"},{"$f":"IF($R$7=\"Invalid\",\"Internal Error, Contact Support\",VLOOKUP(#REF!,#REF!,2,FALSE))","v":"Internal Error, Contact Support"},{"$f":"IF($R$7=\"Invalid\",\"Internal Error, Contact Support\",VLOOKUP(#REF!,#REF!,2,FALSE))","v":"Internal Error, Contact Support"},{"$f":"IF($R$7=\"Invalid\",\"Internal Error, Contact Support\",VLOOKUP(#REF!,#REF!,2,FALSE))","v":"Internal Error, Contact Support"},{"$f":"IF($R$7=\"Invalid\",\"Internal Error, Contact Support\",VLOOKUP(#REF!,#REF!,2,FALSE))","v":"Internal Error, Contact Support"},{"$f":"IF($R$7=\"Invalid\",\"Internal Error, Contact Support\",VLOOKUP(#REF!,#REF!,2,FALSE))","v":"Internal Error, Contact Support"},{"$f":"IF($R$7=\"Invalid\",\"Internal Error, Contact Support\",VLOOKUP(#REF!,#REF!,2,FALSE))","v":"Internal Error, Contact Support"},{"$f":"IF($R$7=\"Invalid\",\"Internal Error, Contact Support\",VLOOKUP(#REF!,#REF!,2,FALSE))","v":"Internal Error, Contact Support"},{"$f":"IF($R$7=\"Invalid\",\"Internal Error, Contact Support\",VLOOKUP(#REF!,#REF!,2,FALSE))","v":"Internal Error, Contact Support"},{"$f":"IF($R$7=\"Invalid\",\"Internal Error, Contact Support\",VLOOKUP(#REF!,#REF!,2,FALSE))","v":"Internal Error, Contact Support"},{"$f":"IF($R$7=\"Invalid\",\"Internal Error, Contact Support\",VLOOKUP(#REF!,#REF!,2,FALSE))","v":"Internal Error, Contact Support"},{"$f":"IF($R$7=\"Invalid\",\"Internal Error, Contact Support\",VLOOKUP(#REF!,#REF!,2,FALSE))","v":"Internal Error, Contact Support"}]
[{"$f":"eSPAR!A65","v":0},{"$f":"eSPAR!B65","v":0},{"$f":"IF($R$7=\"Invalid\",\"Internal Error, Contact Support\",VLOOKUP(#REF!,#REF!,2,FALSE))","v":"Internal Error, Contact Support"},{"$f":"IF($R$7=\"Invalid\",\"Internal Error, Contact Support\",VLOOKUP(#REF!,#REF!,2,FALSE))","v":"Internal Error, Contact Support"},{"$f":"IF($R$7=\"Invalid\",\"Internal Error, Contact Support\",VLOOKUP(#REF!,#REF!,2,FALSE))","v":"Internal Error, Contact Support"},{"$f":"IF($R$7=\"Invalid\",\"Internal Error, Contact Support\",VLOOKUP(#REF!,#REF!,2,FALSE))","v":"Internal Error, Contact Support"},{"$f":"IF($R$7=\"Invalid\",\"Internal Error, Contact Support\",VLOOKUP(#REF!,#REF!,2,FALSE))","v":"Internal Error, Contact Support"},{"$f":"IF($R$7=\"Invalid\",\"Internal Error, Contact Support\",VLOOKUP(#REF!,#REF!,2,FALSE))","v":"Internal Error, Contact Support"},{"$f":"IF($R$7=\"Invalid\",\"Internal Error, Contact Support\",VLOOKUP(#REF!,#REF!,2,FALSE))","v":"Internal Error, Contact Support"},{"$f":"IF($R$7=\"Invalid\",\"Internal Error, Contact Support\",VLOOKUP(#REF!,#REF!,2,FALSE))","v":"Internal Error, Contact Support"},{"$f":"IF($R$7=\"Invalid\",\"Internal Error, Contact Support\",VLOOKUP(#REF!,#REF!,2,FALSE))","v":"Internal Error, Contact Support"},{"$f":"IF($R$7=\"Invalid\",\"Internal Error, Contact Support\",VLOOKUP(#REF!,#REF!,2,FALSE))","v":"Internal Error, Contact Support"},{"$f":"IF($R$7=\"Invalid\",\"Internal Error, Contact Support\",VLOOKUP(#REF!,#REF!,2,FALSE))","v":"Internal Error, Contact Support"},{"$f":"IF($R$7=\"Invalid\",\"Internal Error, Contact Support\",VLOOKUP(#REF!,#REF!,2,FALSE))","v":"Internal Error, Contact Support"},{"$f":"IF($R$7=\"Invalid\",\"Internal Error, Contact Support\",VLOOKUP(#REF!,#REF!,2,FALSE))","v":"Internal Error, Contact Support"}]
[{"$f":"eSPAR!A66","v":0},{"$f":"eSPAR!B66","v":0},{"$f":"IF($R$7=\"Invalid\",\"Internal Error, Contact Support\",VLOOKUP(#REF!,#REF!,2,FALSE))","v":"Internal Error, Contact Support"},{"$f":"IF($R$7=\"Invalid\",\"Internal Error, Contact Support\",VLOOKUP(#REF!,#REF!,2,FALSE))","v":"Internal Error, Contact Support"},{"$f":"IF($R$7=\"Invalid\",\"Internal Error, Contact Support\",VLOOKUP(#REF!,#REF!,2,FALSE))","v":"Internal Error, Contact Support"},{"$f":"IF($R$7=\"Invalid\",\"Internal Error, Contact Support\",VLOOKUP(#REF!,#REF!,2,FALSE))","v":"Internal Error, Contact Support"},{"$f":"IF($R$7=\"Invalid\",\"Internal Error, Contact Support\",VLOOKUP(#REF!,#REF!,2,FALSE))","v":"Internal Error, Contact Support"},{"$f":"IF($R$7=\"Invalid\",\"Internal Error, Contact Support\",VLOOKUP(#REF!,#REF!,2,FALSE))","v":"Internal Error, Contact Support"},{"$f":"IF($R$7=\"Invalid\",\"Internal Error, Contact Support\",VLOOKUP(#REF!,#REF!,2,FALSE))","v":"Internal Error, Contact Support"},{"$f":"IF($R$7=\"Invalid\",\"Internal Error, Contact Support\",VLOOKUP(#REF!,#REF!,2,FALSE))","v":"Internal Error, Contact Support"},{"$f":"IF($R$7=\"Invalid\",\"Internal Error, Contact Support\",VLOOKUP(#REF!,#REF!,2,FALSE))","v":"Internal Error, Contact Support"},{"$f":"IF($R$7=\"Invalid\",\"Internal Error, Contact Support\",VLOOKUP(#REF!,#REF!,2,FALSE))","v":"Internal Error, Contact Support"},{"$f":"IF($R$7=\"Invalid\",\"Internal Error, Contact Support\",VLOOKUP(#REF!,#REF!,2,FALSE))","v":"Internal Error, Contact Support"},{"$f":"IF($R$7=\"Invalid\",\"Internal Error, Contact Support\",VLOOKUP(#REF!,#REF!,2,FALSE))","v":"Internal Error, Contact Support"},{"$f":"IF($R$7=\"Invalid\",\"Internal Error, Contact Support\",VLOOKUP(#REF!,#REF!,2,FALSE))","v":"Internal Error, Contact Support"}]
[{"$f":"eSPAR!A67","v":0},{"$f":"eSPAR!B67","v":0},{"$f":"IF($R$7=\"Invalid\",\"Internal Error, Contact Support\",VLOOKUP(#REF!,#REF!,2,FALSE))","v":"Internal Error, Contact Support"},{"$f":"IF($R$7=\"Invalid\",\"Internal Error, Contact Support\",VLOOKUP(#REF!,#REF!,2,FALSE))","v":"Internal Error, Contact Support"},{"$f":"IF($R$7=\"Invalid\",\"Internal Error, Contact Support\",VLOOKUP(#REF!,#REF!,2,FALSE))","v":"Internal Error, Contact Support"},{"$f":"IF($R$7=\"Invalid\",\"Internal Error, Contact Support\",VLOOKUP(#REF!,#REF!,2,FALSE))","v":"Internal Error, Contact Support"},{"$f":"IF($R$7=\"Invalid\",\"Internal Error, Contact Support\",VLOOKUP(#REF!,#REF!,2,FALSE))","v":"Internal Error, Contact Support"},{"$f":"IF($R$7=\"Invalid\",\"Internal Error, Contact Support\",VLOOKUP(#REF!,#REF!,2,FALSE))","v":"Internal Error, Contact Support"},{"$f":"IF($R$7=\"Invalid\",\"Internal Error, Contact Support\",VLOOKUP(#REF!,#REF!,2,FALSE))","v":"Internal Error, Contact Support"},{"$f":"IF($R$7=\"Invalid\",\"Internal Error, Contact Support\",VLOOKUP(#REF!,#REF!,2,FALSE))","v":"Internal Error, Contact Support"},{"$f":"IF($R$7=\"Invalid\",\"Internal Error, Contact Support\",VLOOKUP(#REF!,#REF!,2,FALSE))","v":"Internal Error, Contact Support"},{"$f":"IF($R$7=\"Invalid\",\"Internal Error, Contact Support\",VLOOKUP(#REF!,#REF!,2,FALSE))","v":"Internal Error, Contact Support"},{"$f":"IF($R$7=\"Invalid\",\"Internal Error, Contact Support\",VLOOKUP(#REF!,#REF!,2,FALSE))","v":"Internal Error, Contact Support"},{"$f":"IF($R$7=\"Invalid\",\"Internal Error, Contact Support\",VLOOKUP(#REF!,#REF!,2,FALSE))","v":"Internal Error, Contact Support"},{"$f":"IF($R$7=\"Invalid\",\"Internal Error, Contact Support\",VLOOKUP(#REF!,#REF!,2,FALSE))","v":"Internal Error, Contact Support"}]
[{"$f":"eSPAR!A68","v":0},{"$f":"eSPAR!B68","v":0},{"$f":"IF($R$7=\"Invalid\",\"Internal Error, Contact Support\",VLOOKUP(#REF!,#REF!,2,FALSE))","v":"Internal Error, Contact Support"},{"$f":"IF($R$7=\"Invalid\",\"Internal Error, Contact Support\",VLOOKUP(#REF!,#REF!,2,FALSE))","v":"Internal Error, Contact Support"},{"$f":"IF($R$7=\"Invalid\",\"Internal Error, Contact Support\",VLOOKUP(#REF!,#REF!,2,FALSE))","v":"Internal Error, Contact Support"},{"$f":"IF($R$7=\"Invalid\",\"Internal Error, Contact Support\",VLOOKUP(#REF!,#REF!,2,FALSE))","v":"Internal Error, Contact Support"},{"$f":"IF($R$7=\"Invalid\",\"Internal Error, Contact Support\",VLOOKUP(#REF!,#REF!,2,FALSE))","v":"Internal Error, Contact Support"},{"$f":"IF($R$7=\"Invalid\",\"Internal Error, Contact Support\",VLOOKUP(#REF!,#REF!,2,FALSE))","v":"Internal Error, Contact Support"},{"$f":"IF($R$7=\"Invalid\",\"Internal Error, Contact Support\",VLOOKUP(#REF!,#REF!,2,FALSE))","v":"Internal Error, Contact Support"},{"$f":"IF($R$7=\"Invalid\",\"Internal Error, Contact Support\",VLOOKUP(#REF!,#REF!,2,FALSE))","v":"Internal Error, Contact Support"},{"$f":"IF($R$7=\"Invalid\",\"Internal Error, Contact Support\",VLOOKUP(#REF!,#REF!,2,FALSE))","v":"Internal Error, Contact Support"},{"$f":"IF($R$7=\"Invalid\",\"Internal Error, Contact Support\",VLOOKUP(#REF!,#REF!,2,FALSE))","v":"Internal Error, Contact Support"},{"$f":"IF($R$7=\"Invalid\",\"Internal Error, Contact Support\",VLOOKUP(#REF!,#REF!,2,FALSE))","v":"Internal Error, Contact Support"},{"$f":"IF($R$7=\"Invalid\",\"Internal Error, Contact Support\",VLOOKUP(#REF!,#REF!,2,FALSE))","v":"Internal Error, Contact Support"},{"$f":"IF($R$7=\"Invalid\",\"Internal Error, Contact Support\",VLOOKUP(#REF!,#REF!,2,FALSE))","v":"Internal Error, Contact Support"}]
[{"$f":"eSPAR!A69","v":0},{"$f":"eSPAR!B69","v":0},{"$f":"IF($R$7=\"Invalid\",\"Internal Error, Contact Support\",VLOOKUP(#REF!,#REF!,2,FALSE))","v":"Internal Error, Contact Support"},{"$f":"IF($R$7=\"Invalid\",\"Internal Error, Contact Support\",VLOOKUP(#REF!,#REF!,2,FALSE))","v":"Internal Error, Contact Support"},{"$f":"IF($R$7=\"Invalid\",\"Internal Error, Contact Support\",VLOOKUP(#REF!,#REF!,2,FALSE))","v":"Internal Error, Contact Support"},{"$f":"IF($R$7=\"Invalid\",\"Internal Error, Contact Support\",VLOOKUP(#REF!,#REF!,2,FALSE))","v":"Internal Error, Contact Support"},{"$f":"IF($R$7=\"Invalid\",\"Internal Error, Contact Support\",VLOOKUP(#REF!,#REF!,2,FALSE))","v":"Internal Error, Contact Support"},{"$f":"IF($R$7=\"Invalid\",\"Internal Error, Contact Support\",VLOOKUP(#REF!,#REF!,2,FALSE))","v":"Internal Error, Contact Support"},{"$f":"IF($R$7=\"Invalid\",\"Internal Error, Contact Support\",VLOOKUP(#REF!,#REF!,2,FALSE))","v":"Internal Error, Contact Support"},{"$f":"IF($R$7=\"Invalid\",\"Internal Error, Contact Support\",VLOOKUP(#REF!,#REF!,2,FALSE))","v":"Internal Error, Contact Support"},{"$f":"IF($R$7=\"Invalid\",\"Internal Error, Contact Support\",VLOOKUP(#REF!,#REF!,2,FALSE))","v":"Internal Error, Contact Support"},{"$f":"IF($R$7=\"Invalid\",\"Internal Error, Contact Support\",VLOOKUP(#REF!,#REF!,2,FALSE))","v":"Internal Error, Contact Support"},{"$f":"IF($R$7=\"Invalid\",\"Internal Error, Contact Support\",VLOOKUP(#REF!,#REF!,2,FALSE))","v":"Internal Error, Contact Support"},{"$f":"IF($R$7=\"Invalid\",\"Internal Error, Contact Support\",VLOOKUP(#REF!,#REF!,2,FALSE))","v":"Internal Error, Contact Support"},{"$f":"IF($R$7=\"Invalid\",\"Internal Error, Contact Support\",VLOOKUP(#REF!,#REF!,2,FALSE))","v":"Internal Error, Contact Support"}]
[{"$f":"eSPAR!A70","v":0},{"$f":"eSPAR!B70","v":0},{"$f":"IF($R$7=\"Invalid\",\"Internal Error, Contact Support\",VLOOKUP(#REF!,#REF!,2,FALSE))","v":"Internal Error, Contact Support"},{"$f":"IF($R$7=\"Invalid\",\"Internal Error, Contact Support\",VLOOKUP(#REF!,#REF!,2,FALSE))","v":"Internal Error, Contact Support"},{"$f":"IF($R$7=\"Invalid\",\"Internal Error, Contact Support\",VLOOKUP(#REF!,#REF!,2,FALSE))","v":"Internal Error, Contact Support"},{"$f":"IF($R$7=\"Invalid\",\"Internal Error, Contact Support\",VLOOKUP(#REF!,#REF!,2,FALSE))","v":"Internal Error, Contact Support"},{"$f":"IF($R$7=\"Invalid\",\"Internal Error, Contact Support\",VLOOKUP(#REF!,#REF!,2,FALSE))","v":"Internal Error, Contact Support"},{"$f":"IF($R$7=\"Invalid\",\"Internal Error, Contact Support\",VLOOKUP(#REF!,#REF!,2,FALSE))","v":"Internal Error, Contact Support"},{"$f":"IF($R$7=\"Invalid\",\"Internal Error, Contact Support\",VLOOKUP(#REF!,#REF!,2,FALSE))","v":"Internal Error, Contact Support"},{"$f":"IF($R$7=\"Invalid\",\"Internal Error, Contact Support\",VLOOKUP(#REF!,#REF!,2,FALSE))","v":"Internal Error, Contact Support"},{"$f":"IF($R$7=\"Invalid\",\"Internal Error, Contact Support\",VLOOKUP(#REF!,#REF!,2,FALSE))","v":"Internal Error, Contact Support"},{"$f":"IF($R$7=\"Invalid\",\"Internal Error, Contact Support\",VLOOKUP(#REF!,#REF!,2,FALSE))","v":"Internal Error, Contact Support"},{"$f":"IF($R$7=\"Invalid\",\"Internal Error, Contact Support\",VLOOKUP(#REF!,#REF!,2,FALSE))","v":"Internal Error, Contact Support"},{"$f":"IF($R$7=\"Invalid\",\"Internal Error, Contact Support\",VLOOKUP(#REF!,#REF!,2,FALSE))","v":"Internal Error, Contact Support"},{"$f":"IF($R$7=\"Invalid\",\"Internal Error, Contact Support\",VLOOKUP(#REF!,#REF!,2,FALSE))","v":"Internal Error, Contact Support"}]
[{"$f":"eSPAR!A71","v":0},{"$f":"eSPAR!B71","v":0},{"$f":"IF($R$7=\"Invalid\",\"Internal Error, Contact Support\",VLOOKUP(#REF!,#REF!,2,FALSE))","v":"Internal Error, Contact Support"},{"$f":"IF($R$7=\"Invalid\",\"Internal Error, Contact Support\",VLOOKUP(#REF!,#REF!,2,FALSE))","v":"Internal Error, Contact Support"},{"$f":"IF($R$7=\"Invalid\",\"Internal Error, Contact Support\",VLOOKUP(#REF!,#REF!,2,FALSE))","v":"Internal Error, Contact Support"},{"$f":"IF($R$7=\"Invalid\",\"Internal Error, Contact Support\",VLOOKUP(#REF!,#REF!,2,FALSE))","v":"Internal Error, Contact Support"},{"$f":"IF($R$7=\"Invalid\",\"Internal Error, Contact Support\",VLOOKUP(#REF!,#REF!,2,FALSE))","v":"Internal Error, Contact Support"},{"$f":"IF($R$7=\"Invalid\",\"Internal Error, Contact Support\",VLOOKUP(#REF!,#REF!,2,FALSE))","v":"Internal Error, Contact Support"},{"$f":"IF($R$7=\"Invalid\",\"Internal Error, Contact Support\",VLOOKUP(#REF!,#REF!,2,FALSE))","v":"Internal Error, Contact Support"},{"$f":"IF($R$7=\"Invalid\",\"Internal Error, Contact Support\",VLOOKUP(#REF!,#REF!,2,FALSE))","v":"Internal Error, Contact Support"},{"$f":"IF($R$7=\"Invalid\",\"Internal Error, Contact Support\",VLOOKUP(#REF!,#REF!,2,FALSE))","v":"Internal Error, Contact Support"},{"$f":"IF($R$7=\"Invalid\",\"Internal Error, Contact Support\",VLOOKUP(#REF!,#REF!,2,FALSE))","v":"Internal Error, Contact Support"},{"$f":"IF($R$7=\"Invalid\",\"Internal Error, Contact Support\",VLOOKUP(#REF!,#REF!,2,FALSE))","v":"Internal Error, Contact Support"},{"$f":"IF($R$7=\"Invalid\",\"Internal Error, Contact Support\",VLOOKUP(#REF!,#REF!,2,FALSE))","v":"Internal Error, Contact Support"},{"$f":"IF($R$7=\"Invalid\",\"Internal Error, Contact Support\",VLOOKUP(#REF!,#REF!,2,FALSE))","v":"Internal Error, Contact Support"}]
[{"$f":"eSPAR!A72","v":0},{"$f":"eSPAR!B72","v":0},{"$f":"IF($R$7=\"Invalid\",\"Internal Error, Contact Support\",VLOOKUP(#REF!,#REF!,2,FALSE))","v":"Internal Error, Contact Support"},{"$f":"IF($R$7=\"Invalid\",\"Internal Error, Contact Support\",VLOOKUP(#REF!,#REF!,2,FALSE))","v":"Internal Error, Contact Support"},{"$f":"IF($R$7=\"Invalid\",\"Internal Error, Contact Support\",VLOOKUP(#REF!,#REF!,2,FALSE))","v":"Internal Error, Contact Support"},{"$f":"IF($R$7=\"Invalid\",\"Internal Error, Contact Support\",VLOOKUP(#REF!,#REF!,2,FALSE))","v":"Internal Error, Contact Support"},{"$f":"IF($R$7=\"Invalid\",\"Internal Error, Contact Support\",VLOOKUP(#REF!,#REF!,2,FALSE))","v":"Internal Error, Contact Support"},{"$f":"IF($R$7=\"Invalid\",\"Internal Error, Contact Support\",VLOOKUP(#REF!,#REF!,2,FALSE))","v":"Internal Error, Contact Support"},{"$f":"IF($R$7=\"Invalid\",\"Internal Error, Contact Support\",VLOOKUP(#REF!,#REF!,2,FALSE))","v":"Internal Error, Contact Support"},{"$f":"IF($R$7=\"Invalid\",\"Internal Error, Contact Support\",VLOOKUP(#REF!,#REF!,2,FALSE))","v":"Internal Error, Contact Support"},{"$f":"IF($R$7=\"Invalid\",\"Internal Error, Contact Support\",VLOOKUP(#REF!,#REF!,2,FALSE))","v":"Internal Error, Contact Support"},{"$f":"IF($R$7=\"Invalid\",\"Internal Error, Contact Support\",VLOOKUP(#REF!,#REF!,2,FALSE))","v":"Internal Error, Contact Support"},{"$f":"IF($R$7=\"Invalid\",\"Internal Error, Contact Support\",VLOOKUP(#REF!,#REF!,2,FALSE))","v":"Internal Error, Contact Support"},{"$f":"IF($R$7=\"Invalid\",\"Internal Error, Contact Support\",VLOOKUP(#REF!,#REF!,2,FALSE))","v":"Internal Error, Contact Support"},{"$f":"IF($R$7=\"Invalid\",\"Internal Error, Contact Support\",VLOOKUP(#REF!,#REF!,2,FALSE))","v":"Internal Error, Contact Support"}]
[{"$f":"eSPAR!A73","v":0},{"$f":"eSPAR!B73","v":0},{"$f":"IF($R$7=\"Invalid\",\"Internal Error, Contact Support\",VLOOKUP(#REF!,#REF!,2,FALSE))","v":"Internal Error, Contact Support"},{"$f":"IF($R$7=\"Invalid\",\"Internal Error, Contact Support\",VLOOKUP(#REF!,#REF!,2,FALSE))","v":"Internal Error, Contact Support"},{"$f":"IF($R$7=\"Invalid\",\"Internal Error, Contact Support\",VLOOKUP(#REF!,#REF!,2,FALSE))","v":"Internal Error, Contact Support"},{"$f":"IF($R$7=\"Invalid\",\"Internal Error, Contact Support\",VLOOKUP(#REF!,#REF!,2,FALSE))","v":"Internal Error, Contact Support"},{"$f":"IF($R$7=\"Invalid\",\"Internal Error, Contact Support\",VLOOKUP(#REF!,#REF!,2,FALSE))","v":"Internal Error, Contact Support"},{"$f":"IF($R$7=\"Invalid\",\"Internal Error, Contact Support\",VLOOKUP(#REF!,#REF!,2,FALSE))","v":"Internal Error, Contact Support"},{"$f":"IF($R$7=\"Invalid\",\"Internal Error, Contact Support\",VLOOKUP(#REF!,#REF!,2,FALSE))","v":"Internal Error, Contact Support"},{"$f":"IF($R$7=\"Invalid\",\"Internal Error, Contact Support\",VLOOKUP(#REF!,#REF!,2,FALSE))","v":"Internal Error, Contact Support"},{"$f":"IF($R$7=\"Invalid\",\"Internal Error, Contact Support\",VLOOKUP(#REF!,#REF!,2,FALSE))","v":"Internal Error, Contact Support"},{"$f":"IF($R$7=\"Invalid\",\"Internal Error, Contact Support\",VLOOKUP(#REF!,#REF!,2,FALSE))","v":"Internal Error, Contact Support"},{"$f":"IF($R$7=\"Invalid\",\"Internal Error, Contact Support\",VLOOKUP(#REF!,#REF!,2,FALSE))","v":"Internal Error, Contact Support"},{"$f":"IF($R$7=\"Invalid\",\"Internal Error, Contact Support\",VLOOKUP(#REF!,#REF!,2,FALSE))","v":"Internal Error, Contact Support"},{"$f":"IF($R$7=\"Invalid\",\"Internal Error, Contact Support\",VLOOKUP(#REF!,#REF!,2,FALSE))","v":"Internal Error, Contact Support"}]
[{"$f":"eSPAR!A74","v":0},{"$f":"eSPAR!B74","v":0},{"$f":"IF($R$7=\"Invalid\",\"Internal Error, Contact Support\",VLOOKUP(#REF!,#REF!,2,FALSE))","v":"Internal Error, Contact Support"},{"$f":"IF($R$7=\"Invalid\",\"Internal Error, Contact Support\",VLOOKUP(#REF!,#REF!,2,FALSE))","v":"Internal Error, Contact Support"},{"$f":"IF($R$7=\"Invalid\",\"Internal Error, Contact Support\",VLOOKUP(#REF!,#REF!,2,FALSE))","v":"Internal Error, Contact Support"},{"$f":"IF($R$7=\"Invalid\",\"Internal Error, Contact Support\",VLOOKUP(#REF!,#REF!,2,FALSE))","v":"Internal Error, Contact Support"},{"$f":"IF($R$7=\"Invalid\",\"Internal Error, Contact Support\",VLOOKUP(#REF!,#REF!,2,FALSE))","v":"Internal Error, Contact Support"},{"$f":"IF($R$7=\"Invalid\",\"Internal Error, Contact Support\",VLOOKUP(#REF!,#REF!,2,FALSE))","v":"Internal Error, Contact Support"},{"$f":"IF($R$7=\"Invalid\",\"Internal Error, Contact Support\",VLOOKUP(#REF!,#REF!,2,FALSE))","v":"Internal Error, Contact Support"},{"$f":"IF($R$7=\"Invalid\",\"Internal Error, Contact Support\",VLOOKUP(#REF!,#REF!,2,FALSE))","v":"Internal Error, Contact Support"},{"$f":"IF($R$7=\"Invalid\",\"Internal Error, Contact Support\",VLOOKUP(#REF!,#REF!,2,FALSE))","v":"Internal Error, Contact Support"},{"$f":"IF($R$7=\"Invalid\",\"Internal Error, Contact Support\",VLOOKUP(#REF!,#REF!,2,FALSE))","v":"Internal Error, Contact Support"},{"$f":"IF($R$7=\"Invalid\",\"Internal Error, Contact Support\",VLOOKUP(#REF!,#REF!,2,FALSE))","v":"Internal Error, Contact Support"},{"$f":"IF($R$7=\"Invalid\",\"Internal Error, Contact Support\",VLOOKUP(#REF!,#REF!,2,FALSE))","v":"Internal Error, Contact Support"},{"$f":"IF($R$7=\"Invalid\",\"Internal Error, Contact Support\",VLOOKUP(#REF!,#REF!,2,FALSE))","v":"Internal Error, Contact Support"}]
[{"$f":"eSPAR!A75","v":0},{"$f":"eSPAR!B75","v":0},{"$f":"IF($R$7=\"Invalid\",\"Internal Error, Contact Support\",VLOOKUP(#REF!,#REF!,2,FALSE))","v":"Internal Error, Contact Support"},{"$f":"IF($R$7=\"Invalid\",\"Internal Error, Contact Support\",VLOOKUP(#REF!,#REF!,2,FALSE))","v":"Internal Error, Contact Support"},{"$f":"IF($R$7=\"Invalid\",\"Internal Error, Contact Support\",VLOOKUP(#REF!,#REF!,2,FALSE))","v":"Internal Error, Contact Support"},{"$f":"IF($R$7=\"Invalid\",\"Internal Error, Contact Support\",VLOOKUP(#REF!,#REF!,2,FALSE))","v":"Internal Error, Contact Support"},{"$f":"IF($R$7=\"Invalid\",\"Internal Error, Contact Support\",VLOOKUP(#REF!,#REF!,2,FALSE))","v":"Internal Error, Contact Support"},{"$f":"IF($R$7=\"Invalid\",\"Internal Error, Contact Support\",VLOOKUP(#REF!,#REF!,2,FALSE))","v":"Internal Error, Contact Support"},{"$f":"IF($R$7=\"Invalid\",\"Internal Error, Contact Support\",VLOOKUP(#REF!,#REF!,2,FALSE))","v":"Internal Error, Contact Support"},{"$f":"IF($R$7=\"Invalid\",\"Internal Error, Contact Support\",VLOOKUP(#REF!,#REF!,2,FALSE))","v":"Internal Error, Contact Support"},{"$f":"IF($R$7=\"Invalid\",\"Internal Error, Contact Support\",VLOOKUP(#REF!,#REF!,2,FALSE))","v":"Internal Error, Contact Support"},{"$f":"IF($R$7=\"Invalid\",\"Internal Error, Contact Support\",VLOOKUP(#REF!,#REF!,2,FALSE))","v":"Internal Error, Contact Support"},{"$f":"IF($R$7=\"Invalid\",\"Internal Error, Contact Support\",VLOOKUP(#REF!,#REF!,2,FALSE))","v":"Internal Error, Contact Support"},{"$f":"IF($R$7=\"Invalid\",\"Internal Error, Contact Support\",VLOOKUP(#REF!,#REF!,2,FALSE))","v":"Internal Error, Contact Support"},{"$f":"IF($R$7=\"Invalid\",\"Internal Error, Contact Support\",VLOOKUP(#REF!,#REF!,2,FALSE))","v":"Internal Error, Contact Support"}]
[{"$f":"eSPAR!A76","v":0},{"$f":"eSPAR!B76","v":0},{"$f":"IF($R$7=\"Invalid\",\"Internal Error, Contact Support\",VLOOKUP(#REF!,#REF!,2,FALSE))","v":"Internal Error, Contact Support"},{"$f":"IF($R$7=\"Invalid\",\"Internal Error, Contact Support\",VLOOKUP(#REF!,#REF!,2,FALSE))","v":"Internal Error, Contact Support"},{"$f":"IF($R$7=\"Invalid\",\"Internal Error, Contact Support\",VLOOKUP(#REF!,#REF!,2,FALSE))","v":"Internal Error, Contact Support"},{"$f":"IF($R$7=\"Invalid\",\"Internal Error, Contact Support\",VLOOKUP(#REF!,#REF!,2,FALSE))","v":"Internal Error, Contact Support"},{"$f":"IF($R$7=\"Invalid\",\"Internal Error, Contact Support\",VLOOKUP(#REF!,#REF!,2,FALSE))","v":"Internal Error, Contact Support"},{"$f":"IF($R$7=\"Invalid\",\"Internal Error, Contact Support\",VLOOKUP(#REF!,#REF!,2,FALSE))","v":"Internal Error, Contact Support"},{"$f":"IF($R$7=\"Invalid\",\"Internal Error, Contact Support\",VLOOKUP(#REF!,#REF!,2,FALSE))","v":"Internal Error, Contact Support"},{"$f":"IF($R$7=\"Invalid\",\"Internal Error, Contact Support\",VLOOKUP(#REF!,#REF!,2,FALSE))","v":"Internal Error, Contact Support"},{"$f":"IF($R$7=\"Invalid\",\"Internal Error, Contact Support\",VLOOKUP(#REF!,#REF!,2,FALSE))","v":"Internal Error, Contact Support"},{"$f":"IF($R$7=\"Invalid\",\"Internal Error, Contact Support\",VLOOKUP(#REF!,#REF!,2,FALSE))","v":"Internal Error, Contact Support"},{"$f":"IF($R$7=\"Invalid\",\"Internal Error, Contact Support\",VLOOKUP(#REF!,#REF!,2,FALSE))","v":"Internal Error, Contact Support"},{"$f":"IF($R$7=\"Invalid\",\"Internal Error, Contact Support\",VLOOKUP(#REF!,#REF!,2,FALSE))","v":"Internal Error, Contact Support"},{"$f":"IF($R$7=\"Invalid\",\"Internal Error, Contact Support\",VLOOKUP(#REF!,#REF!,2,FALSE))","v":"Internal Error, Contact Support"}]
[{"$f":"eSPAR!A77","v":0},{"$f":"eSPAR!B77","v":0},{"$f":"IF($R$7=\"Invalid\",\"Internal Error, Contact Support\",VLOOKUP(#REF!,#REF!,2,FALSE))","v":"Internal Error, Contact Support"},{"$f":"IF($R$7=\"Invalid\",\"Internal Error, Contact Support\",VLOOKUP(#REF!,#REF!,2,FALSE))","v":"Internal Error, Contact Support"},{"$f":"IF($R$7=\"Invalid\",\"Internal Error, Contact Support\",VLOOKUP(#REF!,#REF!,2,FALSE))","v":"Internal Error, Contact Support"},{"$f":"IF($R$7=\"Invalid\",\"Internal Error, Contact Support\",VLOOKUP(#REF!,#REF!,2,FALSE))","v":"Internal Error, Contact Support"},{"$f":"IF($R$7=\"Invalid\",\"Internal Error, Contact Support\",VLOOKUP(#REF!,#REF!,2,FALSE))","v":"Internal Error, Contact Support"},{"$f":"IF($R$7=\"Invalid\",\"Internal Error, Contact Support\",VLOOKUP(#REF!,#REF!,2,FALSE))","v":"Internal Error, Contact Support"},{"$f":"IF($R$7=\"Invalid\",\"Internal Error, Contact Support\",VLOOKUP(#REF!,#REF!,2,FALSE))","v":"Internal Error, Contact Support"},{"$f":"IF($R$7=\"Invalid\",\"Internal Error, Contact Support\",VLOOKUP(#REF!,#REF!,2,FALSE))","v":"Internal Error, Contact Support"},{"$f":"IF($R$7=\"Invalid\",\"Internal Error, Contact Support\",VLOOKUP(#REF!,#REF!,2,FALSE))","v":"Internal Error, Contact Support"},{"$f":"IF($R$7=\"Invalid\",\"Internal Error, Contact Support\",VLOOKUP(#REF!,#REF!,2,FALSE))","v":"Internal Error, Contact Support"},{"$f":"IF($R$7=\"Invalid\",\"Internal Error, Contact Support\",VLOOKUP(#REF!,#REF!,2,FALSE))","v":"Internal Error, Contact Support"},{"$f":"IF($R$7=\"Invalid\",\"Internal Error, Contact Support\",VLOOKUP(#REF!,#REF!,2,FALSE))","v":"Internal Error, Contact Support"},{"$f":"IF($R$7=\"Invalid\",\"Internal Error, Contact Support\",VLOOKUP(#REF!,#REF!,2,FALSE))","v":"Internal Error, Contact Support"}]
[{"$f":"eSPAR!A78","v":0},{"$f":"eSPAR!B78","v":0},{"$f":"IF($R$7=\"Invalid\",\"Internal Error, Contact Support\",VLOOKUP(#REF!,#REF!,2,FALSE))","v":"Internal Error, Contact Support"},{"$f":"IF($R$7=\"Invalid\",\"Internal Error, Contact Support\",VLOOKUP(#REF!,#REF!,2,FALSE))","v":"Internal Error, Contact Support"},{"$f":"IF($R$7=\"Invalid\",\"Internal Error, Contact Support\",VLOOKUP(#REF!,#REF!,2,FALSE))","v":"Internal Error, Contact Support"},{"$f":"IF($R$7=\"Invalid\",\"Internal Error, Contact Support\",VLOOKUP(#REF!,#REF!,2,FALSE))","v":"Internal Error, Contact Support"},{"$f":"IF($R$7=\"Invalid\",\"Internal Error, Contact Support\",VLOOKUP(#REF!,#REF!,2,FALSE))","v":"Internal Error, Contact Support"},{"$f":"IF($R$7=\"Invalid\",\"Internal Error, Contact Support\",VLOOKUP(#REF!,#REF!,2,FALSE))","v":"Internal Error, Contact Support"},{"$f":"IF($R$7=\"Invalid\",\"Internal Error, Contact Support\",VLOOKUP(#REF!,#REF!,2,FALSE))","v":"Internal Error, Contact Support"},{"$f":"IF($R$7=\"Invalid\",\"Internal Error, Contact Support\",VLOOKUP(#REF!,#REF!,2,FALSE))","v":"Internal Error, Contact Support"},{"$f":"IF($R$7=\"Invalid\",\"Internal Error, Contact Support\",VLOOKUP(#REF!,#REF!,2,FALSE))","v":"Internal Error, Contact Support"},{"$f":"IF($R$7=\"Invalid\",\"Internal Error, Contact Support\",VLOOKUP(#REF!,#REF!,2,FALSE))","v":"Internal Error, Contact Support"},{"$f":"IF($R$7=\"Invalid\",\"Internal Error, Contact Support\",VLOOKUP(#REF!,#REF!,2,FALSE))","v":"Internal Error, Contact Support"},{"$f":"IF($R$7=\"Invalid\",\"Internal Error, Contact Support\",VLOOKUP(#REF!,#REF!,2,FALSE))","v":"Internal Error, Contact Support"},{"$f":"IF($R$7=\"Invalid\",\"Internal Error, Contact Support\",VLOOKUP(#REF!,#REF!,2,FALSE))","v":"Internal Error, Contact Support"}]
[{"$f":"eSPAR!A79","v":0},{"$f":"eSPAR!B79","v":0},{"$f":"IF($R$7=\"Invalid\",\"Internal Error, Contact Support\",VLOOKUP(#REF!,#REF!,2,FALSE))","v":"Internal Error, Contact Support"},{"$f":"IF($R$7=\"Invalid\",\"Internal Error, Contact Support\",VLOOKUP(#REF!,#REF!,2,FALSE))","v":"Internal Error, Contact Support"},{"$f":"IF($R$7=\"Invalid\",\"Internal Error, Contact Support\",VLOOKUP(#REF!,#REF!,2,FALSE))","v":"Internal Error, Contact Support"},{"$f":"IF($R$7=\"Invalid\",\"Internal Error, Contact Support\",VLOOKUP(#REF!,#REF!,2,FALSE))","v":"Internal Error, Contact Support"},{"$f":"IF($R$7=\"Invalid\",\"Internal Error, Contact Support\",VLOOKUP(#REF!,#REF!,2,FALSE))","v":"Internal Error, Contact Support"},{"$f":"IF($R$7=\"Invalid\",\"Internal Error, Contact Support\",VLOOKUP(#REF!,#REF!,2,FALSE))","v":"Internal Error, Contact Support"},{"$f":"IF($R$7=\"Invalid\",\"Internal Error, Contact Support\",VLOOKUP(#REF!,#REF!,2,FALSE))","v":"Internal Error, Contact Support"},{"$f":"IF($R$7=\"Invalid\",\"Internal Error, Contact Support\",VLOOKUP(#REF!,#REF!,2,FALSE))","v":"Internal Error, Contact Support"},{"$f":"IF($R$7=\"Invalid\",\"Internal Error, Contact Support\",VLOOKUP(#REF!,#REF!,2,FALSE))","v":"Internal Error, Contact Support"},{"$f":"IF($R$7=\"Invalid\",\"Internal Error, Contact Support\",VLOOKUP(#REF!,#REF!,2,FALSE))","v":"Internal Error, Contact Support"},{"$f":"IF($R$7=\"Invalid\",\"Internal Error, Contact Support\",VLOOKUP(#REF!,#REF!,2,FALSE))","v":"Internal Error, Contact Support"},{"$f":"IF($R$7=\"Invalid\",\"Internal Error, Contact Support\",VLOOKUP(#REF!,#REF!,2,FALSE))","v":"Internal Error, Contact Support"},{"$f":"IF($R$7=\"Invalid\",\"Internal Error, Contact Support\",VLOOKUP(#REF!,#REF!,2,FALSE))","v":"Internal Error, Contact Support"}]
[{"$f":"eSPAR!A80","v":0},{"$f":"eSPAR!B80","v":0},{"$f":"IF($R$7=\"Invalid\",\"Internal Error, Contact Support\",VLOOKUP(#REF!,#REF!,2,FALSE))","v":"Internal Error, Contact Support"},{"$f":"IF($R$7=\"Invalid\",\"Internal Error, Contact Support\",VLOOKUP(#REF!,#REF!,2,FALSE))","v":"Internal Error, Contact Support"},{"$f":"IF($R$7=\"Invalid\",\"Internal Error, Contact Support\",VLOOKUP(#REF!,#REF!,2,FALSE))","v":"Internal Error, Contact Support"},{"$f":"IF($R$7=\"Invalid\",\"Internal Error, Contact Support\",VLOOKUP(#REF!,#REF!,2,FALSE))","v":"Internal Error, Contact Support"},{"$f":"IF($R$7=\"Invalid\",\"Internal Error, Contact Support\",VLOOKUP(#REF!,#REF!,2,FALSE))","v":"Internal Error, Contact Support"},{"$f":"IF($R$7=\"Invalid\",\"Internal Error, Contact Support\",VLOOKUP(#REF!,#REF!,2,FALSE))","v":"Internal Error, Contact Support"},{"$f":"IF($R$7=\"Invalid\",\"Internal Error, Contact Support\",VLOOKUP(#REF!,#REF!,2,FALSE))","v":"Internal Error, Contact Support"},{"$f":"IF($R$7=\"Invalid\",\"Internal Error, Contact Support\",VLOOKUP(#REF!,#REF!,2,FALSE))","v":"Internal Error, Contact Support"},{"$f":"IF($R$7=\"Invalid\",\"Internal Error, Contact Support\",VLOOKUP(#REF!,#REF!,2,FALSE))","v":"Internal Error, Contact Support"},{"$f":"IF($R$7=\"Invalid\",\"Internal Error, Contact Support\",VLOOKUP(#REF!,#REF!,2,FALSE))","v":"Internal Error, Contact Support"},{"$f":"IF($R$7=\"Invalid\",\"Internal Error, Contact Support\",VLOOKUP(#REF!,#REF!,2,FALSE))","v":"Internal Error, Contact Support"},{"$f":"IF($R$7=\"Invalid\",\"Internal Error, Contact Support\",VLOOKUP(#REF!,#REF!,2,FALSE))","v":"Internal Error, Contact Support"},{"$f":"IF($R$7=\"Invalid\",\"Internal Error, Contact Support\",VLOOKUP(#REF!,#REF!,2,FALSE))","v":"Internal Error, Contact Support"}]
[{"$f":"eSPAR!A81","v":0},{"$f":"eSPAR!B81","v":0},{"$f":"IF($R$7=\"Invalid\",\"Internal Error, Contact Support\",VLOOKUP(#REF!,#REF!,2,FALSE))","v":"Internal Error, Contact Support"},{"$f":"IF($R$7=\"Invalid\",\"Internal Error, Contact Support\",VLOOKUP(#REF!,#REF!,2,FALSE))","v":"Internal Error, Contact Support"},{"$f":"IF($R$7=\"Invalid\",\"Internal Error, Contact Support\",VLOOKUP(#REF!,#REF!,2,FALSE))","v":"Internal Error, Contact Support"},{"$f":"IF($R$7=\"Invalid\",\"Internal Error, Contact Support\",VLOOKUP(#REF!,#REF!,2,FALSE))","v":"Internal Error, Contact Support"},{"$f":"IF($R$7=\"Invalid\",\"Internal Error, Contact Support\",VLOOKUP(#REF!,#REF!,2,FALSE))","v":"Internal Error, Contact Support"},{"$f":"IF($R$7=\"Invalid\",\"Internal Error, Contact Support\",VLOOKUP(#REF!,#REF!,2,FALSE))","v":"Internal Error, Contact Support"},{"$f":"IF($R$7=\"Invalid\",\"Internal Error, Contact Support\",VLOOKUP(#REF!,#REF!,2,FALSE))","v":"Internal Error, Contact Support"},{"$f":"IF($R$7=\"Invalid\",\"Internal Error, Contact Support\",VLOOKUP(#REF!,#REF!,2,FALSE))","v":"Internal Error, Contact Support"},{"$f":"IF($R$7=\"Invalid\",\"Internal Error, Contact Support\",VLOOKUP(#REF!,#REF!,2,FALSE))","v":"Internal Error, Contact Support"},{"$f":"IF($R$7=\"Invalid\",\"Internal Error, Contact Support\",VLOOKUP(#REF!,#REF!,2,FALSE))","v":"Internal Error, Contact Support"},{"$f":"IF($R$7=\"Invalid\",\"Internal Error, Contact Support\",VLOOKUP(#REF!,#REF!,2,FALSE))","v":"Internal Error, Contact Support"},{"$f":"IF($R$7=\"Invalid\",\"Internal Error, Contact Support\",VLOOKUP(#REF!,#REF!,2,FALSE))","v":"Internal Error, Contact Support"},{"$f":"IF($R$7=\"Invalid\",\"Internal Error, Contact Support\",VLOOKUP(#REF!,#REF!,2,FALSE))","v":"Internal Error, Contact Support"}]
[{"$f":"eSPAR!A82","v":0},{"$f":"eSPAR!B82","v":0},{"$f":"IF($R$7=\"Invalid\",\"Internal Error, Contact Support\",VLOOKUP(#REF!,#REF!,2,FALSE))","v":"Internal Error, Contact Support"},{"$f":"IF($R$7=\"Invalid\",\"Internal Error, Contact Support\",VLOOKUP(#REF!,#REF!,2,FALSE))","v":"Internal Error, Contact Support"},{"$f":"IF($R$7=\"Invalid\",\"Internal Error, Contact Support\",VLOOKUP(#REF!,#REF!,2,FALSE))","v":"Internal Error, Contact Support"},{"$f":"IF($R$7=\"Invalid\",\"Internal Error, Contact Support\",VLOOKUP(#REF!,#REF!,2,FALSE))","v":"Internal Error, Contact Support"},{"$f":"IF($R$7=\"Invalid\",\"Internal Error, Contact Support\",VLOOKUP(#REF!,#REF!,2,FALSE))","v":"Internal Error, Contact Support"},{"$f":"IF($R$7=\"Invalid\",\"Internal Error, Contact Support\",VLOOKUP(#REF!,#REF!,2,FALSE))","v":"Internal Error, Contact Support"},{"$f":"IF($R$7=\"Invalid\",\"Internal Error, Contact Support\",VLOOKUP(#REF!,#REF!,2,FALSE))","v":"Internal Error, Contact Support"},{"$f":"IF($R$7=\"Invalid\",\"Internal Error, Contact Support\",VLOOKUP(#REF!,#REF!,2,FALSE))","v":"Internal Error, Contact Support"},{"$f":"IF($R$7=\"Invalid\",\"Internal Error, Contact Support\",VLOOKUP(#REF!,#REF!,2,FALSE))","v":"Internal Error, Contact Support"},{"$f":"IF($R$7=\"Invalid\",\"Internal Error, Contact Support\",VLOOKUP(#REF!,#REF!,2,FALSE))","v":"Internal Error, Contact Support"},{"$f":"IF($R$7=\"Invalid\",\"Internal Error, Contact Support\",VLOOKUP(#REF!,#REF!,2,FALSE))","v":"Internal Error, Contact Support"},{"$f":"IF($R$7=\"Invalid\",\"Internal Error, Contact Support\",VLOOKUP(#REF!,#REF!,2,FALSE))","v":"Internal Error, Contact Support"},{"$f":"IF($R$7=\"Invalid\",\"Internal Error, Contact Support\",VLOOKUP(#REF!,#REF!,2,FALSE))","v":"Internal Error, Contact Support"}]
[{"$f":"eSPAR!A83","v":0},{"$f":"eSPAR!B83","v":0},{"$f":"IF($R$7=\"Invalid\",\"Internal Error, Contact Support\",VLOOKUP(#REF!,#REF!,2,FALSE))","v":"Internal Error, Contact Support"},{"$f":"IF($R$7=\"Invalid\",\"Internal Error, Contact Support\",VLOOKUP(#REF!,#REF!,2,FALSE))","v":"Internal Error, Contact Support"},{"$f":"IF($R$7=\"Invalid\",\"Internal Error, Contact Support\",VLOOKUP(#REF!,#REF!,2,FALSE))","v":"Internal Error, Contact Support"},{"$f":"IF($R$7=\"Invalid\",\"Internal Error, Contact Support\",VLOOKUP(#REF!,#REF!,2,FALSE))","v":"Internal Error, Contact Support"},{"$f":"IF($R$7=\"Invalid\",\"Internal Error, Contact Support\",VLOOKUP(#REF!,#REF!,2,FALSE))","v":"Internal Error, Contact Support"},{"$f":"IF($R$7=\"Invalid\",\"Internal Error, Contact Support\",VLOOKUP(#REF!,#REF!,2,FALSE))","v":"Internal Error, Contact Support"},{"$f":"IF($R$7=\"Invalid\",\"Internal Error, Contact Support\",VLOOKUP(#REF!,#REF!,2,FALSE))","v":"Internal Error, Contact Support"},{"$f":"IF($R$7=\"Invalid\",\"Internal Error, Contact Support\",VLOOKUP(#REF!,#REF!,2,FALSE))","v":"Internal Error, Contact Support"},{"$f":"IF($R$7=\"Invalid\",\"Internal Error, Contact Support\",VLOOKUP(#REF!,#REF!,2,FALSE))","v":"Internal Error, Contact Support"},{"$f":"IF($R$7=\"Invalid\",\"Internal Error, Contact Support\",VLOOKUP(#REF!,#REF!,2,FALSE))","v":"Internal Error, Contact Support"},{"$f":"IF($R$7=\"Invalid\",\"Internal Error, Contact Support\",VLOOKUP(#REF!,#REF!,2,FALSE))","v":"Internal Error, Contact Support"},{"$f":"IF($R$7=\"Invalid\",\"Internal Error, Contact Support\",VLOOKUP(#REF!,#REF!,2,FALSE))","v":"Internal Error, Contact Support"},{"$f":"IF($R$7=\"Invalid\",\"Internal Error, Contact Support\",VLOOKUP(#REF!,#REF!,2,FALSE))","v":"Internal Error, Contact Support"}]
[{"$f":"eSPAR!A84","v":0},{"$f":"eSPAR!B84","v":0},{"$f":"IF($R$7=\"Invalid\",\"Internal Error, Contact Support\",VLOOKUP(#REF!,#REF!,2,FALSE))","v":"Internal Error, Contact Support"},{"$f":"IF($R$7=\"Invalid\",\"Internal Error, Contact Support\",VLOOKUP(#REF!,#REF!,2,FALSE))","v":"Internal Error, Contact Support"},{"$f":"IF($R$7=\"Invalid\",\"Internal Error, Contact Support\",VLOOKUP(#REF!,#REF!,2,FALSE))","v":"Internal Error, Contact Support"},{"$f":"IF($R$7=\"Invalid\",\"Internal Error, Contact Support\",VLOOKUP(#REF!,#REF!,2,FALSE))","v":"Internal Error, Contact Support"},{"$f":"IF($R$7=\"Invalid\",\"Internal Error, Contact Support\",VLOOKUP(#REF!,#REF!,2,FALSE))","v":"Internal Error, Contact Support"},{"$f":"IF($R$7=\"Invalid\",\"Internal Error, Contact Support\",VLOOKUP(#REF!,#REF!,2,FALSE))","v":"Internal Error, Contact Support"},{"$f":"IF($R$7=\"Invalid\",\"Internal Error, Contact Support\",VLOOKUP(#REF!,#REF!,2,FALSE))","v":"Internal Error, Contact Support"},{"$f":"IF($R$7=\"Invalid\",\"Internal Error, Contact Support\",VLOOKUP(#REF!,#REF!,2,FALSE))","v":"Internal Error, Contact Support"},{"$f":"IF($R$7=\"Invalid\",\"Internal Error, Contact Support\",VLOOKUP(#REF!,#REF!,2,FALSE))","v":"Internal Error, Contact Support"},{"$f":"IF($R$7=\"Invalid\",\"Internal Error, Contact Support\",VLOOKUP(#REF!,#REF!,2,FALSE))","v":"Internal Error, Contact Support"},{"$f":"IF($R$7=\"Invalid\",\"Internal Error, Contact Support\",VLOOKUP(#REF!,#REF!,2,FALSE))","v":"Internal Error, Contact Support"},{"$f":"IF($R$7=\"Invalid\",\"Internal Error, Contact Support\",VLOOKUP(#REF!,#REF!,2,FALSE))","v":"Internal Error, Contact Support"},{"$f":"IF($R$7=\"Invalid\",\"Internal Error, Contact Support\",VLOOKUP(#REF!,#REF!,2,FALSE))","v":"Internal Error, Contact Support"}]
[{"$f":"eSPAR!A85","v":0},{"$f":"eSPAR!B85","v":0},{"$f":"IF($R$7=\"Invalid\",\"Internal Error, Contact Support\",VLOOKUP(#REF!,#REF!,2,FALSE))","v":"Internal Error, Contact Support"},{"$f":"IF($R$7=\"Invalid\",\"Internal Error, Contact Support\",VLOOKUP(#REF!,#REF!,2,FALSE))","v":"Internal Error, Contact Support"},{"$f":"IF($R$7=\"Invalid\",\"Internal Error, Contact Support\",VLOOKUP(#REF!,#REF!,2,FALSE))","v":"Internal Error, Contact Support"},{"$f":"IF($R$7=\"Invalid\",\"Internal Error, Contact Support\",VLOOKUP(#REF!,#REF!,2,FALSE))","v":"Internal Error, Contact Support"},{"$f":"IF($R$7=\"Invalid\",\"Internal Error, Contact Support\",VLOOKUP(#REF!,#REF!,2,FALSE))","v":"Internal Error, Contact Support"},{"$f":"IF($R$7=\"Invalid\",\"Internal Error, Contact Support\",VLOOKUP(#REF!,#REF!,2,FALSE))","v":"Internal Error, Contact Support"},{"$f":"IF($R$7=\"Invalid\",\"Internal Error, Contact Support\",VLOOKUP(#REF!,#REF!,2,FALSE))","v":"Internal Error, Contact Support"},{"$f":"IF($R$7=\"Invalid\",\"Internal Error, Contact Support\",VLOOKUP(#REF!,#REF!,2,FALSE))","v":"Internal Error, Contact Support"},{"$f":"IF($R$7=\"Invalid\",\"Internal Error, Contact Support\",VLOOKUP(#REF!,#REF!,2,FALSE))","v":"Internal Error, Contact Support"},{"$f":"IF($R$7=\"Invalid\",\"Internal Error, Contact Support\",VLOOKUP(#REF!,#REF!,2,FALSE))","v":"Internal Error, Contact Support"},{"$f":"IF($R$7=\"Invalid\",\"Internal Error, Contact Support\",VLOOKUP(#REF!,#REF!,2,FALSE))","v":"Internal Error, Contact Support"},{"$f":"IF($R$7=\"Invalid\",\"Internal Error, Contact Support\",VLOOKUP(#REF!,#REF!,2,FALSE))","v":"Internal Error, Contact Support"},{"$f":"IF($R$7=\"Invalid\",\"Internal Error, Contact Support\",VLOOKUP(#REF!,#REF!,2,FALSE))","v":"Internal Error, Contact Support"}]